Workbook

Sheet SERIES
A2: e.surv Acadata E&W HPI NATIONAL AND REGIONAL FORMATTED DATA FROM 2005
A3: A TRUE MEASURE OF HOUSE PRICE INFLATION | K3: JULY 2022
A4: For data prior to 2005 please see | D4: APAT LGA
A6: The following table provides national smoothed, seasonally and mix adjusted current and back data for our e.surv Acadata E&W HPI. The data are based upon the prices for all residential transactions in England and Wales, including cash purchases, reported by the Land Registry.
A7: At national level, only some 60,000 monthly transactions are occurring. For any given month, only c.35% of the transactions which took place in the month are available from LR. Rather than rely upon a small sample of c.21,000 potentially unrepresentative transactions, we base our initial results for each, most recent, month upon our Academic “index of indices” forecasting model, developed at the University of Cambridge and the Sir John Cass Business School. One month later, however, LR provides c.80% of the transactions, which we use to replace our initial forecast with an updated e.surv Acadata E&W HPI result. Two months after any given month, LR provides c.90% of the transactions. We then regard our results as sufficiently updated to describe them as the final e.surv Acadata E&W HPI index.
A8: The final e.surv Acadata E&W HPI index comprises some 90% of the ultimate LR transactions, smoothed, seasonally and mix adjusted. Every further update from LR is used monthly until the ultimate e.surv Acadata E&W HPI result based upon 100% of the LR data is reached.These results are the complete transaction data for England and Wales smoothed, seasonally and mix adjusted. Normally, these show no significant change from the final e.surv Acadata E&W HPI result. Our Acadata House Prices series is calibrated to provide portfolio revaluations with standard errors.
A9: In this e.surv Acadata Data Series, new weights have been adopted from April 2004 and prices on and after this date have been recalculated based on these new weights. The Index however remains based on the original weights and has not been re-cast. There is therefore discontinuity between the recalculated prices and the original Index.
A10: e.surv Acadata E&W HPI is prepared from Land Registry data that we believe to be correct using a methodology designed to provide the best possible guide to house price movements in England and Wales, and applied with care. We do not guarantee the accuracy of the results and Acadata shall not be liable for any loss or damage, whatsoever, consequential upon any error, misdescription or other inadequacy in the data. Persons using the data do so entirely at their own risk. No part of the house price index may be reproduced in any form or for any purpose without the prior permission of Acadata. Please email information@Acadata.co.uk
L12: © Acadata Limited
M13: e.surv Acadata E&W HPI clb/cms
M14: www.acadata.co.uk
B16: 2005-01-01 | C16: 2005-02-01 | D16: 2005-03-01 | E16: 2005-04-01 | F16: 2005-05-01 | G16: 2005-06-01 | H16: 2005-07-01 | I16: 2005-08-01 | J16: 2005-09-01 | K16: 2005-10-01 | L16: 2005-11-01 | M16: 2005-12-01
A17: HP | B17: 189930.2693 | C17: 191085.6257 | D17: 190886.8538 | E17: 190951.9826 | F17: 190420.781 | G17: 191020.4565 | H17: 191043.7486 | I17: 191368.1439 | J17: 191936.5357 | K17: 193079.1634 | L17: 193874.8104 | M17: 195504.4016
A18: Index | B18: 194.6273523 | C18: 195.7195186 | D18: 195.6551615 | E18: 195.7536815 | F18: 195.1941451 | G18: 195.7926608 | H18: 195.8667879 | I18: 196.1748084 | J18: 196.7364411 | K18: 197.9376874 | L18: 198.8839387 | M18: 200.6449221
A19: Monthly% | B19: 0.3924021256 | C19: 0.608305535 | D19: -0.104022384 | E19: 0.03411906082 | F19: -0.2781859609 | G19: 0.3149212237 | H19: 0.01219352941 | I19: 0.1698015602 | J19: 0.2970148784 | K19: 0.5953153663 | L19: 0.4120833132 | M19: 0.8405378488
A20: Annual% | B20: 12.50281927 | C20: 11.62178388 | D20: 10.05655723 | E20: 8.813701224 | F20: 7.109310019 | G20: 6.18312362 | H20: 4.957068809 | I20: 3.964978113 | J20: 3.367198856 | K20: 3.055646302 | L20: 3.046459948 | M20: 3.338749396
B22: 2006-01-01 | C22: 2006-02-01 | D22: 2006-03-01 | E22: 2006-04-01 | F22: 2006-05-01 | G22: 2006-06-01 | H22: 2006-07-01 | I22: 2006-08-01 | J22: 2006-09-01 | K22: 2006-10-01 | L22: 2006-11-01 | M22: 2006-12-01
A23: HP | B23: 196419.7965 | C23: 198099.1045 | D23: 199192.9486 | E23: 200469.6191 | F23: 201289.8114 | G23: 201857.5025 | H23: 202766.4802 | I23: 203970.999 | J23: 205728.6187 | K23: 207736.2117 | L23: 209288.9704 | M23: 211480.2145
A24: Index | B24: 201.6606224 | C24: 203.3743721 | D24: 204.5109404 | E24: 205.8608886 | F24: 206.8261824 | G24: 207.510648 | H24: 208.3876235 | I24: 209.5672334 | J24: 211.3531339 | K24: 213.4431741 | L24: 215.1395739 | M24: 217.4753687
A25: Monthly% | B25: 0.4682221441 | C25: 0.8549586212 | D25: 0.5521701542 | E25: 0.640921514 | F25: 0.4091354558 | G25: 0.2820267777 | H25: 0.4503065947 | I25: 0.5940423757 | J25: 0.8617007784 | K25: 0.9758452845 | L25: 0.7474665658 | M25: 1.046994531
A26: Annual% | B26: 3.416794604 | C26: 3.670333031 | D26: 4.351318398 | E26: 4.984308788 | F26: 5.707901359 | G26: 5.673238491 | H26: 6.13615031 | I26: 6.585659906 | J26: 7.185751737 | K26: 7.591211824 | L26: 7.950573859 | M26: 8.17158733
B28: 2007-01-01 | C28: 2007-02-01 | D28: 2007-03-01 | E28: 2007-04-01 | F28: 2007-05-01 | G28: 2007-06-01 | H28: 2007-07-01 | I28: 2007-08-01 | J28: 2007-09-01 | K28: 2007-10-01 | L28: 2007-11-01 | M28: 2007-12-01
A29: HP | B29: 213246.9616 | C29: 215788.0172 | D29: 217102.6637 | E29: 218866.7871 | F29: 220010.892 | G29: 221740.8163 | H29: 222494.8072 | I29: 224264.9829 | J29: 225942.18 | K29: 227237.3216 | L29: 226939.2522 | M29: 227136.0188
A30: Index | B30: 219.4963176 | C30: 222.2308868 | D30: 223.6998581 | E30: 225.5798747 | F30: 226.8685956 | G30: 228.8121942 | H30: 229.7011053 | I30: 231.6302491 | J30: 233.3844212 | K30: 234.663941 | L30: 234.3124214 | M30: 234.5554226
A31: Monthly% | B31: =+B29/M23*100-100 -> 0.8354195835 | C31: =+C29/B29*100-100 -> 1.191602212 | D31: =+D29/C29*100-100 -> 0.6092305428 | E31: =+E29/D29*100-100 -> 0.8125756566 | F31: 0.5227403283 | G31: 0.7862902895 | H31: 0.3400325106 | I31: 0.7956031674 | J31: 0.7478640049 | K31: 0.5732181651 | L31: -0.1311709711 | M31: 0.08670451612
A32: Annual% | B32: =+B29/B23*100-100 -> 8.566939502 | C32: =+C29/C23*100-100 -> 8.929324901 | D32: =+D29/D23*100-100 -> 8.991139077 | E32: 9.177035433 | F32: 9.30056048 | G32: 9.850173269 | H32: 9.729580036 | I32: 9.949445751 | J32: 9.825352165 | K32: 9.387438869 | L32: 8.433450515 | M32: 7.402964054
B34: 2008-01-01 | C34: 2008-02-01 | D34: 2008-03-01 | E34: 2008-04-01 | F34: 2008-05-01 | G34: 2008-06-01 | H34: 2008-07-01 | I34: 2008-08-01 | J34: 2008-09-01 | K34: 2008-10-01 | L34: 2008-11-01 | M34: 2008-12-01
A35: HP | B35: 227489.5476 | C35: 228387.2343 | D35: 227766.9026 | E35: 227291.9836 | F35: 225793.564 | G35: 224030.9092 | H35: 220818.939 | I35: 217918.0581 | J35: 214299.2407 | K35: 210335.457 | L35: 205743.0704 | M35: 202506.2353
A36: Index | B36: 235.0860769 | C36: 236.0262065 | D36: 235.3635725 | E36: 234.9646059 | F36: 233.5998212 | G36: 231.7023164 | H36: 228.2902382 | I36: 225.1524361 | J36: 221.4854194 | K36: 217.4847387 | L36: 212.7583728 | M36: 209.3227504
A37: Monthly% | B37: =+B35/M29*100-100 -> 0.1556463285 | C37: =+C35/B35*100-100 -> 0.3946056491 | D37: =+D35/C35*100-100 -> -0.2716139821 | E37: =+E35/D35*100-100 -> -0.2085109783 | F37: -0.6592487788 | G37: -0.780648813 | H37: -1.433717416 | I37: -1.31369207 | J37: -1.660632192 | K37: -1.849648964 | L37: -2.183363041 | M37: -1.573241371
A38: Annual% | B38: =+B35/B29*100-100 -> 6.678916266 | C38: =+C35/C29*100-100 -> 5.838700994 | D38: =+D35/D29*100-100 -> 4.912071898 | E38: 3.849463253 | F38: 2.628357124 | G38: 1.03277914 | H38: -0.7532167386 | I38: -2.830100657 | J38: -5.1530614 | K38: -7.437979135 | L38: -9.340024518 | M38: -10.84362736
B40: 2009-01-01 | C40: 2009-02-01 | D40: 2009-03-01 | E40: 2009-04-01 | F40: 2009-05-01 | G40: 2009-06-01 | H40: 2009-07-01 | I40: 2009-08-01 | J40: 2009-09-01 | K40: 2009-10-01 | L40: 2009-11-01 | M40: 2009-12-01
A41: HP | B41: 201009.9752 | C41: 199680.3361 | D41: 198010.4347 | E41: 197218.6954 | F41: 197746.8556 | G41: 199288.4932 | H41: 200945.8438 | I41: 203234.3446 | J41: 205824.4794 | K41: 208213.1339 | L41: 208632.7172 | M41: 214724.7035
A42: Index | B42: 207.6515445 | C42: 206.212217 | D42: 204.5761324 | E42: 203.859941 | F42: 204.5718708 | G42: 206.246616 | H42: 207.9057217 | I42: 210.2088433 | J42: 213.0717725 | K42: 215.5477441 | L42: 216.1690895 | M42: 220.4351526
A43: Monthly% | B43: =+B41/M35*100-100 -> -0.7388711094 | C43: =+C41/B41*100-100 -> -0.6614791921 | D43: =+D41/C41*100-100 -> -0.8362873549 | E43: =+E41/D41*100-100 -> -0.3998472682 | F43: 0.2678043697 | G43: 0.7796015483 | H43: 0.8316338781 | I43: 1.138864447 | J43: 1.274457229 | K43: 1.160529855 | L43: 0.2015162339 | M43: 2.91995734
A44: Annual% | B44: =+B41/B35*100-100 -> -11.63990728 | C44: =+C41/C35*100-100 -> -12.56939701 | D44: =+D41/D35*100-100 -> -13.06443894 | E44: -13.23112578 | F44: -12.42139406 | G44: -11.04419747 | H44: -8.999724076 | I44: -6.738181169 | J44: -3.954638992 | K44: -1.009018235 | L44: 1.404492883 | M44: 6.033625683
B46: 2010-01-01 | C46: 2010-02-01 | D46: 2010-03-01 | E46: 2010-04-01 | F46: 2010-05-01 | G46: 2010-06-01 | H46: 2010-07-01 | I46: 2010-08-01 | J46: 2010-09-01 | K46: 2010-10-01 | L46: 2010-11-01 | M46: 2010-12-01
A47: HP | B47: 219735.973 | C47: 225139.0459 | D47: 223698.5295 | E47: 222947.3077 | F47: 223145.1379 | G47: 223915.5298 | H47: 224619.1116 | I47: 225382.2435 | J47: 225259.2054 | K47: 224351.775 | L47: 222664.7229 | M47: 222757.5171
A48: Index | B48: 223.8820655 | C48: 227.5437122 | D48: 226.2066132 | E48: 225.3705733 | F48: 225.6158466 | G48: 226.4959378 | H48: 227.2420623 | I48: 228.0314574 | J48: 227.9339884 | K48: 227.0859979 | L48: 225.5648775 | M48: 225.5958923
A49: Monthly% | B49: =+B47/M41*100-100 -> 2.333811329 | C49: =+C47/B47*100-100 -> 2.458893196 | D49: =+D47/C47*100-100 -> -0.6398340865 | E49: =+E47/D47*100-100 -> -0.3358188567 | F49: 0.08873407313 | G49: 0.3452425153 | H49: 0.3142175085 | I49: 0.3397448824 | J49: -0.05459086567 | K49: -0.4028383229 | L49: -0.7519673458 | M49: 0.04167441774
A50: Annual% | B50: =+B47/B41*100-100 -> 9.315954458 | C50: =+C47/C41*100-100 -> 12.74973305 | D50: =+D47/D41*100-100 -> 12.97310159 | E50: 13.04572686 | F50: 12.84383621 | G50: 12.35748045 | H50: 11.78091933 | I50: 10.89771464 | J50: 9.442378318 | K50: 7.751019723 | L50: 6.725697634 | M50: 3.740982513
B52: 2011-01-01 | C52: 2011-02-01 | D52: 2011-03-01 | E52: 2011-04-01 | F52: 2011-05-01 | G52: 2011-06-01 | H52: 2011-07-01 | I52: 2011-08-01 | J52: 2011-09-01 | K52: 2011-10-01 | L52: 2011-11-01 | M52: 2011-12-01
A53: HP | B53: 223212.4806 | C53: 224869.9521 | D53: 225057.0716 | E53: 222847.0427 | F53: 220007.0547 | G53: 218400.8144 | H53: 219579.3582 | I53: 221158.1813 | J53: 221112.6987 | K53: 221344.6327 | L53: 219950.2147 | M53: 220015.6035
A54: Index | B54: 226.2144869 | C54: 228.0390153 | D54: 228.5029086 | E54: 226.1624434 | F54: 223.1024502 | G54: 221.4193565 | H54: 222.7809651 | I54: 224.5134764 | J54: 224.4719429 | K54: 224.8405596 | L54: 223.5791883 | M54: 223.8222335
A55: Monthly% | B55: =+B53/M47*100-100 -> 0.2042415885 | C55: =+C53/B53*100-100 -> 0.7425532394 | D55: =+D53/C53*100-100 -> 0.08321232334 | E55: =+E53/D53*100-100 -> -0.9819859814 | F55: -1.274411369 | G55: -0.7300858017 | H55: 0.5396242563 | I55: 0.7190216314 | J55: -0.02056563354 | K55: 0.1048940091 | L55: -0.6299759514 | M55: 0.02972889834
A56: Annual% | B56: =+B53/B47*100-100 -> 1.582129497 | C56: =+C53/C47*100-100 -> -0.1195233543 | D56: =+D53/D47*100-100 -> 0.6073093698 | E56: -0.04497247379 | F56: -1.406296917 | G56: -2.462855236 | H56: -2.24368859 | I56: -1.874177027 | J56: -1.840771252 | K56: -1.3403693 | L56: -1.219101143 | M56: -1.230896119
B58: 2012-01-01 | C58: 2012-02-01 | D58: 2012-03-01 | E58: 2012-04-01 | F58: 2012-05-01 | G58: 2012-06-01 | H58: 2012-07-01 | I58: 2012-08-01 | J58: 2012-09-01 | K58: 2012-10-01 | L58: 2012-11-01 | M58: 2012-12-01
A59: HP | B59: 220695.5786 | C59: 221485.588 | D59: 223372.215 | E59: 224184.3972 | F59: 226333.3862 | G59: 226293.5286 | H59: 226093.4075 | I59: 225602.1313 | J59: 225755.3688 | K59: 226124.2486 | L59: 226098.315 | M59: 226818.3849
A60: Index | B60: 224.583729 | C60: 225.4728947 | D60: 227.4658434 | E60: 228.5751607 | F60: 231.1096648 | G60: 231.2511358 | H60: 231.2817902 | I60: 230.6121911 | J60: 231.1264234 | K60: 231.5027243 | L60: 231.7470449 | M60: 232.3455764
A61: Monthly% | B61: =+B59/M53*100-100 -> 0.3090576605 | C61: =+C59/B59*100-100 -> 0.3579634297 | D61: =+D59/C59*100-100 -> 0.8518057254 | E61: =+E59/D59*100-100 -> 0.3636003715 | F61: 0.9585810005 | G61: -0.01761013319 | H61: -0.08843429172 | I61: -0.2172890403 | J61: 0.06792375736 | K61: 0.163398057 | L61: -0.0114687652 | M61: =+M59/L59*100-100 -> 0.3184764583
A62: Annual% | B62: =+B59/B53*100-100 -> -1.127581236 | C62: =+C59/C53*100-100 -> -1.505031713 | D62: =+D59/D53*100-100 -> -0.7486353001 | E62: 0.6001221272 | F62: 2.875513018 | G62: 3.613866632 | H62: 2.966603674 | I62: 2.009398885 | J62: 2.099684948 | K62: 2.159354807 | L62: 2.795223578 | M62: =+M59/M53*100-100 -> 3.091954063
B64: 2013-01-01 | C64: 2013-02-01 | D64: 2013-03-01 | E64: 2013-04-01 | F64: 2013-05-01 | G64: 2013-06-01 | H64: 2013-07-01 | I64: 2013-08-01 | J64: 2013-09-01 | K64: 2013-10-01 | L64: 2013-11-01 | M64: 2013-12-01
A65: HP | B65: 227489.2901 | C65: 229463.1032 | D65: 230305.483 | E65: 230924.4862 | F65: 230753.0985 | G65: 231074.1043 | H65: 232034.2432 | I65: 233534.2653 | J65: 234997.1067 | K65: 236415.5595 | L65: 237336.6019 | M65: 239549.3018
A66: Index | B66: 233.2596034 | C66: 235.1989609 | D66: 236.286859 | E66: 236.8967075 | F66: 236.8215354 | G66: 237.0157063 | H66: 237.8880934 | I66: 239.4931005 | J66: 240.7860848 | K66: 242.1151601 | L66: 242.8982552 | M66: 244.0571436
A67: Monthly% | B67: =+B65/M59*100-100 -> 0.2957895934 | C67: =+C65/B65*100-100 -> 0.8676510261 | D67: =+D65/C65*100-100 -> 0.3671090444 | E67: =+E65/D65*100-100 -> 0.2687748209 | F67: -0.07421806015 | G67: 0.139112244 | H67: 0.4155112486 | I67: 0.6464658381 | J67: 0.6263926279 | K67: 0.6036043278 | L67: 0.3895862007 | M67: 0.9323045602
A68: Annual% | B68: =+B65/B59*100-100 -> 3.078317897 | C68: =+C65/C59*100-100 -> 3.601821347 | D68: =+D65/D59*100-100 -> 3.103908012 | E68: 3.006493363 | F68: 1.952744306 | G68: 2.112555213 | H68: 2.627602359 | I68: 3.515983636 | J68: 4.093695777 | K68: 4.551175241 | L68: 4.970531016 | M68: 5.612824082
B70: 2014-01-01 | C70: 2014-02-01 | D70: 2014-03-01 | E70: 2014-04-01 | F70: 2014-05-01 | G70: 2014-06-01 | H70: 2014-07-01 | I70: 2014-08-01 | J70: 2014-09-01 | K70: 2014-10-01 | L70: 2014-11-01 | M70: 2014-12-01
A71: HP | B71: 242788.4282 | C71: 245120.3163 | D71: 247519.5636 | E71: 248767.2187 | F71: 251281.3278 | G71: 253272.3276 | H71: 255120.1434 | I71: 257063.3943 | J71: 258408.2138 | K71: 259235.5339 | L71: 259145.0693 | M71: 259672.9569
A72: Index | B72: 247.8155064 | C72: 250.1686227 | D72: 252.7688035 | E72: 254.3262087 | F72: 257.2464787 | G72: 260.069332 | H72: 261.52957 | I72: 263.4723034 | J72: 264.9046899 | K72: 266.0700496 | L72: 266.3469179 | M72: 265.6588618
A73: Monthly% | B73: =B71/M65*100-100 -> 1.352175239 | C73: =+C71/B71*100-100 -> 0.9604609801 | D73: 0.9788039358 | E73: 0.5040632471 | F73: 1.01062714 | G73: 0.7923389447 | H73: 0.7295766709 | I73: 0.7617003077 | J73: 0.5231470319 | K73: 0.3201601409 | L73: -0.03489667572 | M73: 0.2037034746
A74: Annual% | B74: =B71/B65*100-100 -> 6.725212467 | C74: 6.823412058 | D74: 7.474455373 | E74: 7.726652486 | F74: 8.89618791 | G74: 9.606538701 | H74: =H71/H65*100-100 -> 9.949350518 | I74: 10.07523626 | J74: 9.962295877 | K74: 9.652484178 | L74: 9.188834475 | M74: 8.40063189
B76: 2015-01-01 | C76: 2015-02-01 | D76: 2015-03-01 | E76: 2015-04-01 | F76: 2015-05-01 | G76: 2015-06-01 | H76: 2015-07-01 | I76: 2015-08-01 | J76: 2015-09-01 | K76: 2015-10-01 | L76: 2015-11-01 | M76: 2015-12-01
A77: HP | B77: 261053.0096 | C77: 262254.4215 | D77: 262921.347 | E77: 263444.8357 | F77: 264684.3996 | G77: 266052.1675 | H77: 267412.6105 | I77: 269933.2375 | J77: 271930.066 | K77: 274650.4129 | L77: 274993.9456 | M77: 277099.1843
A78: Index | B78: 266.9283519 | C78: 267.8797863 | D78: 268.3067829 | E78: 269.154968 | F78: 270.3396122 | G78: 272.1630768 | H78: 273.2768059 | I78: 276.2881506 | J78: 278.1160951 | K78: 280.4862979 | L78: 280.2939328 | M78: 281.1992468
A79: Monthly% | B79: =B77/M71*100-100 -> 0.5314579977 | C79: =+C77/B77*100-100 -> 0.4602176203 | D79: 0.2543047576 | E79: 0.199104674 | F79: 0.4705212687 | G79: 0.5167542323 | H79: 0.5113444414 | I79: 0.9425984051 | J79: 0.7397490293 | K79: 1.00038475 | L79: 0.1250800089 | M79: 0.7655581757
A80: Annual% | B80: =B77/B71*100-100 -> 7.522838519 | C80: 6.9900796 | D80: 6.222450932 | E80: 5.900141107 | F80: 5.333890906 | G80: 5.045888759 | H80: =H77/H71*100-100 -> 4.818305171 | I80: 5.006486116 | J80: 5.232748577 | K80: 5.946283176 | L80: 6.115831694 | M80: 6.710836437
B82: 2016-01-01 | C82: 2016-02-01 | D82: 2016-03-01 | E82: 2016-04-01 | F82: 2016-05-01 | G82: 2016-06-01 | H82: 2016-07-01 | I82: 2016-08-01 | J82: 2016-09-01 | K82: 2016-10-01 | L82: 2016-11-01 | M82: 2016-12-01
A83: HP | B83: 279266.6403 | C83: 285130.9885 | D83: 285361.3038 | E83: 285235.4025 | F83: 283251.8958 | G83: 284342.1368 | H83: 284841.8137 | I83: 285726.581 | J83: 287392.545 | K83: 290153.7315 | L83: 291834.9043 | M83: 294112.7581
A84: Index | B84: 283.6070224 | C84: 289.6191685 | D84: 290.0568499 | E84: 289.886402 | F84: 287.6805537 | G84: 288.4834382 | H84: 288.660636 | I84: 289.259014 | J84: 289.7113087 | K84: 290.7009058 | L84: 290.463393 | M84: 291.3745783
A85: Monthly% | B85: =B83/M77*100-100 -> 0.7821950427 | C85: =+C83/B83*100-100 -> 2.099910017 | D85: 0.08077526741 | E85: -0.04411995856 | F85: -0.6953929132 | G85: 0.3849016002 | H85: 0.1757308373 | I85: 0.3106170862 | J85: 0.583062326 | K85: 0.9607717768 | L85: 0.5794076048 | M85: 0.7805282272
A86: Annual% | B86: =B83/B77*100-100 -> 6.976985565 | C86: 8.723043398 | D86: 8.534855426 | E86: 8.271396481 | F86: 7.014956731 | G86: 6.874580096 | H86: =H83/H77*100-100 -> 6.517719254 | I86: 5.850833224 | J86: 5.686196939 | K86: 5.644746161 | L86: 6.124119796 | M86: 6.139885932
B88: 2017-01-01 | C88: 2017-02-01 | D88: 2017-03-01 | E88: 2017-04-01 | F88: 2017-05-01 | G88: 2017-06-01 | H88: 2017-07-01 | I88: 2017-08-01 | J88: 2017-09-01 | K88: 2017-10-01 | L88: 2017-11-01 | M88: 2017-12-01
A89: HP | B89: 296503.7609 | C89: 298266.4614 | D89: 299780.1163 | E89: 299578.8474 | F89: 299486.236 | G89: 298315.6466 | H89: 298284.8116 | I89: 298740.0868 | J89: 300542.3878 | K89: 301822.1519 | L89: 302851.6068 | M89: 303798.5552
A90: Index | B90: 293.717394 | C90: 295.4561045 | D90: 297.0779214 | E90: 296.9120858 | F90: 296.5527202 | G90: 295.0778387 | H90: 294.6765186 | I90: 294.6694209 | J90: 295.3046342 | K90: 294.3450265 | L90: 293.1622923 | M90: 292.0688766
A91: Monthly% | B91: =B89/M83*100-100 -> 0.8129544563 | C91: =+C89/B89*100-100 -> 0.5944951616 | D91: 0.5074841204 | E91: -0.06713885003 | F91: -0.03091385671 | G91: -0.39086584 | H91: -0.01033637686 | I91: 0.1526310453 | J91: 0.6033006964 | K91: 0.4258181744 | L91: 0.3410799541 | M91: 0.3126773586
A92: Annual% | B92: =B89/B83*100-100 -> 6.17228055 | C92: 4.606820518 | D92: =D89/D83*100-100 -> 5.052826819 | E92: 5.028634149 | F92: =F89/F83*100-100 -> 5.731414511 | G92: 4.914329596 | H92: =H89/H83*100-100 -> 4.71946087 | I92: 4.55453104 | J92: =J89/J83*100-100 -> 4.575568512 | K92: 4.021461445 | L92: =L89/L83*100-100 -> 3.774977685 | M92: 3.293225761
B94: 2018-01-01 | C94: 2018-02-01 | D94: 2018-03-01 | E94: 2018-04-01 | F94: 2018-05-01 | G94: 2018-06-01 | H94: 2018-07-01 | I94: 2018-08-01 | J94: 2018-09-01 | K94: 2018-10-01 | L94: 2018-11-01 | M94: 2018-12-01
A95: HP | B95: 305433.9341 | C95: 306675.5235 | D95: 305951.1914 | E95: 305176.6715 | F95: 304271.4669 | G95: 304689.1015 | H95: 303619.8779 | I95: 304487.553 | J95: 305315.3786 | K95: 307356.2224 | L95: 306407.6113 | M95: 307006.3984
A96: Index | B96: 294.4487863 | C96: 295.8459106 | D96: 294.9197765 | E96: 292.9244642 | F96: 291.4716024 | G96: 291.0018409 | H96: 290.2357334 | I96: 290.7584248 | J96: 291.0582891 | K96: 292.8236948 | L96: 292.6495486 | M96: 292.3665621
A97: Monthly% | B97: =B95/M89*100-100 -> 0.5383103026 | C97: =+C95/B95*100-100 -> 0.4065001357 | D97: -0.2361884139 | E97: -0.2531514742 | F97: -0.2966165653 | G97: 0.1372572159 | H97: -0.3509228016 | I97: 0.2857767799 | J97: 0.2718750038 | K97: 0.6684379269 | L97: -0.3086357277 | M97: 0.1954217671
A98: Annual% | B98: =B95/B89*100-100 -> 3.011824618 | C98: 2.81931199 | D98: =D95/D89*100-100 -> 2.058533835 | E98: 1.868564535 | F98: =F95/F89*100-100 -> 1.5978133 | G98: 2.136480241 | H98: =H95/H89*100-100 -> 1.788581295 | I98: 1.923901908 | J98: =J95/J89*100-100 -> 1.588125651 | K98: 1.833553434 | L98: =L95/L89*100-100 -> 1.174173879 | M98: 1.055911283
B100: 2019-01-01 | C100: 2019-02-01 | D100: 2019-03-01 | E100: 2019-04-01 | F100: 2019-05-01 | G100: 2019-06-01 | H100: 2019-07-01 | I100: 2019-08-01 | J100: 2019-09-01 | K100: 2019-10-01 | L100: 2019-11-01 | M100: 2019-12-01
A101: HP | B101: 307439.9046 | C101: 308840.9311 | D101: 307989.2552 | E101: 307211.0118 | F101: 307190.4721 | G101: 306950.7832 | H101: 306377.5991 | I101: 306196.4504 | J101: 307900.1848 | K101: 309984.1317 | L101: 310983.4625 | M101: 311888.5975
A102: Index | B102: 292.518554 | C102: 293.900022 | D102: 292.8707924 | E102: 291.8411483 | F102: 291.5125475 | G102: 290.9975946 | H102: 290.1483255 | I102: 289.9899267 | J102: 291.5733143 | K102: 293.5709702 | L102: 294.3482591 | M102: 294.5510737
A103: Monthly% | B103: =B101/M95*100-100 -> 0.1412042842 | C103: =+C101/B101*100-100 -> 0.4557074412 | D103: -0.275765256 | E103: -0.2526852429 | F103: -0.006685858428 | G103: -0.07802614726 | H103: -0.1867348417 | I103: -0.05912595238 | J103: 0.5564187041 | K103: 0.6768254947 | L103: 0.3223812823 | M103: 0.2910556738
A104: Annual% | B104: =B101/B95*100-100 -> 0.6567608458 | C104: 0.7060907993 | D104: =D101/D95*100-100 -> 0.6661401499 | E104: 0.666610678 | F104: =F101/F95*100-100 -> 0.9593423847 | G104: 0.7422916349 | H104: =H101/H95*100-100 -> 0.9082808423 | I104: 0.5612371948 | J104: =J101/J95*100-100 -> 0.8466020245 | K104: 0.8550044367 | L104: =L101/L95*100-100 -> 1.493386947 | M104: 1.590259727
B106: 2020-01-01 | C106: 2020-02-01 | D106: 2020-03-01 | E106: 2020-04-01 | F106: 2020-05-01 | G106: 2020-06-01 | H106: 2020-07-01 | I106: 2020-08-01 | J106: 2020-09-01 | K106: 2020-10-01 | L106: 2020-11-01 | M106: 2020-12-01
A107: HP | B107: 313288.2711 | C107: 315833.3158 | D107: 315870.5618 | E107: 312996.3552 | F107: 310366.8032 | G107: 311008.3419 | H107: 315179.046 | I107: 320334.636 | J107: 324634.0669 | K107: 329708.9594 | L107: 332262.2463 | M107: 337457.6907
A108: Index | B108: 295.8663063 | C108: 298.2216619 | D108: 298.2087112 | E108: 295.2186592 | F108: 292.362347 | G108: 292.3681874 | H108: 295.542693 | I108: 300.0823799 | J108: 304.4265038 | K108: 309.884912 | L108: 313.4795293 | M108: 317.1374246
A109: Monthly% | B109: =B107/M101*100-100 -> 0.4487735646 | C109: =+C107/B107*100-100 -> 0.8123651225 | D109: =+D107/C107*100-100 -> 0.01179295115 | E109: =+E107/D107*100-100 -> -0.9099317909 | F109: =+F107/E107*100-100 -> -0.8401222477 | G109: 0.2067033859 | H109: 1.341026445 | I109: 1.635765478 | J109: 1.342168602 | K109: 1.563265538 | L109: 0.7744062885 | M109: 1.563657765
A110: Annual% | B110: =B107/B101*100-100 -> 1.902279572 | C110: 2.26407316 | D110: =D107/D101*100-100 -> 2.558955077 | E110: 1.883182307 | F110: 1.033994016 | G110: =G107/G101*100-100 -> 1.321892271 | H110: 2.872744898 | I110: =I107/I101*100-100 -> 4.617357754 | J110: 5.434839912 | K110: =K107/K101*100-100 -> 6.363173356 | L110: 6.842416506 | M110: =M107/M101*100-100 -> 8.198149396
B112: 2021-01-01 | C112: 2021-02-01 | D112: 2021-03-01 | E112: 2021-04-01 | F112: 2021-05-01 | G112: 2021-06-01 | H112: 2021-07-01 | I112: 2021-08-01 | J112: 2021-09-01 | K112: 2021-10-01 | L112: 2021-11-01 | M112: 2021-12-01
A113: HP | B113: 340482.6044 | C113: 346729.107 | D113: 341707.273 | E113: 337433.1308 | F113: 339829.4679 | G113: 335540.8688 | H113: 336483.177 | I113: 331884.8078 | J113: 342436.0096 | K113: 348615.9785 | L113: 350863.9441 | M113: 356173.0298
A114: Index | B114: 319.6950169 | C114: 325.4758843 | D114: 320.7570447 | E114: 316.7692268 | F114: 319.1812265 | G114: 315.7285087 | H114: 316.6799246 | I114: 312.4945788 | J114: 321.4949255 | K114: 328.3143374 | L114: 332.5290335 | M114: 338.2497376
A115: Monthly% | B115: =B113/M107*100-100 -> 0.8963830847 | C115: =+C113/B113*100-100 -> 1.83460258 | D115: -1.448345098 | E115: -1.250819804 | F115: 0.7101665226 | G115: -1.26198563 | H115: 0.2808326181 | I115: -1.366597061 | J115: 3.179175893 | K115: 1.804707655 | L115: 0.6448257412 | M115: 1.51314655
A116: Annual% | B116: =B113/B107*100-100 -> 8.680290889 | C116: 9.78230912 | D116: =D113/D107*100-100 -> 8.179524869 | E116: 7.807367458 | F116: =F113/F107*100-100 -> 9.492853109 | G116: 7.888060762 | H116: =H113/H107*100-100 -> 6.759374188 | I116: 3.605658129 | J116: =J113/J107*100-100 -> 5.483695198 | K116: 5.73445719 | L116: =L113/L107*100-100 -> 5.598498772 | M116: 5.545980887
B118: 2022-01-01 | C118: 2022-02-01 | D118: 2022-03-01 | E118: 2022-04-01 | F118: 2022-05-01 | G118: 2022-06-01 | H118: 2022-07-01 | I118: 2022-08-01 | J118: 2022-09-01 | K118: 2022-10-01 | L118: 2022-11-01 | M118: 2022-12-01
A119: HP | B119: 359955.3355 | C119: 364489.187 | D119: 364839.0863 | E119: 365587.0602 | F119: 366560.9027 | G119: 368503.3589 | H119: 370892.8035
A120: Index | B120: =M114*B119/M113 -> 341.8417106 | C120: =+B120/B119*C119 -> 346.1474103 | D120: 346.4797019 | E120: 347.1900364 | F120: 348.1148734 | G120: 349.9595816 | H120: 352.2287848
A121: Monthly% | B121: =B119/M113*100-100 -> 1.061929295 | C121: =+C119/B119*100-100 -> 1.259559465 | D121: 0.09599716406 | E121: 0.2050147413 | F121: 0.2663777301 | G121: 0.5299136444 | H121: 0.6484186704
A122: Annual% | B122: =B119/B113*100-100 -> 5.719155947 | C122: 5.122177402 | D122: =D119/D113*100-100 -> 6.769482274 | E122: 8.343558133 | F122: =F119/F113*100-100 -> 7.866132085 | G122: 9.823688605 | H122: =H119/H113*100-100 -> 10.22625463

Sheet SERIES CHARTS
B2: e.surv Acadata E&W HPI NATIONAL AND REGIONAL FORMATTED DATA FROM 2005
B3: A TRUE MEASURE OF HOUSE PRICE INFLATION | M3: =SERIES!$K$3 -> JULY 2022
B4: For data prior to 2005 please see | E4: APAT LGA
O5: © Acadata Limited
O6: e.surv Acadata E&W HPI clb/cms
O7: www.acadata.co.uk

Sheet DATA
B2: e.surv Acadata E&W HPI NATIONAL AND REGIONAL FORMATTED DATA FROM 2005
B3: A TRUE MEASURE OF HOUSE PRICE INFLATION
B4: For data prior to 2005 please see | E4: APAT LGA | H4: =SERIES!$K$3 -> JULY 2022
B5: In this e.surv Acadata Data Series, new weights have been adopted from April 2004 and prices on and after this date have been recalculated based on these new weights. The Index however remains based on the original weights and has not been re-cast. There is therefore discontinuity between the recalculated prices and the original Index.
H6: e.surv Acadata E&W HPI clb/cms
D9: Month | E9: Average House Price | F9: Index | G9: Monthly% | H9: Annual%
D10: 2005-01-01 | E10: 189930.2693 | F10: 194.6273523 | G10: 0.3924021256 | H10: 12.50281927
D11: 2005-02-01 | E11: 191085.6257 | F11: 195.7195186 | G11: 0.608305535 | H11: 11.62178388
D12: 2005-03-01 | E12: 190886.8538 | F12: 195.6551615 | G12: -0.104022384 | H12: 10.05655723
D13: 2005-04-01 | E13: 190951.9826 | F13: 195.7536815 | G13: 0.03411906082 | H13: 8.813701224
D14: 2005-05-01 | E14: 190420.781 | F14: 195.1941451 | G14: -0.2781859609 | H14: 7.109310019
D15: 2005-06-01 | E15: 191020.4565 | F15: 195.7926608 | G15: 0.3149212237 | H15: 6.18312362
D16: 2005-07-01 | E16: 191043.7486 | F16: 195.8667879 | G16: 0.01219352941 | H16: 4.957068809
D17: 2005-08-01 | E17: 191368.1439 | F17: 196.1748084 | G17: 0.1698015602 | H17: 3.964978113
D18: 2005-09-01 | E18: 191936.5357 | F18: 196.7364411 | G18: 0.2970148784 | H18: 3.367198856
D19: 2005-10-01 | E19: 193079.1634 | F19: 197.9376874 | G19: 0.5953153663 | H19: 3.055646302
D20: 2005-11-01 | E20: 193874.8104 | F20: 198.8839387 | G20: 0.4120833132 | H20: 3.046459948
D21: 2005-12-01 | E21: 195504.4016 | F21: 200.6449221 | G21: 0.8405378488 | H21: 3.338749396
D22: 2006-01-01 | E22: 196419.7965 | F22: 201.6606224 | G22: =+E22/E21*100-100 -> 0.4682221441 | H22: =+E22/E10*100-100 -> 3.416794604
D23: 2006-02-01 | E23: 198099.1045 | F23: 203.3743721 | G23: =+E23/E22*100-100 -> 0.8549586212 | H23: =+E23/E11*100-100 -> 3.670333031
D24: 2006-03-01 | E24: 199192.9486 | F24: 204.5109404 | G24: =+E24/E23*100-100 -> 0.5521701542 | H24: =+E24/E12*100-100 -> 4.351318398
D25: 2006-04-01 | E25: 200469.6191 | F25: 205.8608886 | G25: 0.640921514 | H25: 4.984308788
D26: 2006-05-01 | E26: 201289.8114 | F26: 206.8261824 | G26: 0.4091354558 | H26: 5.707901359
D27: 2006-06-01 | E27: 201857.5025 | F27: 207.510648 | G27: 0.2820267777 | H27: 5.673238491
D28: 2006-07-01 | E28: 202766.4802 | F28: 208.3876235 | G28: 0.4503065947 | H28: 6.13615031
D29: 2006-08-01 | E29: 203970.999 | F29: 209.5672334 | G29: 0.5940423757 | H29: 6.585659906
D30: 2006-09-01 | E30: 205728.6187 | F30: 211.3531339 | G30: 0.8617007784 | H30: 7.185751737
D31: 2006-10-01 | E31: 207736.2117 | F31: 213.4431741 | G31: 0.9758452845 | H31: 7.591211824
D32: 2006-11-01 | E32: 209288.9704 | F32: 215.1395739 | G32: 0.7474665658 | H32: 7.950573859
D33: 2006-12-01 | E33: 211480.2145 | F33: 217.4753687 | G33: 1.046994531 | H33: 8.17158733
D34: 2007-01-01 | E34: 213246.9616 | F34: 219.4963176 | G34: 0.8354195835 | H34: 8.566939502
D35: 2007-02-01 | E35: 215788.0172 | F35: 222.2308868 | G35: 1.191602212 | H35: 8.929324901
D36: 2007-03-01 | E36: 217102.6637 | F36: 223.6998581 | G36: 0.6092305428 | H36: 8.991139077
D37: 2007-04-01 | E37: 218866.7871 | F37: 225.5798747 | G37: 0.8125756566 | H37: 9.177035433
D38: 2007-05-01 | E38: 220010.892 | F38: 226.8685956 | G38: 0.5227403283 | H38: 9.30056048
D39: 2007-06-01 | E39: 221740.8163 | F39: 228.8121942 | G39: 0.7862902895 | H39: 9.850173269
D40: 2007-07-01 | E40: 222494.8072 | F40: 229.7011053 | G40: 0.3400325106 | H40: 9.729580036
D41: 2007-08-01 | E41: 224264.9829 | F41: 231.6302491 | G41: 0.7956031674 | H41: 9.949445751
D42: 2007-09-01 | E42: 225942.18 | F42: 233.3844212 | G42: 0.7478640049 | H42: 9.825352165
D43: 2007-10-01 | E43: 227237.3216 | F43: 234.663941 | G43: 0.5732181651 | H43: 9.387438869
D44: 2007-11-01 | E44: 226939.2522 | F44: 234.3124214 | G44: -0.1311709711 | H44: 8.433450515
D45: 2007-12-01 | E45: 227136.0188 | F45: 234.5554226 | G45: 0.08670451612 | H45: 7.402964054
D46: 2008-01-01 | E46: 227489.5476 | F46: 235.0860769 | G46: 0.1556463285 | H46: 6.678916266
D47: 2008-02-01 | E47: 228387.2343 | F47: 236.0262065 | G47: 0.3946056491 | H47: 5.838700994
D48: 2008-03-01 | E48: 227766.9026 | F48: 235.3635725 | G48: -0.2716139821 | H48: 4.912071898
D49: 2008-04-01 | E49: 227291.9836 | F49: 234.9646059 | G49: -0.2085109783 | H49: 3.849463253
D50: 2008-05-01 | E50: 225793.564 | F50: 233.5998212 | G50: -0.6592487788 | H50: 2.628357124
D51: 2008-06-01 | E51: 224030.9092 | F51: 231.7023164 | G51: -0.780648813 | H51: 1.03277914
D52: 2008-07-01 | E52: 220818.939 | F52: 228.2902382 | G52: -1.433717416 | H52: -0.7532167386
D53: 2008-08-01 | E53: 217918.0581 | F53: 225.1524361 | G53: -1.31369207 | H53: -2.830100657
D54: 2008-09-01 | E54: 214299.2407 | F54: 221.4854194 | G54: -1.660632192 | H54: -5.1530614
D55: 2008-10-01 | E55: 210335.457 | F55: 217.4847387 | G55: -1.849648964 | H55: -7.437979135
D56: 2008-11-01 | E56: 205743.0704 | F56: 212.7583728 | G56: -2.183363041 | H56: -9.340024518
D57: 2008-12-01 | E57: 202506.2353 | F57: 209.3227504 | G57: -1.573241371 | H57: -10.84362736
D58: 2009-01-01 | E58: 201009.9752 | F58: 207.6515445 | G58: -0.7388711094 | H58: -11.63990728
D59: 2009-02-01 | E59: 199680.3361 | F59: 206.212217 | G59: -0.6614791921 | H59: -12.56939701
D60: 2009-03-01 | E60: 198010.4347 | F60: 204.5761324 | G60: -0.8362873549 | H60: -13.06443894
D61: 2009-04-01 | E61: 197218.6954 | F61: 203.859941 | G61: -0.3998472682 | H61: -13.23112578
D62: 2009-05-01 | E62: 197746.8556 | F62: 204.5718708 | G62: 0.2678043697 | H62: -12.42139406
D63: 2009-06-01 | E63: 199288.4932 | F63: 206.246616 | G63: 0.7796015483 | H63: -11.04419747
D64: 2009-07-01 | E64: 200945.8438 | F64: 207.9057217 | G64: 0.8316338781 | H64: -8.999724076
D65: 2009-08-01 | E65: 203234.3446 | F65: 210.2088433 | G65: 1.138864447 | H65: -6.738181169
D66: 2009-09-01 | E66: 205824.4794 | F66: 213.0717725 | G66: 1.274457229 | H66: -3.954638992
D67: 2009-10-01 | E67: 208213.1339 | F67: 215.5477441 | G67: 1.160529855 | H67: -1.009018235
D68: 2009-11-01 | E68: 208632.7172 | F68: 216.1690895 | G68: 0.2015162339 | H68: 1.404492883
D69: 2009-12-01 | E69: 214724.7035 | F69: 220.4351526 | G69: 2.91995734 | H69: 6.033625683
D70: 2010-01-01 | E70: 219735.973 | F70: 223.8820655 | G70: 2.333811329 | H70: 9.315954458
D71: 2010-02-01 | E71: 225139.0459 | F71: 227.5437122 | G71: 2.458893196 | H71: 12.74973305
D72: 2010-03-01 | E72: 223698.5295 | F72: 226.2066132 | G72: -0.6398340865 | H72: 12.97310159
D73: 2010-04-01 | E73: 222947.3077 | F73: 225.3705733 | G73: -0.3358188567 | H73: 13.04572686
D74: 2010-05-01 | E74: 223145.1379 | F74: 225.6158466 | G74: 0.08873407313 | H74: 12.84383621
D75: 2010-06-01 | E75: 223915.5298 | F75: 226.4959378 | G75: 0.3452425153 | H75: 12.35748045
D76: 2010-07-01 | E76: 224619.1116 | F76: 227.2420623 | G76: 0.3142175085 | H76: 11.78091933
D77: 2010-08-01 | E77: 225382.2435 | F77: 228.0314574 | G77: 0.3397448824 | H77: 10.89771464
D78: 2010-09-01 | E78: 225259.2054 | F78: 227.9339884 | G78: -0.05459086567 | H78: 9.442378318
D79: 2010-10-01 | E79: 224351.775 | F79: 227.0859979 | G79: -0.4028383229 | H79: 7.751019723
D80: 2010-11-01 | E80: 222664.7229 | F80: 225.5648775 | G80: -0.7519673458 | H80: 6.725697634
D81: 2010-12-01 | E81: 222757.5171 | F81: 225.5958923 | G81: 0.04167441774 | H81: 3.740982513
D82: 2011-01-01 | E82: 223212.4806 | F82: 226.2144869 | G82: 0.2042415885 | H82: 1.582129497
D83: 2011-02-01 | E83: 224869.9521 | F83: 228.0390153 | G83: 0.7425532394 | H83: -0.1195233543
D84: 2011-03-01 | E84: 225057.0716 | F84: 228.5029086 | G84: 0.08321232334 | H84: 0.6073093698
D85: 2011-04-01 | E85: 222847.0427 | F85: 226.1624434 | G85: -0.9819859814 | H85: -0.04497247379
D86: 2011-05-01 | E86: 220007.0547 | F86: 223.1024502 | G86: -1.274411369 | H86: -1.406296917
D87: 2011-06-01 | E87: 218400.8144 | F87: 221.4193565 | G87: -0.7300858017 | H87: -2.462855236
D88: 2011-07-01 | E88: 219579.3582 | F88: 222.7809651 | G88: =+E88/E87*100-100 -> 0.5396242563 | H88: =+E88/E76*100-100 -> -2.24368859
D89: 2011-08-01 | E89: 221158.1813 | F89: 224.5134764 | G89: 0.7190216314 | H89: -1.874177027
D90: 2011-09-01 | E90: 221112.6987 | F90: 224.4719429 | G90: -0.02056563354 | H90: -1.840771252
D91: 2011-10-01 | E91: 221344.6327 | F91: 224.8405596 | G91: 0.1048940091 | H91: -1.3403693
D92: 2011-11-01 | E92: 219950.2147 | F92: 223.5791883 | G92: -0.6299759514 | H92: -1.219101143
D93: 2011-12-01 | E93: 220015.6035 | F93: 223.8222335 | G93: 0.02972889834 | H93: -1.230896119
D94: 2012-01-01 | E94: 220695.5786 | F94: 224.583729 | G94: 0.3090576605 | H94: -1.127581236
D95: 2012-02-01 | E95: 221485.588 | F95: 225.4728947 | G95: 0.3579634297 | H95: -1.505031713
D96: 2012-03-01 | E96: 223372.215 | F96: 227.4658434 | G96: 0.8518057254 | H96: -0.7486353001
D97: 2012-04-01 | E97: 224184.3972 | F97: 228.5751607 | G97: 0.3636003715 | H97: 0.6001221272
D98: 2012-05-01 | E98: 226333.3862 | F98: 231.1096648 | G98: 0.9585810005 | H98: 2.875513018
D99: 2012-06-01 | E99: 226293.5286 | F99: 231.2511358 | G99: -0.01761013319 | H99: 3.613866632
D100: 2012-07-01 | E100: 226093.4075 | F100: 231.2817902 | G100: -0.08843429172 | H100: 2.966603674
D101: 2012-08-01 | E101: 225602.1313 | F101: 230.6121911 | G101: -0.2172890403 | H101: 2.009398885
D102: 2012-09-01 | E102: 225755.3688 | F102: 231.1264234 | G102: 0.06792375736 | H102: 2.099684948
D103: 2012-10-01 | E103: 226124.2486 | F103: 231.5027243 | G103: 0.163398057 | H103: 2.159354807
D104: 2012-11-01 | E104: 226098.315 | F104: 231.7470449 | G104: -0.0114687652 | H104: 2.795223578
D105: 2012-12-01 | E105: 226818.3849 | F105: 232.3455764 | G105: 0.3184764583 | H105: 3.091954063
D106: 2013-01-01 | E106: 227489.2901 | F106: 233.2596034 | G106: 0.2957895934 | H106: 3.078317897
D107: 2013-02-01 | E107: 229463.1032 | F107: 235.1989609 | G107: 0.8676510261 | H107: 3.601821347
D108: 2013-03-01 | E108: 230305.483 | F108: 236.286859 | G108: 0.3671090444 | H108: 3.103908012
D109: 2013-04-01 | E109: 230924.4862 | F109: 236.8967075 | G109: 0.2687748209 | H109: 3.006493363
D110: 2013-05-01 | E110: 230753.0985 | F110: 236.8215354 | G110: -0.07421806015 | H110: 1.952744306
D111: 2013-06-01 | E111: 231074.1043 | F111: 237.0157063 | G111: 0.139112244 | H111: 2.112555213
D112: 2013-07-01 | E112: 232034.2432 | F112: 237.8880934 | G112: 0.4155112486 | H112: 2.627602359
D113: 2013-08-01 | E113: 233534.2653 | F113: 239.4931005 | G113: 0.6464658381 | H113: 3.515983636
D114: 2013-09-01 | E114: 234997.1067 | F114: 240.7860848 | G114: 0.6263926279 | H114: 4.093695777
D115: 2013-10-01 | E115: 236415.5595 | F115: 242.1151601 | G115: 0.6036043278 | H115: 4.551175241
D116: 2013-11-01 | E116: 237336.6019 | F116: 242.8982552 | G116: 0.3895862007 | H116: 4.970531016
D117: 2013-12-01 | E117: 239549.3018 | F117: 244.0571436 | G117: 0.9323045602 | H117: 5.612824082
D118: 2014-01-01 | E118: 242788.4282 | F118: 247.8155064 | G118: 1.352175239 | H118: 6.725212467
D119: 2014-02-01 | E119: 245120.3163 | F119: 250.1686227 | G119: 0.9604609801 | H119: 6.823412058
D120: 2014-03-01 | E120: 247519.5636 | F120: 252.7688035 | G120: 0.9788039358 | H120: 7.474455373
D121: 2014-04-01 | E121: 248767.2187 | F121: 254.3262087 | G121: 0.5040632471 | H121: 7.726652486
D122: 2014-05-01 | E122: 251281.3278 | F122: 257.2464787 | G122: 1.01062714 | H122: 8.89618791
D123: 2014-06-01 | E123: 253272.3276 | F123: 260.069332 | G123: 0.7923389447 | H123: 9.606538701
D124: 2014-07-01 | E124: 255120.1434 | F124: 261.52957 | G124: 0.7295766709 | H124: 9.949350518
D125: 2014-08-01 | E125: 257063.3943 | F125: 263.4723034 | G125: 0.7617003077 | H125: 10.07523626
D126: 2014-09-01 | E126: 258408.2138 | F126: 264.9046899 | G126: 0.5231470319 | H126: 9.962295877
D127: 2014-10-01 | E127: 259235.5339 | F127: 266.0700496 | G127: 0.3201601409 | H127: 9.652484178
D128: 2014-11-01 | E128: 259145.0693 | F128: 266.3469179 | G128: -0.03489667572 | H128: 9.188834475
D129: 2014-12-01 | E129: 259672.9569 | F129: 265.6588618 | G129: 0.2037034746 | H129: 8.40063189
D130: 2015-01-01 | E130: 261053.0096 | F130: 266.9283519 | G130: 0.5314579977 | H130: 7.522838519
D131: 2015-02-01 | E131: 262254.4215 | F131: 267.8797863 | G131: 0.4602176203 | H131: 6.9900796
D132: 2015-03-01 | E132: 262921.347 | F132: 268.3067829 | G132: 0.2543047576 | H132: 6.222450932
D133: 2015-04-01 | E133: 263444.8357 | F133: 269.154968 | G133: 0.199104674 | H133: 5.900141107
D134: 2015-05-01 | E134: 264684.3996 | F134: 270.3396122 | G134: 0.4705212687 | H134: 5.333890906
D135: 2015-06-01 | E135: 266052.1675 | F135: 272.1630768 | G135: 0.5167542323 | H135: 5.045888759
D136: 2015-07-01 | E136: 267412.6105 | F136: 273.2768059 | G136: 0.5113444414 | H136: 4.818305171
D137: 2015-08-01 | E137: 269933.2375 | F137: 276.2881506 | G137: 0.9425984051 | H137: 5.006486116
D138: 2015-09-01 | E138: 271930.066 | F138: 278.1160951 | G138: 0.7397490293 | H138: 5.232748577
D139: 2015-10-01 | E139: 274650.4129 | F139: 280.4862979 | G139: 1.00038475 | H139: 5.946283176
D140: 2015-11-01 | E140: 274993.9456 | F140: 280.2939328 | G140: 0.1250800089 | H140: 6.115831694
D141: 2015-12-01 | E141: 277099.1843 | F141: 281.1992468 | G141: 0.7655581757 | H141: 6.710836437
D142: 2016-01-01 | E142: 279266.6403 | F142: 283.6070224 | G142: 0.7821950427 | H142: 6.976985565
D143: 2016-02-01 | E143: 285130.9885 | F143: 289.6191685 | G143: 2.099910017 | H143: 8.723043398
D144: 2016-03-01 | E144: 285361.3038 | F144: 290.0568499 | G144: 0.08077526741 | H144: 8.534855426
D145: 2016-04-01 | E145: 285235.4025 | F145: 289.886402 | G145: -0.04411995856 | H145: 8.271396481
D146: 2016-05-01 | E146: 283251.8958 | F146: 287.6805537 | G146: -0.6953929132 | H146: 7.014956731
D147: 2016-06-01 | E147: 284342.1368 | F147: 288.4834382 | G147: 0.3849016002 | H147: 6.874580096
D148: 2016-07-01 | E148: 284841.8137 | F148: 288.660636 | G148: 0.1757308373 | H148: 6.517719254
D149: 2016-08-01 | E149: 285726.581 | F149: 289.259014 | G149: 0.3106170862 | H149: 5.850833224
D150: 2016-09-01 | E150: 287392.545 | F150: 289.7113087 | G150: 0.583062326 | H150: 5.686196939
D151: 2016-10-01 | E151: 290153.7315 | F151: 290.7009058 | G151: 0.9607717768 | H151: 5.644746161
D152: 2016-11-01 | E152: 291834.9043 | F152: 290.463393 | G152: =+E152/E151*100-100 -> 0.5794076048 | H152: =+E152/E140*100-100 -> 6.124119796
D153: 2016-12-01 | E153: 294112.7581 | F153: 291.3745783 | G153: 0.7805282272 | H153: 6.139885932
D154: 2017-01-01 | E154: 296503.7609 | F154: 293.717394 | G154: 0.8129544563 | H154: 6.17228055
D155: 2017-02-01 | E155: 298266.4614 | F155: 295.4561045 | G155: 0.5944951616 | H155: 4.606820518
D156: 2017-03-01 | E156: 299780.1163 | F156: 297.0779214 | G156: 0.5074841204 | H156: 5.052826819
D157: 2017-04-01 | E157: 299578.8474 | F157: 296.9120858 | G157: -0.06713885003 | H157: 5.028634149
D158: 2017-05-01 | E158: 299486.236 | F158: 296.5527202 | G158: -0.03091385671 | H158: 5.731414511
D159: 2017-06-01 | E159: 298315.6466 | F159: 295.0778387 | G159: -0.39086584 | H159: 4.914329596
D160: 2017-07-01 | E160: 298284.8116 | F160: 294.6765186 | G160: -0.01033637686 | H160: 4.71946087
D161: 2017-08-01 | E161: 298740.0868 | F161: 294.6694209 | G161: 0.1526310453 | H161: 4.55453104
D162: 2017-09-01 | E162: 300542.3878 | F162: 295.3046342 | G162: 0.6033006964 | H162: 4.575568512
D163: 2017-10-01 | E163: 301822.1519 | F163: 294.3450265 | G163: 0.4258181744 | H163: 4.021461445
D164: 2017-11-01 | E164: 302851.6068 | F164: 293.1622923 | G164: 0.3410799541 | H164: 3.774977685
D165: 2017-12-01 | E165: 303798.5552 | F165: 292.0688766 | G165: 0.3126773586 | H165: 3.293225761
D166: 2018-01-01 | E166: 305433.9341 | F166: 294.4487863 | G166: 0.5383103026 | H166: 3.011824618
D167: 2018-02-01 | E167: 306675.5235 | F167: 295.8459106 | G167: 0.4065001357 | H167: 2.81931199
D168: 2018-03-01 | E168: 305951.1914 | F168: 294.9197765 | G168: -0.2361884139 | H168: 2.058533835
D169: 2018-04-01 | E169: 305176.6715 | F169: 292.9244642 | G169: -0.2531514742 | H169: 1.868564535
D170: 2018-05-01 | E170: 304271.4669 | F170: 291.4716024 | G170: -0.2966165653 | H170: 1.5978133
D171: 2018-06-01 | E171: 304689.1015 | F171: 291.0018409 | G171: 0.1372572159 | H171: 2.136480241
D172: 2018-07-01 | E172: 303619.8779 | F172: 290.2357334 | G172: -0.3509228016 | H172: 1.788581295
D173: 2018-08-01 | E173: 304487.553 | F173: 290.7584248 | G173: 0.2857767799 | H173: 1.923901908
D174: 2018-09-01 | E174: 305315.3786 | F174: 291.0582891 | G174: 0.2718750038 | H174: 1.588125651
D175: 2018-10-01 | E175: 307356.2224 | F175: 292.8236948 | G175: 0.6684379269 | H175: 1.833553434
D176: 2018-11-01 | E176: 306407.6113 | F176: 292.6495486 | G176: -0.3086357277 | H176: 1.174173879
D177: 2018-12-01 | E177: 307006.3984 | F177: 292.3665621 | G177: 0.1954217671 | H177: 1.055911283
D178: 2019-01-01 | E178: 307439.9046 | F178: 292.518554 | G178: 0.1412042842 | H178: 0.6567608458
D179: 2019-02-01 | E179: 308840.9311 | F179: 293.900022 | G179: =+E179/E178*100-100 -> 0.4557074412 | H179: 0.7060907993
D180: 2019-03-01 | E180: 307989.2552 | F180: 292.8707924 | G180: -0.275765256 | H180: =+E180/E168*100-100 -> 0.6661401499
D181: 2019-04-01 | E181: 307211.0118 | F181: 291.8411483 | G181: =+E181/E180*100-100 -> -0.2526852429 | H181: =+E181/E169*100-100 -> 0.666610678
D182: 2019-05-01 | E182: 307190.4721 | F182: 291.5125475 | G182: =+E182/E181*100-100 -> -0.006685858428 | H182: =+E182/E170*100-100 -> 0.9593423847
D183: 2019-06-01 | E183: 306950.7832 | F183: 290.9975946 | G183: -0.07802614726 | H183: =+E183/E171*100-100 -> 0.7422916349
D184: 2019-07-01 | E184: 306377.5991 | F184: 290.1483255 | G184: -0.1867348417 | H184: =+E184/E172*100-100 -> 0.9082808423
D185: 2019-08-01 | E185: 306196.4504 | F185: 289.9899267 | G185: -0.05912595238 | H185: 0.5612371948
D186: 2019-09-01 | E186: 307900.1848 | F186: 291.5733143 | G186: 0.5564187041 | H186: 0.8466020245
D187: 2019-10-01 | E187: 309984.1317 | F187: 293.5709702 | G187: 0.6768254947 | H187: 0.8550044367
D188: 2019-11-01 | E188: 310983.4625 | F188: 294.3482591 | G188: 0.3223812823 | H188: 1.493386947
D189: 2019-12-01 | E189: 311888.5975 | F189: 294.5510737 | G189: 0.2910556738 | H189: 1.590259727
D190: 2020-01-01 | E190: 313288.2711 | F190: 295.8663063 | G190: 0.4487735646 | H190: 1.902279572
D191: 2020-02-01 | E191: 315833.3158 | F191: 298.2216619 | G191: 0.8123651225 | H191: 2.26407316
D192: 2020-03-01 | E192: 315870.5618 | F192: 298.2087112 | G192: 0.01179295115 | H192: 2.558955077
D193: 2020-04-01 | E193: 312996.3552 | F193: 295.2186592 | G193: -0.9099317909 | H193: 1.883182307
D194: 2020-05-01 | E194: 310366.8032 | F194: 292.362347 | G194: -0.8401222477 | H194: 1.033994016
D195: 2020-06-01 | E195: 311008.3419 | F195: 292.3681874 | G195: 0.2067033859 | H195: 1.321892271
D196: 2020-07-01 | E196: 315179.046 | F196: 295.542693 | G196: 1.341026445 | H196: 2.872744898
D197: 2020-08-01 | E197: 320334.636 | F197: 300.0823799 | G197: 1.635765478 | H197: 4.617357754
D198: 2020-09-01 | E198: 324634.0669 | F198: 304.4265038 | G198: 1.342168602 | H198: 5.434839912
D199: 2020-10-01 | E199: 329708.9594 | F199: 309.884912 | G199: 1.563265538 | H199: 6.363173356
D200: 2020-11-01 | E200: 332262.2463 | F200: 313.4795293 | G200: 0.7744062885 | H200: 6.842416506
D201: 2020-12-01 | E201: 337457.6907 | F201: 317.1374246 | G201: 1.563657765 | H201: 8.198149396
D202: 2021-01-01 | E202: 340482.6044 | F202: 319.6950169 | G202: 0.8963830847 | H202: 8.680290889
D203: 2021-02-01 | E203: 346729.107 | F203: 325.4758843 | G203: 1.83460258 | H203: 9.78230912
... 17 more rows

Sheet REGIONS
B2: e.surv Acadata E&W HPI NATIONAL AND REGIONAL FORMATTED DATA FROM 2005
B3: A TRUE MEASURE OF HOUSE PRICE INFLATION
B4: For data prior to 2005 please see | E4: APAT LGA | J4: =SERIES!$K$3 -> JULY 2022
J5: © Acadata Limited
B6: In these e.surv Acadata Data Series, new weights have been adopted from April 2004 and prices on and after this date have been recalculated based on these new weights. | J6: e.surv Acadata E&W HPI clb/cms
A10: Region | B10: North East | E10: North West | H10: Yorks & Humber | K10: East Midlands | N10: West Midlands | Q10: East of England | T10: Greater London | W10: South East | Z10: South West | AC10: Wales | AF10: ENGLAND & WALES
A11: Month | B11: Ave HP | C11: monthly % | D11: annual % | E11: Ave HP | F11: monthly % | G11: annual % | H11: Ave HP | I11: monthly % | J11: annual % | K11: Ave HP | L11: monthly % | M11: annual % | N11: Ave HP | O11: monthly % | P11: annual % | Q11: Ave HP | R11: monthly % | S11: annual % | T11: Ave HP | U11: monthly % | V11: annual % | W11: Ave HP | X11: monthly % | Y11: annual % | Z11: Ave HP | AA11: monthly % | AB11: annual % | AC11: Ave HP | AD11: monthly % | AE11: annual % | AF11: Ave HP | AG11: monthly % | AH11: annual %
A12: 2005-01-01 | B12: 110985.3559 | C12: 2.001006421 | D12: 17.52871587 | E12: 137993.9751 | F12: 0.671762203 | G12: 18.32731994 | H12: 146958.5295 | I12: 1.217632137 | J12: 19.15528639 | K12: 161256.6355 | L12: 0.8780770281 | M12: 14.97835329 | N12: 167122.3603 | O12: -0.02399609093 | P12: 12.67610842 | Q12: 192555.1745 | R12: 0.4069501669 | S12: 11.43177288 | T12: 278752.6303 | U12: 0.2491052952 | V12: 7.50634686 | W12: 237128.2321 | X12: 0.3803337885 | Y12: 9.215026813 | Z12: 203805.728 | AA12: -0.4043382438 | AB12: 12.68649126 | AC12: 143299.2379 | AD12: 0.02653099218 | AE12: 20.02898721 | AF12: 189930.2693 | AG12: 0.3924021256 | AH12: 12.50281927
A13: 2005-02-01 | B13: 112950.8893 | C13: =B13/B12*100-100 -> 1.770984504 | D13: 17.88118297 | E13: 140652.4028 | F13: =E13/E12*100-100 -> 1.926480979 | G13: 18.613677 | H13: 148086.1466 | I13: =H13/H12*100-100 -> 0.767302968 | J13: 17.72628063 | K13: 161561.5262 | L13: =K13/K12*100-100 -> 0.1890717349 | M13: 13.42447368 | N13: 168710.1281 | O13: =N13/N12*100-100 -> 0.9500630641 | P13: 12.32634331 | Q13: 193900.9835 | R13: =Q13/Q12*100-100 -> 0.6989212373 | S13: 10.39996564 | T13: 279544.9486 | U13: =T13/T12*100-100 -> 0.2842370709 | V13: 7.182966439 | W13: 237470.9182 | X13: =W13/W12*100-100 -> 0.1445150691 | Y13: 7.755017513 | Z13: 204653.6849 | AA13: 0.591030347 | AB13: 11.61132935 | AC13: 144312.2346 | AD13: =AC13/AC12*100-100 -> 0.7069100573 | AE13: 18.82600566 | AF13: 191085.6257 | AG13: =AF13/AF12*100-100 -> 0.608305535 | AH13: 11.62178388
A14: 2005-03-01 | B14: 113628.1616 | C14: 0.5996165617 | D14: 16.1570754 | E14: 140030.6715 | F14: -0.4420338994 | G14: 16.49658964 | H14: 148248.7719 | I14: 0.1098180138 | J14: 15.09492119 | K14: 160249.5495 | L14: -0.8120601003 | M14: 11.54229663 | N14: 167671.0597 | O14: -0.6158897538 | P14: 10.20100084 | Q14: 193424.8463 | R14: -0.2455569143 | S14: 9.117804096 | T14: 280813.147 | U14: 0.4536652955 | V14: 6.063172577 | W14: 238011.2909 | X14: 0.2275532206 | Y14: 7.022842274 | Z14: 204007.5396 | AA14: -0.3364909269 | AB14: 9.642561964 | AC14: 143815.4127 | AD14: -0.3442687479 | AE14: 16.11954178 | AF14: 190886.8538 | AG14: -0.104022384 | AH14: 10.05655723
A15: 2005-04-01 | B15: 112620.7458 | C15: -0.8865898232 | D15: 12.46954704 | E15: 140321.9088 | F15: 0.2079810308 | G15: 14.64122265 | H15: 147877.7629 | I15: -0.2502610858 | J15: 12.27610732 | K15: 159153.6914 | L15: -0.6838447353 | M15: 9.654345638 | N15: 168950.4845 | O15: 0.7630563981 | P15: 10.06123745 | Q15: 194710.0575 | R15: 0.6644499308 | S15: 8.681046873 | T15: 280262.3328 | U15: -0.1961497422 | V15: 4.749040584 | W15: 237716.1842 | X15: -0.1239885406 | Y15: 6.166836072 | Z15: 204081.576 | AA15: -0.05655692176 | AB15: 8.257425234 | AC15: 144806.3593 | AD15: 0.6890406431 | AE15: 15.73084316 | AF15: 190951.9826 | AG15: 0.03411906082 | AH15: 8.813701224
A16: 2005-05-01 | B16: 112264.6928 | C16: -0.3161522902 | D16: 9.136917867 | E16: 140128.8652 | F16: -0.1375719483 | G16: 12.06083797 | H16: 147477.0657 | I16: -0.2709651856 | J16: 10.2606177 | K16: 159664.0925 | L16: 0.3206969924 | M16: 8.327058828 | N16: 168967.347 | O16: 0.009980729565 | P16: 8.647062647 | Q16: 194426.7962 | R16: -0.1454785359 | S16: 7.423753659 | T16: 280178.6608 | U16: -0.02985488041 | V16: 4.000878242 | W16: 235833.8543 | X16: -0.7918391692 | Y16: 4.646196952 | Z16: 202732.2924 | AA16: -1.033944516 | AB16: 5.370487016 | AC16: 144914.0072 | AD16: 0.07433918117 | AE16: 13.39860721 | AF16: 190420.781 | AG16: -0.2781859609 | AH16: 7.109310019
A17: 2005-06-01 | B17: 113004.9664 | C17: 0.6594002245 | D17: 8.320101199 | E17: 141429.7673 | F17: 0.928361273 | G17: 10.07983379 | H17: 148366.642 | I17: 0.6031964016 | J17: 9.715179392 | K17: 160259.8583 | L17: 0.3731369739 | M17: 6.840591473 | N17: 171316.0134 | O17: 1.390012016 | P17: 8.20127213 | Q17: 194131.7005 | R17: -0.1517772468 | S17: 5.948121207 | T17: 280031.2934 | U17: -0.05259763775 | V17: 3.800130686 | W17: 236673.1564 | X17: 0.3558870271 | Y17: 4.083118754 | Z17: 201706.5226 | AA17: -0.3836203743 | AB17: 4.070801865 | AC17: 146036.9979 | AD17: 0.7749359298 | AE17: 11.8728853 | AF17: 191020.4565 | AG17: 0.3149212237 | AH17: 6.18312362
A18: 2005-07-01 | B18: 113319.0159 | C18: 0.2779076609 | D18: 8.0589815 | E18: 142541.5383 | F18: 0.7860940483 | G18: 8.596640984 | H18: 148842.5736 | I18: 0.3207807371 | J18: 8.142956693 | K18: 161115.3566 | L18: 0.5338194447 | M18: 5.788322025 | N18: 170083.7476 | O18: -0.7192940019 | P18: 5.342075541 | Q18: 193501.459 | R18: -0.3246463939 | S18: 4.608919243 | T18: 280312.5998 | U18: 0.1004553206 | V18: 3.452633829 | W18: 235993.6663 | X18: -0.2871006134 | Y18: 3.246614028 | Z18: 201251.2192 | AA18: -0.2113758757 | AB18: 2.557077489 | AC18: 147181.2037 | AD18: 0.7835040722 | AE18: 9.646877069 | AF18: 191043.7486 | AG18: 0.01219352941 | AH18: 4.957068809
A19: 2005-08-01 | B19: 113917.9516 | C19: 0.5285394699 | D19: 7.347150835 | E19: 142860.1842 | F19: 0.2235459999 | G19: 6.550394664 | H19: 149735.5446 | I19: 0.5999432354 | J19: 6.627491499 | K19: 161178.6439 | L19: 0.039280736 | M19: 4.50874081 | N19: 169531.3811 | O19: -0.3247615049 | P19: 3.168594551 | Q19: 193765.3647 | R19: 0.136384356 | S19: 3.882741698 | T19: 280247.0814 | U19: -0.02337331522 | V19: 2.94865174 | W19: 236854.9059 | X19: 0.364941827 | Y19: 2.762276561 | Z19: 200967.1066 | AA19: -0.184068822 | AB19: 1.650751737 | AC19: 148739.4757 | AD19: 1.058743833 | AE19: 9.176267747 | AF19: 191368.1439 | AG19: 0.1698015602 | AH19: 3.964978113
A20: 2005-09-01 | B20: 115503.9338 | C20: 1.392214492 | D20: 7.501394253 | E20: 143578.4366 | F20: 0.502765971 | G20: 6.11199689 | H20: 151547.7191 | I20: 1.210250091 | J20: 6.014822868 | K20: 162314.5186 | L20: 0.7047303074 | M20: 3.856407909 | N20: 168927.6822 | O20: -0.356098619 | P20: 2.025815869 | Q20: 194192.3742 | R20: 0.2203745457 | S20: 3.225062695 | T20: 281021.7649 | U20: 0.2764287466 | V20: 2.565997431 | W20: 236623.088 | X20: -0.09787337175 | Y20: 2.359351064 | Z20: 201250.5557 | AA20: 0.1709808307 | AB20: 0.7445429392 | AC20: 149758.0524 | AD20: 0.6848059596 | AE20: 8.14300127 | AF20: 191936.5357 | AG20: 0.2970148784 | AH20: 3.367198856
A21: 2005-10-01 | B21: 117427.2864 | C21: 1.665183584 | D21: 8.14790257 | E21: 144334.4438 | F21: 0.5265464737 | G21: 6.000656347 | H21: 152554.9744 | I21: 0.6646455866 | J21: 5.827107877 | K21: 162597.7013 | L21: 0.1744653797 | M21: 2.915500263 | N21: 170355.0024 | O21: 0.8449297625 | P21: 1.998628719 | Q21: 194826.5927 | R21: 0.3265928687 | S21: 2.982874581 | T21: 283379.2747 | U21: 0.8389064958 | V21: 2.737034222 | W21: 237584.3294 | X21: 0.4062331461 | Y21: 1.746171253 | Z21: 202491.6402 | AA21: 0.5251594947 | AB21: 0.154200855 | AC21: 151407.9292 | AD21: 1.10169487 | AE21: 7.728511115 | AF21: 193079.1634 | AG21: 0.5953153663 | AH21: 3.055646302
A22: 2005-11-01 | B22: 117975.3854 | C22: 0.4667561407 | D22: 8.691490722 | E22: 144706.8702 | F22: 0.2580301972 | G22: 6.676416376 | H22: 153409.7337 | I22: 0.5602959566 | J22: 5.894877959 | K22: 162931.0347 | L22: 0.2050049905 | M22: 2.70100752 | N22: 171531.16 | O22: 0.6904156205 | P22: 3.158633731 | Q22: 194453.6054 | R22: -0.1914457891 | S22: 2.260692791 | T22: 285116.51 | U22: 0.6130424404 | V22: 2.803138542 | W22: 238747.4474 | X22: 0.4895600353 | Y22: 1.30381333 | Z22: 203869.9412 | AA22: 0.7998031783 | AB22: 0.4236156639 | AC22: 151594.2473 | AD22: 0.1230569902 | AE22: 6.928309571 | AF22: 193874.8104 | AG22: 0.4120833132 | AH22: 3.046459948
A23: 2005-12-01 | B23: 118783.9328 | C23: 0.6853526178 | D23: 9.168282619 | E23: 145835.1179 | F23: 0.7796780419 | G23: 6.392168904 | H23: 154341.414 | I23: 0.6073149937 | J23: 6.302591109 | K23: 162186.7879 | L23: -0.456786393 | M23: 1.459956848 | N23: 172483.6799 | O23: 0.5553042909 | P23: 3.183254586 | Q23: 196247.4734 | R23: 0.9225172549 | S23: 2.332281302 | T23: 289236.5447 | U23: 1.445035501 | V23: 4.019484225 | W23: 241011.941 | X23: 0.9484891636 | Y23: 2.02437251 | Z23: 206268.3041 | AA23: 0.9778553549 | AB23: 0.7990719865 | AC23: 152879.2088 | AD23: 0.8476321357 | AE23: 6.71359558 | AF23: 195504.4016 | AG23: 0.8405378488 | AH23: 3.338749396
A24: 2006-01-01 | B24: 119381.571 | C24: =B24/B23*100-100 -> 0.5031304393 | D24: =B24/B12*100-100 -> 7.565155805 | E24: 147034.5298 | F24: =E24/E23*100-100 -> 0.8224438144 | G24: =E24/E12*100-100 -> 6.5514126 | H24: 155979.3131 | I24: =H24/H23*100-100 -> 1.061218118 | J24: =H24/H12*100-100 -> 6.138319181 | K24: 162349.0264 | L24: =K24/K23*100-100 -> 0.1000319007 | M24: =K24/K12*100-100 -> 0.6774238404 | N24: 173898.7715 | O24: =N24/N23*100-100 -> 0.8204206159 | P24: =N24/N12*100-100 -> 4.054760353 | Q24: 196340.236 | R24: =Q24/Q23*100-100 -> 0.04726813941 | S24: =Q24/Q12*100-100 -> 1.965702271 | T24: 290898.9004 | U24: =T24/T23*100-100 -> 0.574739135 | V24: =T24/T12*100-100 -> 4.357365186 | W24: 242749.6153 | X24: =W24/W23*100-100 -> 0.7209909277 | Y24: =W24/W12*100-100 -> 2.370608965 | Z24: 206063.0853 | AA24: =Z24/Z23*100-100 -> -0.09949119398 | AB24: =Z24/Z12*100-100 -> 1.107602491 | AC24: 152477.2025 | AD24: =AC24/AC23*100-100 -> -0.2629568165 | AE24: =AC24/AC12*100-100 -> 6.404754669 | AF24: 196419.7965 | AG24: =AF24/AF23*100-100 -> 0.4682221441 | AH24: =AF24/AF12*100-100 -> 3.416794604
A25: 2006-02-01 | B25: 121566.6953 | C25: 1.830369862 | D25: 7.627922175 | E25: 147840.7737 | F25: 0.5483364231 | G25: 5.110734498 | H25: 157382.8464 | I25: 0.8998201622 | J25: 6.277899698 | K25: 163303.6971 | L25: 0.5880360077 | M25: 1.078332787 | N25: 175212.4572 | O25: 0.7554312367 | P25: 3.854142666 | Q25: 198413.2823 | R25: 1.055843871 | S25: 2.327114952 | T25: 294134.6441 | U25: 1.112325865 | V25: 5.219087499 | W25: 244744.462 | X25: 0.8217713227 | Y25: 3.062919822 | Z25: 207097.5726 | AA25: 0.5020245672 | AB25: 1.194157697 | AC25: 154458.5922 | AD25: 1.299466169 | AE25: 7.030836709 | AF25: 198099.1045 | AG25: 0.8549586212 | AH25: 3.670333031
A26: 2006-03-01 | B26: 120953.0308 | C26: -0.5047965685 | D26: 6.446350172 | E26: 149334.5816 | F26: 1.010416718 | G26: 6.644194422 | H26: 158230.6614 | I26: 0.5386959785 | J26: 6.733202187 | K26: 164933.508 | L26: 0.9980244937 | M26: 2.922915234 | N26: 175910.6554 | O26: 0.3984866354 | P26: 4.914143002 | Q26: 199502.1294 | R26: 0.5487772974 | S26: 3.141935081 | T26: 294463.4247 | U26: 0.111778957 | V26: 4.860982412 | W26: 246311.5369 | X26: 0.6402902329 | Y26: 3.487332873 | Z26: 208404.7227 | AA26: 0.6311759708 | AB26: 2.155402263 | AC26: 155322.7892 | AD26: 0.5595007572 | AE26: 8.00149043 | AF26: 199192.9486 | AG26: 0.5521701542 | AH26: 4.351318398
A27: 2006-04-01 | B27: 121404.4761 | C27: 0.3732401982 | D27: 7.799389154 | E27: 149571.8 | F27: 0.1588502741 | G27: 6.591908068 | H27: 158323.707 | I27: 0.05880373834 | J27: 7.06390459 | K27: 165435.0665 | L27: 0.3040973577 | M27: 3.946735378 | N27: 176617.6257 | O27: 0.4018916978 | P27: 4.538099575 | Q27: 202260.0848 | R27: 1.382419038 | S27: 3.877574356 | T27: 297174.2033 | U27: 0.9205824397 | V27: 6.034300209 | W27: 248092.0896 | X27: 0.7228864597 | Y27: 4.364829218 | Z27: 210433.7099 | AA27: 0.9735802196 | AB27: 3.112546462 | AC27: 154860.677 | AD27: -0.2975173035 | AE27: 6.943284612 | AF27: 200469.6191 | AG27: 0.640921514 | AH27: 4.984308788
A28: 2006-05-01 | B28: 120371.4624 | C28: -0.8508860096 | D28: 7.221121264 | E28: 150487.3068 | F28: 0.6120852074 | G28: 7.39208275 | H28: 158465.9871 | I28: 0.08986657614 | J28: 7.451274802 | K28: 165939.5413 | L28: 0.3049382651 | M28: 3.930407059 | N28: 176997.574 | O28: 0.2151248096 | P28: 4.752531896 | Q28: 202729.8974 | R28: 0.2322814145 | S28: 4.27055393 | T28: 298991.4559 | U28: 0.6115108734 | V28: 6.714570992 | W28: 249675.9606 | X28: 0.6384206095 | Y28: 5.869431423 | Z28: 211778.1342 | AA28: 0.6388825728 | AB28: 4.461963973 | AC28: 154619.6829 | AD28: -0.1556199407 | AE28: 6.697541457 | AF28: 201289.8114 | AG28: 0.4091354558 | AH28: 5.707901359
A29: 2006-06-01 | B29: 121306.4391 | C29: 0.7767428051 | D29: 7.346113098 | E29: 150248.9791 | F29: -0.1583706463 | G29: 6.23575362 | H29: 158068.6298 | I29: -0.2507524426 | J29: 6.5391975 | K29: 166521.3104 | L29: 0.3505910018 | M29: 3.907062048 | N29: 178019.2878 | O29: 0.5772473334 | P29: 3.912812513 | Q29: 203774.2713 | R29: 0.5151553439 | S29: 4.967025322 | T29: 301054.1528 | U29: 0.6898848981 | V29: 7.507325014 | W29: 250231.526 | X29: 0.2225145499 | Y29: 5.728731473 | Z29: 211730.541 | AA29: -0.02247316287 | AB29: 4.969605436 | AC29: 155018.0253 | AD29: 0.2576271917 | AE29: 6.149830164 | AF29: 201857.5025 | AG29: 0.2820267777 | AH29: 5.673238491
A30: 2006-07-01 | B30: 120373.6195 | C30: -0.7689777525 | D30: 6.225436743 | E30: 151064.1389 | F30: 0.5425393459 | G30: 5.979029539 | H30: 158598.7262 | I30: 0.3353584305 | J30: 6.554678797 | K30: 167434.3531 | L30: 0.5483038436 | M30: 3.922032446 | N30: 178178.088 | O30: 0.08920391885 | P30: 4.759032249 | Q30: 204353.0512 | R30: 0.2840299245 | S30: 5.608015699 | T30: 302817.7184 | U30: 0.58579683 | V30: 8.028579061 | W30: 251849.8794 | X30: 0.646742398 | Y30: 6.718914665 | Z30: 212646.1399 | AA30: 0.4324359487 | AB30: 5.66203811 | AC30: 156222.9136 | AD30: 0.7772569462 | AE30: 6.143250403 | AF30: 202766.4802 | AG30: 0.4503065947 | AH30: 6.13615031
A31: 2006-08-01 | B31: 120228.4543 | C31: -0.1205955837 | D31: 5.539515562 | E31: 152634.0121 | F31: 1.039209709 | G31: 6.841533928 | H31: 159522.0046 | I31: 0.5821473832 | J31: 6.535829568 | K31: 167682.6981 | L31: 0.1483238048 | M31: 4.035307724 | N31: 179373.7718 | O31: 0.6710610693 | P31: 5.805645337 | Q31: 206895.9896 | R31: 1.244384863 | S31: 6.776559338 | T31: 304881.4432 | U31: 0.6815072521 | V31: 8.790229545 | W31: 252667.9495 | X31: 0.3248244936 | Y31: 6.676257556 | Z31: 213564.4917 | AA31: 0.4318685482 | AB31: 6.268381623 | AC31: 157001.7951 | AD31: 0.4985705521 | AE31: 5.554893468 | AF31: 203970.999 | AG31: 0.5940423757 | AH31: 6.585659906
A32: 2006-09-01 | B32: 121538.5425 | C32: 1.089665737 | D32: 5.224591491 | E32: 153632.4835 | F32: 0.6541604701 | G32: 7.002476966 | H32: 161548.5812 | I32: 1.270405691 | J32: 6.599150494 | K32: 169428.7618 | L32: 1.041290321 | M32: 4.382998686 | N32: 180440.1572 | O32: 0.5945046354 | P32: 6.815031656 | Q32: 208027.0036 | R32: 0.546658236 | S32: 7.124187752 | T32: 308042.1 | U32: 1.036683899 | V32: 9.615032877 | W32: 254918.1556 | X32: 0.8905783835 | Y32: 7.731733926 | Z32: 215492.8214 | AA32: 0.9029261493 | AB32: 7.076882633 | AC32: 157924.3766 | AD32: 0.5876248396 | AE32: 5.453011732 | AF32: 205728.6187 | AG32: 0.8617007784 | AH32: 7.185751737
A33: 2006-10-01 | B33: 123296.397 | C33: 1.446335004 | D33: =B33/B21*100-100 -> 4.998080785 | E33: 155356.5226 | F33: 1.122183966 | G33: =E33/E21*100-100 -> 7.636485488 | H33: 163882.0955 | I33: 1.444465978 | J33: 7.424943808 | K33: 170031.7804 | L33: 0.3559127313 | M33: =K33/K21*100-100 -> 4.572069011 | N33: 181408.9705 | O33: 0.5369166783 | P33: =N33/N21*100-100 -> 6.488783947 | Q33: 209931.9564 | R33: 0.9157238418 | S33: =Q33/Q21*100-100 -> 7.753235098 | T33: 310599.3335 | U33: 0.8301571626 | V33: =T33/T21*100-100 -> 9.605522079 | W33: 257159.3753 | X33: 0.8791918799 | Y33: =W33/W21*100-100 -> 8.239199079 | Z33: 218325.3151 | AA33: 1.314426046 | AB33: =Z33/Z21*100-100 -> 7.819421536 | AC33: 160914.285 | AD33: 1.893253255 | AE33: =AC33/AC21*100-100 -> 6.278638007 | AF33: 207736.2117 | AG33: 0.9758452845 | AH33: =AF33/AF21*100-100 -> 7.591211824
A34: 2006-11-01 | B34: 124736.1789 | C34: 1.167740464 | D34: 5.730681413 | E34: 155402.7619 | F34: 0.02976337084 | G34: 7.391419443 | H34: 165077.9515 | I34: 0.7297051232 | J34: 7.605917522 | K34: 171644.8608 | L34: 0.9486935103 | M34: 5.34816844 | N34: 181920.767 | O34: 0.2821230761 | P34: 6.056979427 | Q34: 210074.3255 | R34: 0.06781678577 | S34: 8.033134766 | T34: 315156.3612 | U34: 1.467172391 | V34: 10.5359915 | W34: 259247.7445 | X34: 0.8120913953 | Y34: 8.586603686 | Z34: 220463.8601 | AA34: 0.9795222009 | AB34: 8.139463202 | AC34: 162407.798 | AD34: 0.9281419808 | AE34: 7.133219747 | AF34: 209288.9704 | AG34: 0.7474665658 | AH34: 7.950573859
A35: 2006-12-01 | B35: 125356.6746 | C35: 0.4974463998 | D35: 5.533359241 | E35: 157291.2073 | F35: 1.215194203 | G35: 7.855508033 | H35: 166200.7739 | I35: 0.6801770439 | J35: 7.683848115 | K35: 171846.2659 | L35: 0.1173382624 | M35: 5.955773708 | N35: 183146.8388 | O35: 0.6739592193 | P35: 6.182126314 | Q35: 212210.1211 | R35: 1.016685682 | S35: 8.133937943 | T35: 320857.4079 | U35: 1.808958143 | V35: 10.93252692 | W35: 261719.1003 | X35: 0.9532795815 | Y35: 8.591756564 | Z35: 223938.9939 | AA35: 1.576282747 | AB35: 8.566846865 | AC35: 163182.3462 | AD35: 0.4769156283 | AE35: 6.739397382 | AF35: 211480.2145 | AG35: 1.046994531 | AH35: 8.17158733
A36: 2007-01-01 | B36: 127174.1404 | C36: 1.449835719 | D36: 6.527447564 | E36: 157783.0038 | F36: 0.3126662254 | G36: 7.310169924 | H36: 166353.2932 | I36: 0.09176813947 | J36: 6.650869232 | K36: 173758.3088 | L36: 1.112647302 | M36: 7.027625997 | N36: 184966.4886 | O36: 0.9935469506 | P36: 6.364459637 | Q36: 213828.1954 | R36: 0.7624868452 | S36: 8.906966698 | T36: 326595.0912 | U36: 1.788234653 | V36: 12.27099546 | W36: 264243.7019 | X36: 0.9646225934 | Y36: 8.854426642 | Z36: 224049.6816 | AA36: 0.04942761734 | AB36: 8.728684336 | AC36: 163786.7118 | AD36: 0.3703620835 | AE36: 7.417180436 | AF36: 213246.9616 | AG36: 0.8354195835 | AH36: 8.566939502
A37: 2007-02-01 | B37: 128499.4209 | C37: 1.042099021 | D37: 5.702816555 | E37: 159964.3276 | F37: 1.382483364 | G37: 8.200412898 | H37: 167358.2072 | I37: 0.6040842153 | J37: 6.338277042 | K37: 175610.4561 | L37: 1.065933077 | M37: 7.53611777 | N37: 185412.569 | O37: 0.2411682031 | P37: 5.821567716 | Q37: 216876.1373 | R37: 1.425416269 | S37: 9.305251521 | T37: 332362.2341 | U37: 1.765838817 | V37: 12.99662954 | W37: 267996.2491 | X37: 1.420108479 | Y37: 9.500434415 | Z37: 226272.494 | AA37: 0.992106918 | AB37: 9.258882703 | AC37: 164772.1595 | AD37: 0.6016652817 | AE37: 6.677237703 | AF37: 215788.0172 | AG37: 1.191602212 | AH37: 8.929324901
A38: 2007-03-01 | B38: 128238.7897 | C38: -0.2028267297 | D38: 6.023626618 | E38: 160401.3445 | F38: 0.273196489 | G38: 7.410716788 | H38: 167266.4164 | I38: -0.0548468802 | J38: 5.710495625 | K38: 176384.4256 | L38: 0.4407308726 | M38: 6.942747823 | N38: 185901.8354 | O38: 0.2638798484 | P38: 5.679690067 | Q38: 218714.6704 | R38: 0.8477341736 | S38: 9.630243604 | T38: 336091.2081 | U38: 1.121960811 | V38: 14.13682649 | W38: 270508.8467 | X38: 0.9375495583 | Y38: 9.823863781 | Z38: 227242.8704 | AA38: 0.4288530252 | AB38: 9.039213413 | AC38: 165296.9377 | AD38: 0.3184871467 | AE38: 6.42156155 | AF38: 217102.6637 | AG38: 0.6092305428 | AH38: 8.991139077
A39: 2007-04-01 | B39: 127602.7753 | C39: -0.4959610063 | D39: 5.105494815 | E39: 161075.0705 | F39: 0.4200251792 | G39: 7.69080171 | H39: 168901.8997 | I39: 0.9777714403 | J39: 6.681370027 | K39: 176801.0621 | L39: 0.2362093692 | M39: 6.870366652 | N39: 186443.1711 | O39: 0.291194366 | P39: 5.563173739 | Q39: 220139.0994 | R39: 0.6512727053 | S39: 8.839615887 | T39: 340056.7888 | U39: 1.179912062 | V39: 14.43011711 | W39: 273137.4657 | X39: 0.9717312449 | Y39: 10.09519333 | Z39: 231434.3035 | AA39: 1.844472858 | AB39: 9.979671778 | AC39: 164669.4421 | AD39: -0.3796172042 | AE39: 6.333928831 | AF39: 218866.7871 | AG39: 0.8125756566 | AH39: 9.177035433
A40: 2007-05-01 | B40: 127538.1799 | C40: -0.05062225596 | D40: 5.953834396 | E40: 161161.8848 | F40: 0.05389679104 | G40: 7.093341098 | H40: 169421.0325 | I40: 0.3073575877 | J40: 6.913184095 | K40: 177797.2387 | L40: 0.5634449211 | M40: 7.14579378 | N40: 187082.6363 | O40: 0.3429813318 | P40: 5.697853412 | Q40: 221221.152 | R40: 0.4915313404 | S40: 9.121128608 | T40: 343966.7423 | U40: 1.149794275 | V40: 15.04233168 | W40: 274034.0482 | X40: 0.3282532107 | Y40: 9.755880183 | Z40: 233738.7545 | AA40: 0.9957257954 | AB40: 10.36963537 | AC40: 164418.6836 | AD40: -0.1522799006 | AE40: 6.337485963 | AF40: 220010.892 | AG40: 0.5227403283 | AH40: 9.30056048
A41: 2007-06-01 | B41: 128607.5234 | C41: 0.8384496948 | D41: 6.018711285 | E41: 161278.5293 | F41: 0.07237723705 | G41: 7.340848695 | H41: 169931.3701 | I41: 0.3012244625 | J41: 7.50480368 | K41: 178234.6359 | L41: 0.2460090115 | M41: 7.034130059 | N41: 187757.4577 | O41: 0.3607076601 | P41: 5.470289234 | Q41: 222204.2558 | R41: 0.4443986147 | S41: 9.044313783 | T41: 350569.3897 | U41: 1.919559807 | V41: 16.4472858 | W41: 277306.0409 | X41: 1.194009527 | Y41: 10.8197857 | Z41: 234778.1037 | AA41: 0.4446627599 | AB41: 10.88532748 | AC41: 165426.1301 | AD41: 0.6127323418 | AE41: 6.714125526 | AF41: 221740.8163 | AG41: 0.7862902895 | AH41: 9.850173269
A42: 2007-07-01 | B42: 128164.4015 | C42: -0.3445536586 | D42: 6.472167215 | E42: 161894.585 | F42: 0.3819824473 | G42: 7.169435541 | H42: 169011.2814 | I42: -0.5414472425 | J42: 6.565346013 | K42: 178582.8295 | L42: 0.1953568465 | M42: 6.658416364 | N42: 187112.8978 | O42: -0.3432939125 | P42: 5.014539067 | Q42: 223180.6697 | R42: 0.4394217967 | S42: 9.213279869 | T42: 355456.2229 | U42: 1.393970317 | V42: 17.38290108 | W42: 277981.0118 | X42: 0.2434029004 | Y42: 10.37567797 | Z42: 234919.6351 | AA42: 0.06028305667 | AB42: 10.47444135 | AC42: 166687.6284 | AD42: 0.7625750247 | AE42: 6.698578681 | AF42: 222494.8072 | AG42: 0.3400325106 | AH42: 9.729580036
A43: 2007-08-01 | B43: 127468.8696 | C43: -0.5426872552 | D43: 6.022214442 | E43: 162555.925 | F43: 0.4085003707 | G43: 6.500459963 | H43: 170511.5165 | I43: 0.8876538601 | J43: 6.889025754 | K43: 178554.7936 | L43: -0.01569912843 | M43: 6.483731201 | N43: 188886.7707 | O43: 0.9480227437 | P43: 5.303450322 | Q43: 224774.1107 | R43: 0.7139690836 | S43: 8.641115328 | T43: 360293.5542 | U43: 1.360879631 | V43: 18.17497008 | W43: 281191.7364 | X43: 1.155015792 | Y43: 11.28904042 | Z43: 235780.5922 | AA43: 0.3664900227 | AB43: 10.40252537 | AC43: 168469.1923 | AD43: 1.068803919 | AE43: 7.30399117 | AF43: 224264.9829 | AG43: 0.7956031674 | AH43: 9.949445751
A44: 2007-09-01 | B44: 126645.9513 | C44: -0.6455837025 | D44: 4.202295592 | E44: 164277.7225 | F44: 1.059203169 | G44: 6.929028772 | H44: 172591.8745 | I44: 1.220068892 | J44: 6.835896202 | K44: 180620.0214 | L44: 1.156635357 | M44: 6.605289128 | N44: 190217.7316 | O44: 0.7046342783 | P44: 5.418735262 | Q44: 226086.838 | R44: 0.5840207171 | S44: 8.681485657 | T44: 362709.968 | U44: 0.6706791515 | V44: 17.746882 | W44: 283290.9491 | X44: 0.7465413849 | Y44: 11.130158 | Z44: 237085.1471 | AA44: 0.5532919116 | AB44: 10.01997449 | AC44: 169582.089 | AD44: 0.6605935616 | AE44: 7.381832108 | AF44: 225942.18 | AG44: 0.7478640049 | AH44: 9.825352165
A45: 2007-10-01 | B45: 127316.4336 | C45: 0.5294147096 | D45: 3.260465613 | E45: 164404.2873 | F45: 0.07704319782 | G45: 5.823871794 | H45: 174894.3712 | I45: 1.334070143 | J45: 6.719633201 | K45: 180899.5476 | L45: 0.1547592251 | M45: 6.391609365 | N45: 191071.3599 | O45: 0.4487637737 | P45: 5.326301875 | Q45: 227387.0831 | R45: 0.5751087013 | S45: 8.314659179 | T45: 364436.4285 | U45: 0.4759892588 | V45: 17.33329377 | W45: 285238.182 | X45: 0.6873614878 | Y45: 10.91883452 | Z45: 238820.5034 | AA45: 0.7319548711 | AB45: 9.387453871 | AC45: 170928.3264 | AD45: 0.793855918 | AE45: 6.223214668 | AF45: 227237.3216 | AG45: 0.5732181651 | AH45: 9.387438869
A46: 2007-11-01 | B46: 128872.9519 | C46: 1.222558777 | D46: 3.316417881 | E46: 164215.0994 | F46: -0.1150747988 | G46: 5.67064404 | H46: 175106.5904 | I46: 0.1213413402 | J46: 6.075092847 | K46: 180335.3641 | L46: -0.3118766843 | M46: 5.063072193 | N46: 190513.8983 | O46: -0.2917556772 | P46: 4.723557089 | Q46: 225897.6198 | R46: -0.6550342672 | S46: 7.532236139 | T46: 363147.3953 | U46: -0.3537059065 | V46: 15.22769012 | W46: 286052.6203 | X46: 0.2855292303 | Y46: 10.33948277 | Z46: 238349.1566 | AA46: -0.1973644488 | AB46: 8.112575249 | AC46: 170265.3445 | AD46: -0.3878712868 | AE46: 4.838158359 | AF46: 226939.2522 | AG46: -0.1311709711 | AH46: 8.433450515
A47: 2007-12-01 | B47: 129065.2747 | C47: 0.1492344756 | D47: 2.958438549 | E47: 163849.1965 | F47: -0.2228192746 | G47: 4.169329821 | H47: 175284.5209 | I47: 0.1016127321 | J47: 5.465526348 | K47: 179118.264 | L47: -0.6749092857 | M47: 4.231688112 | N47: 189244.3282 | O47: -0.6663923754 | P47: 3.329290013 | Q47: 227743.6321 | R47: 0.8171897789 | S47: 7.319872801 | T47: 363671.3759 | U47: 0.1442886842 | V47: 13.34361214 | W47: 286875.0211 | X47: 0.2874998165 | Y47: 9.611801652 | Z47: 239160.4696 | AA47: 0.3403884609 | AB47: 6.797152885 | AC47: 169619.0121 | AD47: -0.3796030476 | AE47: 3.94446213 | AF47: 227136.0188 | AG47: 0.08670451612 | AH47: 7.402964054
A48: 2008-01-01 | B48: 132532.402 | C48: 2.686336241 | D48: 4.213326367 | E48: 164180.2357 | F48: 0.202038936 | G48: 4.054449307 | H48: 174971.7402 | I48: -0.1784417347 | J48: 5.180809361 | K48: 178934.2861 | L48: -0.1027130771 | M48: 2.978837283 | N48: 189339.7487 | O48: 0.05042184135 | P48: 2.36435264 | Q48: 227752.884 | R48: 0.004062434846 | S48: 6.512091911 | T48: 366005.985 | U48: 0.6419556879 | V48: 12.06720334 | W48: 289032.0463 | X48: 0.7519041544 | Y48: 9.380864807 | Z48: 236365.334 | AA48: -1.168728102 | AB48: 5.496839972 | AC48: 167914.0535 | AD48: -1.005169525 | AE48: 2.519949055 | AF48: 227489.5476 | AG48: 0.1556463285 | AH48: 6.678916266
A49: 2008-02-01 | B49: 134625.0871 | C49: 1.578998881 | D49: 4.767076941 | E49: 164839.4035 | F49: 0.4014903393 | G49: 3.047601915 | H49: 174499.7886 | I49: -0.2697302071 | J49: 4.267242989 | K49: 180021.243 | L49: 0.6074615406 | M49: 2.511688123 | N49: 190043.7469 | O49: 0.3718174328 | P49: 2.49776912 | Q49: 231753.5242 | R49: 1.756570618 | S49: 6.859854274 | T49: 369121.946 | U49: 0.8513415599 | V49: 11.06013504 | W49: 289349.2649 | X49: 0.1097520426 | Y49: 7.967654722 | Z49: 234452.0616 | AA49: -0.8094556158 | AB49: 3.614919096 | AC49: 167464.6627 | AD49: -0.267631408 | AE49: 1.634076519 | AF49: 228387.2343 | AG49: 0.3946056491 | AH49: 5.838700994
A50: 2008-03-01 | B50: 135635.0608 | C50: 0.7502120395 | D50: 5.767577083 | E50: 163645.8265 | F50: -0.7240847678 | G50: 2.022727416 | H50: 174550.2716 | I50: 0.02893015184 | J50: 4.354642927 | K50: 178649.9253 | L50: -0.761753285 | M50: 1.284410306 | N50: 190898.8699 | O50: 0.4499611151 | P50: 2.687996296 | Q50: 230314.9485 | R50: -0.6207352224 | S50: 5.303840875 | T50: 368324.3856 | U50: -0.2160696414 | V50: 9.590604177 | W50: 288882.1617 | X50: -0.1614323128 | Y50: 6.792130889 | Z50: 233419.5354 | AA50: -0.4403997053 | AB50: 2.718089663 | AC50: 167194.2973 | AD50: -0.161446233 | AE50: 1.147849232 | AF50: 227766.9026 | AG50: -0.2716139821 | AH50: 4.912071898
A51: 2008-04-01 | B51: 133152.2697 | C51: -1.830493595 | D51: 4.349038902 | E51: 163025.3816 | F51: -0.3791388158 | G51: 1.210808775 | H51: 174171.0627 | I51: -0.2172491267 | J51: 3.119658804 | K51: 177830.4119 | L51: -0.4587258603 | M51: 0.5822079241 | N51: 190768.0473 | O51: -0.06852976694 | P51: 2.319675321 | Q51: 230432.1022 | R51: 0.05086672635 | S51: 4.67568135 | T51: 367497.1052 | U51: -0.2246064662 | V51: 8.069333492 | W51: 287681.4736 | X51: -0.4156324742 | Y51: 5.324794179 | Z51: 234792.5156 | AA51: 0.5882027995 | AB51: 1.451043383 | AC51: 166505.5644 | AD51: -0.4119356557 | AE51: 1.115035246 | AF51: 227291.9836 | AG51: -0.2085109783 | AH51: 3.849463253
A52: 2008-05-01 | B52: 132069.1116 | C52: -0.8134732309 | D52: 3.55260807 | E52: 161409.5843 | F52: -0.9911323577 | G52: 0.1536960714 | H52: 172457.904 | I52: -0.9836069699 | J52: 1.792499681 | K52: 175305.2577 | L52: -1.419978848 | M52: -1.401585909 | N52: 188902.5192 | O52: -0.9779038571 | P52: 0.9727695201 | Q52: 228497.0826 | R52: -0.8397352469 | S52: 3.288985026 | T52: 365074.6002 | U52: -0.6591902326 | V52: 6.136598468 | W52: 287295.0978 | X52: -0.1343068061 | Y52: 4.839197779 | Z52: 234879.7733 | AA52: 0.03716374206 | AB52: 0.4881598578 | AC52: 164145.7035 | AD52: -1.417286521 | AE52: -0.1660274448 | AF52: 225793.564 | AG52: -0.6592487788 | AH52: 2.628357124
A53: 2008-06-01 | B53: 130158.937 | C53: -1.446344729 | D53: 1.206316332 | E53: 160757.8826 | F53: -0.4037565295 | G53: -0.3228246016 | H53: 169778.1737 | I53: -1.553846005 | J53: -0.09015191196 | K53: 175664.0532 | L53: 0.2046690024 | M53: -1.442246474 | N53: 186820.7431 | O53: -1.102037241 | P53: -0.4988961072 | Q53: 227227.1915 | R53: -0.555758139 | S53: 2.260503823 | T53: 362655.5939 | U53: -0.66260601 | V53: 3.447592579 | W53: 284776.0081 | X53: -0.8768300232 | Y53: 2.693762904 | Z53: 232406.6746 | AA53: -1.052921112 | AB53: -1.010072536 | AC53: 162555.9115 | AD53: -0.9685248504 | AE53: -1.735045435 | AF53: 224030.9092 | AG53: -0.780648813 | AH53: 1.03277914
A54: 2008-07-01 | B54: 126778.6808 | C54: -2.597021935 | D54: -1.081205577 | E54: 158824.3285 | F54: -1.202774058 | G54: -1.896454135 | H54: 166672.0284 | I54: -1.829531591 | J54: -1.384080971 | K54: 173608.5 | L54: -1.170161547 | M54: -2.785446693 | N54: 184274.8707 | O54: -1.362735394 | P54: -1.516745851 | Q54: 223494.0046 | R54: -1.642931388 | S54: 0.1403951839 | T54: 358116.8074 | U54: -1.251541841 | V54: 0.7484985097 | W54: 280913.7094 | X54: -1.356258452 | Y54: 1.054999266 | Z54: 228482.3192 | AA54: -1.688572573 | AB54: -2.740220469 | AC54: 160995.1301 | AD54: -0.9601505185 | AE54: -3.415069464 | AF54: 220818.939 | AG54: -1.433717416 | AH54: -0.7532167386
A55: 2008-08-01 | B55: 123739.4271 | C55: -2.397290872 | D55: -2.925767318 | E55: 156903.6673 | F55: -1.209299068 | G55: -3.477115741 | H55: 165082.1032 | I55: -0.9539244516 | J55: -3.184191597 | K55: 171033.6538 | L55: -1.483133735 | M55: -4.212230684 | N55: 182306.4885 | O55: -1.06817723 | P55: -3.483717853 | Q55: 219045.5576 | R55: -1.990410012 | S55: -2.548582262 | T55: 353994.4735 | U55: -1.15111433 | V55: -1.748319008 | W55: 276817.3755 | X55: -1.458217888 | Y55: -1.555650592 | Z55: 225859.8154 | AA55: -1.147792884 | AB55: -4.207630773 | AC55: 160974.9929 | AD55: -0.01250798174 | AE55: -4.448409434 | AF55: 217918.0581 | AG55: -1.31369207 | AH55: -2.830100657
A56: 2008-09-01 | B56: 123015.6942 | C56: -0.5848846126 | D56: -2.866461272 | E56: 154633.3112 | F56: -1.446974529 | G56: -5.870796794 | H56: 163278.6451 | I56: -1.092461254 | J56: -5.396099552 | K56: 167527.6622 | L56: -2.049884053 | M56: -7.248564786 | N56: 179512.8663 | O56: -1.532376729 | P56: -5.627690542 | Q56: 214538.0312 | R56: -2.057803151 | S56: -5.108128794 | T56: 346500.1544 | U56: -2.117072368 | V56: -4.469084133 | W56: 272835.4734 | X56: -1.438458144 | Y56: -3.690719986 | Z56: 221957.0181 | AA56: -1.727973287 | AB56: -6.38088432 | AC56: 158953.7348 | AD56: -1.255634827 | AE56: -6.267380135 | AF56: 214299.2407 | AG56: -1.660632192 | AH56: -5.1530614
A57: 2008-10-01 | B57: 122294.6146 | C57: -0.5861687638 | D57: -3.94436042 | E57: 151750.5159 | F57: -1.864278342 | G57: -7.696740526 | H57: 161661.0262 | I57: -0.9907106412 | J57: -7.566478474 | K57: 165375.0979 | L57: -1.284900775 | M57: -8.581806784 | N57: 176936.4628 | O57: -1.435219402 | P57: -7.397705788 | Q57: 209501.9817 | R57: -2.347392399 | S57: -7.865486968 | T57: 339467.9867 | U57: -2.029484707 | V57: -6.851247518 | W57: 266249.272 | X57: -2.413982787 | Y57: -6.657211806 | Z57: 218243.9866 | AA57: -1.672860589 | AB57: -8.615892039 | AC57: 156693.7654 | AD57: -1.421778111 | AE57: -8.32779523 | AF57: 210335.457 | AG57: -1.849648964 | AH57: -7.437979135
A58: 2008-11-01 | B58: 120351.8765 | C58: -1.588572082 | D58: -6.611996725 | E58: 150182.1401 | F58: -1.033522539 | G58: -8.545474405 | H58: 159060.7064 | I58: -1.608501379 | J58: -9.163495174 | K58: 163247.6912 | L58: -1.286413007 | M58: -9.475497495 | N58: 173670.0729 | O58: -1.846080706 | P58: -8.84125807 | Q58: 204382.5779 | R58: -2.443606392 | S58: -9.524244616 | T58: 330342.9311 | U58: -2.688045984 | V58: -9.033374491 | W58: 258163.6129 | X58: -3.03687559 | Y58: -9.749607407 | Z58: 213748.9653 | AA58: -2.05963126 | AB58: -10.32107337 | AC58: 154024.3513 | AD58: -1.703586665 | AE58: -9.538637033 | AF58: 205743.0704 | AG58: -2.183363041 | AH58: -9.340024518
A59: 2008-12-01 | B59: 118988.8419 | C59: -1.132541218 | D59: -7.80723774 | E59: 148561.4569 | F59: -1.079145102 | G59: -9.330372031 | H59: 157540.2139 | I59: -0.95591959 | J59: -10.12314545 | K59: 160764.0329 | L59: -1.52140486 | M59: -10.24699028 | N59: 171640.9379 | O59: -1.168384954 | P59: -9.301938126 | Q59: 201664.5634 | R59: -1.329866071 | S59: -11.45106384 | T59: 327250.8635 | U59: -0.936017507 | V59: -10.01467667 | W59: 250556.0632 | X59: -2.946793925 | Y59: -12.66020225 | Z59: 210257.2738 | AA59: -1.633547763 | AB59: -12.08527306 | AC59: 152666.3585 | AD59: -0.881674092 | AE59: -9.994547995 | AF59: 202506.2353 | AG59: -1.573241371 | AH59: -10.84362736
A60: 2009-01-01 | B60: 118546.6033 | C60: -0.3716639538 | D60: -10.55273919 | E60: 149126.275 | F60: 0.3801915669 | G60: -9.1691674 | H60: 156237.5825 | I60: -0.8268564447 | J60: -10.70696196 | K60: 158982.7278 | L60: -1.108024608 | M60: -11.15021537 | N60: 170354.622 | O60: -0.7494225314 | P60: -10.02701587 | Q60: 202402.0709 | R60: 0.3657100495 | S60: -11.13084174 | T60: 324076.9261 | U60: -0.9698789998 | V60: -11.4558397 | W60: 247177.6824 | X60: -1.348353242 | Y60: -14.48087311 | Z60: 207093.3174 | AA60: -1.504802381 | AB60: -12.38422579 | AC60: 153625.9587 | AD60: 0.6285603448 | AE60: -8.50917149 | AF60: 201009.9752 | AG60: -0.7388711094 | AH60: -11.63990728
A61: 2009-02-01 | B61: 119041.1868 | C61: 0.4172059809 | D61: -11.57577735 | E61: 147275.949 | F61: -1.240778037 | G61: -10.65488841 | H61: 155139.2564 | I61: -0.7029845895 | J61: -11.09487428 | K61: 158255.764 | L61: -0.4572596329 | M61: -12.09050593 | N61: 169389.4702 | O61: -0.5665545587 | P61: -10.8681696 | Q61: 201396.2018 | R61: -0.4969658112 | S61: -13.09896905 | T61: 321993.049 | U61: -0.6430192675 | V61: -12.76783935 | W61: 245923.4934 | X61: -0.5074038303 | Y61: -15.00808081 | Z61: 204889.4207 | AA61: -1.064204641 | AB61: -12.60924757 | AC61: 152574.1776 | AD61: -0.6846376227 | AE61: -8.891717744 | AF61: 199680.3361 | AG61: -0.6614791921 | AH61: -12.56939701
A62: 2009-03-01 | B62: 117896.6808 | C62: -0.9614369971 | D62: -13.07801971 | E62: 146864.6219 | F62: -0.2792900833 | G62: -10.25458759 | H62: 153433.8892 | I62: -1.099249333 | J62: -12.09759358 | K62: 157910.8745 | L62: -0.2179317189 | M62: -11.60876547 | N62: 166958.4457 | O62: -1.435168565 | P62: -12.54089358 | Q62: 199004.0571 | R62: -1.187780453 | S62: -13.59481509 | T62: 318448.8676 | U62: -1.100701209 | V62: -13.54119356 | W62: 244051.261 | X62: -0.7613068416 | Y62: -15.51875007 | Z62: 203669.2761 | AA62: -0.5955137115 | AB62: -12.74540249 | AC62: 151605.6536 | AD62: -0.6347889381 | AE62: -9.323669522 | AF62: 198010.4347 | AG62: -0.8362873549 | AH62: -13.06443894
A63: 2009-04-01 | B63: 118332.7351 | C63: 0.3698614162 | D63: -11.12976488 | E63: 145496.3078 | F63: -0.9316839401 | G63: -10.75235873 | H63: 151931.7352 | I63: -0.9790236068 | J63: -12.76866959 | K63: 156832.0788 | L63: -0.6831674447 | M63: -11.8080664 | N63: 166173.7653 | O63: -0.4699854681 | P63: -12.89224393 | Q63: 197121.0693 | R63: -0.9462057538 | S63: -14.4558994 | T63: 317098.6428 | U63: -0.4240004931 | V63: -13.71397533 | W63: 245167.4113 | X63: 0.457342559 | Y63: -14.77817176 | Z63: 203603.3 | AA63: -0.03239372143 | AB63: -13.283735 | AC63: 148977.4115 | AD63: -1.73360428 | AE63: -10.52706736 | AF63: 197218.6954 | AG63: -0.3998472682 | AH63: -13.23112578
A64: 2009-05-01 | B64: 117974.2704 | C64: -0.3029294723 | D64: -10.67232226 | E64: 145651.7913 | F64: 0.1068642525 | G64: -9.762612967 | H64: 151587.3546 | I64: -0.226667972 | J64: -12.10182248 | K64: 156442.7862 | L64: -0.248222537 | M64: -10.7597865 | N64: 166179.9721 | O64: 0.003735132055 | P64: -12.02871576 | Q64: 197417.8429 | R64: 0.1505539877 | S64: -13.60159146 | T64: 320794.3025 | U64: 1.165460575 | V64: -12.12910941 | W64: 245031.5293 | X64: -0.05542418473 | Y64: -14.71085614 | Z64: 205883.2876 | AA64: 1.119818581 | AB64: -12.34524594 | AC64: 147976.7218 | AD64: -0.6717056597 | AE64: -9.850383749 | AF64: 197746.8556 | AG64: 0.2678043697 | AH64: -12.42139406
A65: 2009-06-01 | B65: 118563.8993 | C65: 0.4997944629 | D65: -8.908368466 | E65: 145739.8079 | F65: 0.06042948524 | G65: -9.342045568 | H65: 152228.4284 | I65: 0.4229071977 | J65: -10.33686776 | K65: 157175.8089 | L65: 0.4685563958 | M65: -10.52477383 | N65: 169811.9114 | O65: 2.185545731 | P65: -9.1043593 | Q65: 199342.5224 | R65: 0.9749268215 | S65: -12.27171311 | T65: 323514.9315 | U65: 0.8480914206 | V65: -10.7927916 | W65: 247879.7732 | X65: 1.162398974 | Y65: -12.9562301 | Z65: 206351.0234 | AA65: 0.2271849251 | AB65: -11.21123187 | AC65: 147879.395 | AD65: -0.06577167473 | AE65: -9.028596007 | AF65: 199288.4932 | AG65: 0.7796015483 | AH65: -11.04419747
A66: 2009-07-01 | B66: 117654.4171 | C66: -0.7670818432 | D66: -7.197001608 | E66: 147314.0295 | F66: 1.080158967 | G66: -7.247188792 | H66: 154168.845 | I66: 1.274674248 | J66: -7.501668709 | K66: 159226.6375 | L66: 1.304799118 | M66: -8.284077407 | N66: 170540.8316 | O66: 0.4292515138 | P66: -7.453017905 | Q66: 201284.059 | R66: 0.9739701113 | S66: -9.937602416 | T66: 328236.26 | U66: 1.459385062 | V66: -8.343799221 | W66: 248875.9724 | X66: 0.4018880265 | Y66: -11.40483216 | Z66: 207625.3227 | AA66: 0.6175395972 | AB66: -9.128494756 | AC66: 148145.7645 | AD66: 0.1801261707 | AE66: -7.981213848 | AF66: 200945.8438 | AG66: 0.8316338781 | AH66: -8.999724076
A67: 2009-08-01 | B67: 118572.18 | C67: 0.7800496285 | D67: -4.175910001 | E67: 148708.3726 | F67: 0.9465107009 | G67: -5.223137798 | H67: 156617.2746 | I67: 1.588148116 | J67: -5.127647636 | K67: 160355.2128 | L67: 0.7087854838 | M67: -6.243473589 | N67: 172778.0115 | O67: 1.311814838 | P67: -5.226625252 | Q67: 204097.3253 | R67: 1.397659753 | S67: -6.824257219 | T67: 331980.5015 | U67: 1.14071538 | V67: -6.218733242 | W67: 252632.4437 | X67: 1.509374866 | Y67: -8.7367824 | Z67: 208051.9441 | AA67: 0.2054765672 | AB67: -7.884479719 | AC67: 150519.622 | AD67: 1.602379596 | AE67: -6.495028009 | AF67: 203234.3446 | AG67: 1.138864447 | AH67: -6.738181169
A68: 2009-09-01 | B68: 121399.7061 | C68: 2.384645496 | D68: -1.313643842 | E68: 150335.0955 | F68: 1.093901337 | G68: -2.779618274 | H68: 159215.6594 | I68: 1.659066513 | J68: -2.488375492 | K68: 161855.2983 | L68: 0.9354766143 | M68: -3.385926728 | N68: 172545.7012 | O68: -0.1344559747 | P68: -3.881150841 | Q68: 205481.4462 | R68: 0.6781670934 | S68: -4.221435678 | T68: 339828.9651 | U68: 2.364133892 | V68: -1.925306289 | W68: 256477.4113 | X68: 1.521961128 | Y68: -5.995577432 | Z68: 209671.2458 | AA68: 0.7783160642 | AB68: -5.535203375 | AC68: 152115.6969 | AD68: 1.060376637 | AE68: -4.301904515 | AF68: 205824.4794 | AG68: 1.274457229 | AH68: -3.954638992
A69: 2009-10-01 | B69: 123900.4025 | C69: 2.059886723 | D69: 1.313048752 | E69: 151517.9262 | F69: 0.7867961162 | G69: -0.153271145 | H69: 161214.8482 | I69: 1.255648372 | J69: -0.2759960477 | K69: 162559.8193 | L69: 0.4352783392 | M69: -1.702359449 | N69: 172867.0136 | O69: 0.1862187303 | P69: -2.299949459 | Q69: 207939.7171 | R69: 1.196346904 | S69: -0.7457039878 | T69: 343012.877 | U69: 0.9369159827 | V69: 1.044248767 | W69: 260575.6545 | X69: 1.597896334 | Y69: -2.130941996 | Z69: 213058.691 | AA69: 1.615598378 | AB69: -2.375916841 | AC69: 155020.5278 | AD69: 1.909619439 | AE69: -1.067839276 | AF69: 208213.1339 | AG69: 1.160529855 | AH69: -1.009018235
A70: 2009-11-01 | B70: 124564.2607 | C70: 0.5357998391 | D70: 3.500056913 | E70: 152778.0539 | F70: 0.8316690891 | G70: 1.728510318 | H70: 162137.6458 | I70: 0.5724023725 | J70: 1.934443446 | K70: 163240.2722 | L70: 0.4185861385 | M70: -0.00454460688 | N70: 172084.4992 | O70: -0.4526684012 | P70: -0.9129803638 | Q70: 206670.1363 | R70: -0.6105523218 | S70: 1.119253136 | T70: 345129.5701 | U70: 0.6170885423 | V70: 4.476148154 | W70: 260650.6706 | X70: 0.02878861197 | Y70: 0.9633649321 | Z70: 213428.4648 | AA70: 0.1735549155 | AB70: -0.1499424472 | AC70: 155375.481 | AD70: 0.2289717118 | AE70: 0.8772182237 | AF70: 208632.7172 | AG70: 0.2015162339 | AH70: 1.404492883
A71: 2009-12-01 | B71: 131224.999 | C71: 5.347230646 | D71: 10.28344919 | E71: 157634.6297 | F71: 3.178843887 | G71: 6.107353155 | H71: 164869.5899 | I71: 1.684953571 | J71: 4.652384131 | K71: 165628.0249 | L71: 1.462722823 | M71: 3.025547426 | N71: 176909.5892 | O71: 2.803907364 | P71: 3.06957731 | Q71: 217559.6721 | R71: 5.269041769 | S71: 7.881954327 | T71: 351210.5759 | U71: 1.761948625 | V71: 7.321512354 | W71: 267933.046 | X71: 2.793921625 | Y71: 6.93536712 | Z71: 222533.2487 | AA71: 4.265965112 | AB71: 5.838549429 | AC71: 157104.9472 | AD71: 1.113088241 | AE71: 2.907378371 | AF71: 214724.7035 | AG71: 2.91995734 | AH71: 6.033625683
A72: 2010-01-01 | B72: 142789.5794 | C72: 8.812787567 | D72: 20.45016514 | E72: 162184.0523 | F72: 2.886055278 | G72: 8.756188165 | H72: 166234.7173 | I72: 0.8280043876 | J72: 6.398674763 | K72: 168992.2859 | L72: 2.031214843 | M72: 6.296003514 | N72: 181740.751 | O72: 2.730864861 | P72: 6.683780467 | Q72: 225062.3766 | R72: 3.448573139 | S72: 11.19568862 | T72: 359130.9706 | U72: 2.255169781 | V72: 10.81658142 | W72: 273422.2749 | X72: 2.048731566 | Y72: 10.61770313 | Z72: 226119.3252 | AA72: 1.611478969 | AB72: 9.187166475 | AC72: 156924.5043 | AD72: -0.1148550243 | AE72: 2.147127739 | AF72: 219735.973 | AG72: 2.333811329 | AH72: 9.315954458
A73: 2010-02-01 | B73: 153932.602 | C73: 7.803806552 | D73: 29.31037241 | E73: 166761.7524 | F73: 2.822534069 | G73: 13.23081167 | H73: 167578.1186 | I73: 0.8081352442 | J73: 8.017868925 | K73: 170488.5958 | L73: 0.8854308378 | M73: 7.729785932 | N73: 185008.9268 | O73: 1.798262541 | P73: 9.221031662 | Q73: 235454.1267 | R73: 4.617275562 | S73: 16.91090721 | T73: 368044.8157 | U73: 2.482059692 | V73: 14.30209964 | W73: 279751.952 | X73: 2.314982237 | Y73: 13.755684 | Z73: 230610.5903 | AA73: 1.986236734 | AB73: 12.55368361 | AC73: 158108.9559 | AD73: 0.7547907295 | AE73: 3.627598315 | AF73: 225139.0459 | AG73: 2.458893196 | AH73: 12.74973305
A74: 2010-03-01 | B74: 155920.4884 | C74: 1.291400526 | D74: 32.25180502 | E74: 167335.5798 | F74: 0.3441001162 | G74: 13.9386584 | H74: 165555.0229 | I74: -1.207255317 | J74: 7.899906462 | K74: 168598.3359 | L74: -1.10873098 | M74: 6.768033832 | N74: 181905.9372 | O74: -1.677210748 | P74: 8.952821424 | Q74: 233345.2837 | R74: -0.8956491688 | S74: 17.25654598 | T74: 367011.1144 | U74: -0.2808628802 | V74: 15.24962145 | W74: 278609.0149 | X74: -0.4085537748 | Y74: 14.16003905 | Z74: 227827.439 | AA74: -1.206861894 | AB74: 11.86146646 | AC74: 156811.007 | AD74: -0.8209205335 | AE74: 3.433482386 | AF74: 223698.5295 | AG74: -0.6398340865 | AH74: 12.97310159
A75: 2010-04-01 | B75: 153818.6318 | C75: -1.348031036 | D75: 29.98823333 | E75: 167764.0704 | F75: 0.2560666427 | G75: 15.3046926 | H75: 164702.4419 | I75: -0.5149834455 | J75: 8.405555788 | K75: 167553.7634 | L75: -0.6195627293 | M75: 6.836410463 | N75: 179921.0649 | O75: -1.091153139 | P75: 8.272845936 | Q75: 233234.8587 | R75: -0.04732257265 | S75: 18.32061362 | T75: 363969.6375 | U75: -0.8287152153 | V75: 14.78120317 | W75: 278308.8034 | X75: -0.1077536821 | Y75: 13.51786191 | Z75: 228498.8029 | AA75: 0.29468092 | AB75: 12.22745551 | AC75: 156026.5012 | AD75: -0.5002874589 | AE75: 4.731650013 | AF75: 222947.3077 | AG75: -0.3358188567 | AH75: 13.04572686
A76: 2010-05-01 | B76: 151687.0182 | C76: -1.385796761 | D76: 28.57635628 | E76: 167407.3668 | F76: -0.2126221891 | G76: 14.93670299 | H76: 163756.6635 | I76: -0.5742346097 | J76: 8.02791826 | K76: 168013.2623 | L76: 0.2742396757 | M76: 7.395979313 | N76: 178957.1536 | O76: -0.5357411943 | P76: 7.68876138 | Q76: 234212.8001 | R76: 0.4192946703 | S76: 18.63811124 | T76: 362037.586 | U76: -0.5308276397 | V76: 12.85661348 | W76: 280406.5754 | X76: 0.7537569539 | Y76: 14.43693643 | Z76: 230418.9446 | AA76: 0.8403289731 | AB76: 11.91726501 | AC76: 155715.2025 | AD76: -0.1995165409 | AE76: 5.229525727 | AF76: 223145.1379 | AG76: 0.08873407313 | AH76: 12.84383621
A77: 2010-06-01 | B77: 151581.7789 | C77: -0.06937922558 | D77: 27.84817291 | E77: 165478.2881 | F77: -1.152326019 | G77: 13.54364362 | H77: 163242.597 | I77: -0.3139209886 | J77: 7.23529019 | K77: 169043.6001 | L77: 0.6132479148 | M77: 7.550647479 | N77: 180667.8165 | O77: 0.9559063976 | P77: 6.392899663 | Q77: 236041.285 | R77: 0.7806938682 | S77: 18.4099018 | T77: 366953.6124 | U77: 1.357877342 | V77: 13.42710234 | W77: 281591.3891 | X77: 0.4225342346 | Y77: 13.59998658 | Z77: 229261.1875 | AA77: -0.5024574086 | AB77: 11.10252024 | AC77: 156174.8962 | AD77: 0.2952143928 | AE77: 5.609639661 | AF77: 223915.5298 | AG77: 0.3452425153 | AH77: 12.35748045
A78: 2010-07-01 | B78: 150897.474 | C78: -0.4514427155 | D78: 28.25483117 | E78: 164748.8824 | F78: -0.4407863303 | G78: 11.83516123 | H78: 163412.1347 | I78: 0.103856337 | J78: 5.995562693 | K78: 168178.7036 | L78: -0.5116410969 | M78: 5.622216418 | N78: 180380.6893 | O78: -0.1589254762 | P78: 5.769795791 | Q78: 237693.8564 | R78: 0.7001196126 | S78: 18.08876349 | T78: 370956.7044 | U78: 1.090898658 | V78: 13.01515085 | W78: 283291.316 | X78: 0.6036856637 | Y78: 13.82831106 | Z78: 229712.0648 | AA78: 0.1966653388 | AB78: 10.63778823 | AC78: 155972.9888 | AD78: -0.1292828725 | AE78: 5.283461418 | AF78: 224619.1116 | AG78: 0.3142175085 | AH78: 11.78091933
A79: 2010-08-01 | B79: 150164.0812 | C79: -0.4860205851 | D79: 26.64360333 | E79: 165471.1046 | F79: 0.4383775527 | G79: 11.27221803 | H79: 164660.2769 | I79: 0.7638001756 | J79: 5.135450313 | K79: 168049.5717 | L79: -0.0767825752 | M79: 4.798321669 | N79: 182348.6764 | O79: 1.091018715 | P79: 5.53928407 | Q79: 238556.6635 | R79: 0.3629909081 | S79: 16.88377745 | T79: 373693.2644 | U79: 0.7377033453 | V79: 12.56482315 | W79: 283770.3328 | X79: 0.1690898513 | Y79: 12.32537225 | Z79: 229103.2299 | AA79: -0.265042655 | AB79: 10.11828363 | AC79: 156404.5598 | AD79: 0.2766959887 | AE79: 3.909747933 | AF79: 225382.2435 | AG79: 0.3397448824 | AH79: 10.89771464
A80: 2010-09-01 | B80: 151248.2 | C80: 0.721956091 | D80: 24.58695727 | E80: 166719.1865 | F80: 0.7542597461 | G80: 10.89838071 | H80: 164878.2439 | I80: 0.1323737233 | J80: 3.556549981 | K80: 167910.2163 | L80: -0.08292516039 | M80: 3.740945211 | N80: 182268.3002 | O80: -0.04407832262 | P80: 5.634796419 | Q80: 238298.2818 | R80: -0.1083103733 | S80: 15.97070503 | T80: 371459.3014 | U80: -0.5978066094 | V80: 9.307722286 | W80: 282874.7801 | X80: -0.3155906843 | Y80: 10.29227824 | Z80: 229806.079 | AA80: 0.3067827242 | AB80: 9.603049364 | AC80: 156414.3471 | AD80: 0.006257680242 | AE80: 2.825908364 | AF80: 225259.2054 | AG80: -0.05459086567 | AH80: 9.442378318
A81: 2010-10-01 | B81: 151782.5239 | C81: 0.3532762545 | D81: 22.50365684 | E81: 165951.7424 | F81: -0.4603214141 | G81: 9.526144262 | H81: 163481.6377 | I81: -0.8470530127 | J81: 1.406067469 | K81: 167686.6209 | L81: -0.1331636404 | M81: 3.153793871 | N81: 182118.5331 | O81: -0.08216848208 | P81: 5.351813101 | Q81: 236400.0256 | R81: -0.7965882901 | S81: 13.68680738 | T81: 370872.064 | U81: -0.1580893092 | V81: 8.121907035 | W81: 281259.7907 | X81: -0.5709202514 | Y81: 7.937862142 | Z81: 229214.4466 | AA81: -0.2574485473 | AB81: 7.582772381 | AC81: 155536.0961 | AD81: -0.5614900665 | AE81: 0.3325806391 | AF81: 224351.775 | AG81: -0.4028383229 | AH81: 7.751019723
A82: 2010-11-01 | B82: 149885.2645 | C82: -1.249985445 | D82: 20.32766354 | E82: 164466.6772 | F82: -0.8948777184 | G82: 7.650721427 | H82: 162514.0164 | I82: -0.5918838024 | J82: 0.2321302896 | K82: 166568.3407 | L82: -0.666886963 | M82: 2.038754585 | N82: 180094.0528 | O82: -1.111627816 | P82: 4.654430579 | Q82: 233512.6186 | R82: -1.221407261 | S82: 12.9880798 | T82: 370869.8749 | U82: -0.0005902554962 | V82: 7.458156866 | W82: 278615.4598 | X82: -0.9401738102 | Y82: 6.892285825 | Z82: 227943.8941 | AA82: -0.5543073382 | AB82: 6.801074664 | AC82: 153686.7237 | AD82: -1.189030982 | AE82: -1.086887876 | AF82: 222664.7229 | AG82: -0.7519673458 | AH82: 6.725697634
A83: 2010-12-01 | B83: 148131.1114 | C83: -1.170330609 | D83: 12.88330156 | E83: 164100.7415 | F83: -0.2224984147 | G83: 4.10196144 | H83: 161156.2914 | I83: -0.8354510195 | J83: -2.252264032 | K83: 165574.0774 | L83: -0.5969101322 | M83: -0.03257147211 | N83: 179208.9313 | O83: -0.491477383 | P83: 1.299727212 | Q83: 233765.8505 | R83: 0.1084446642 | S83: 7.449072818 | T83: 373726.7754 | U83: 0.770324238 | V83: 6.411025493 | W83: 278516.8333 | X83: -0.03539880367 | Y83: 3.950161202 | Z83: 230576.0867 | AA83: 1.15475462 | AB83: 3.614218591 | AC83: 152290.0807 | AD83: -0.9087596813 | AE83: -3.06474528 | AF83: 222757.5171 | AG83: 0.04167441774 | AH83: 3.740982513
A84: 2011-01-01 | B84: 147859.8941 | C84: -0.1830927059 | D84: 3.550899661 | E84: 163699.3601 | F84: -0.2445944624 | G84: 0.9343137191 | H84: 161669.7219 | I84: 0.3185916661 | J84: -2.746114332 | K84: 165591.4135 | L84: 0.0104702672 | M84: -2.012442429 | N84: 178928.2869 | O84: -0.1566017511 | P84: -1.547514272 | Q84: 233897.228 | R84: 0.05620043737 | S84: 3.925512363 | T84: 375767.0635 | U84: 0.5459304069 | V84: 4.632319195 | W84: 281259.4245 | X84: 0.9847129276 | Y84: 2.866317167 | Z84: 228715.2699 | AA84: -0.8070294045 | AB84: 1.148041956 | AC84: 152633.4005 | AD84: 0.2254380447 | AE84: -2.734502025 | AF84: 223212.4806 | AG84: 0.2042415885 | AH84: 1.582129497
A85: 2011-02-01 | B85: 151545.978 | C85: 2.492957245 | D85: -1.550434339 | E85: 163474.8504 | F85: -0.137147624 | G85: -1.971016744 | H85: 160571.5891 | I85: -0.6792445348 | J85: -4.181052719 | K85: 165510.1584 | L85: -0.04906960395 | M85: -2.920099908 | N85: 177801.5868 | O85: -0.6296936862 | P85: -3.895671498 | Q85: 236009.7561 | R85: 0.9031864568 | S85: 0.2359820147 | T85: 381767.6067 | U85: 1.596878435 | V85: 3.728565229 | W85: 285601.068 | X85: 1.543643734 | Y85: 2.090822226 | Z85: 229689.7502 | AA85: 0.4260669919 | AB85: -0.3993052113 | AC85: 153468.337 | AD85: 0.5470208216 | AE85: -2.935076543 | AF85: 224869.9521 | AG85: 0.7425532394 | AH85: -0.1195233543
A86: 2011-03-01 | B86: 150601.4072 | C86: =B86/B85*100-100 -> -0.6232899397 | D86: -3.411406186 | E86: 162121.0738 | F86: =E86/E85*100-100 -> -0.8281253021 | G86: -3.116196837 | H86: 161236.0345 | I86: 0.413800099 | J86: -2.608793299 | K86: 164636.3013 | L86: =K86/K85*100-100 -> -0.5279779188 | M86: -2.349984368 | N86: 177143.908 | O86: =N86/N85*100-100 -> -0.3698948174 | P86: -2.617852586 | Q86: 236173.7437 | R86: =Q86/Q85*100-100 -> 0.06948343395 | S86: 1.212135063 | T86: 384872.4503 | U86: =T86/T85*100-100 -> 0.8132810431 | V86: 4.866701625 | W86: 288332.0492 | X86: =W86/W85*100-100 -> 0.9562223184 | Y86: 3.489849138 | Z86: 227058.9361 | AA86: =Z86/Z85*100-100 -> -1.145377242 | AB86: -0.3373179703 | AC86: 153284.4887 | AD86: =AC86/AC85*100-100 -> -0.1197956128 | AE86: -2.248897188 | AF86: 225057.0716 | AG86: =AF86/AF85*100-100 -> 0.08321232334 | AH86: 0.6073093698
A87: 2011-04-01 | B87: 149461.6947 | C87: -0.756774135 | D87: -2.832515839 | E87: 160522.0967 | F87: -0.986285741 | G87: -4.316760831 | H87: 160434.463 | I87: -0.4971416941 | J87: -2.591327054 | K87: 163515.3603 | L87: -0.680859003 | M87: -2.410213345 | N87: 176431.5834 | O87: -0.4021163183 | P87: -1.939451337 | Q87: 234786.4066 | R87: -0.5874222588 | S87: 0.6652298301 | T87: 380114.895 | U87: -1.236138168 | V87: 4.435880331 | W87: 282745.4597 | X87: -1.937554099 | Y87: 1.59414876 | Z87: 227070.4542 | AA87: 0.005072736914 | AB87: -0.6251012106 | AC87: 151178.5767 | AD87: -1.373858522 | AE87: -3.107116098 | AF87: 222847.0427 | AG87: -0.9819859814 | AH87: -0.04497247379
A88: 2011-05-01 | B88: 147713.034 | C88: -1.169972464 | D88: -2.619857792 | E88: 158647.3276 | F88: -1.167919634 | G88: -5.232768005 | H88: 158555.3721 | I88: =H88/H87*100-100 -> -1.171251394 | J88: =H88/H76*100-100 -> -3.176231907 | K88: 162464.0733 | L88: -0.6429285365 | M88: -3.302827944 | N88: 176256.3826 | O88: -0.09930238265 | P88: -1.509171859 | Q88: 232388.0132 | R88: -1.021521422 | S88: -0.77911494 | T88: 370322.994 | U88: -2.57603719 | V88: 2.288549105 | W88: 278489.3571 | X88: -1.505277102 | Y88: -0.6837280044 | Z88: 225890.9193 | AA88: -0.5194576716 | AB88: -1.965127186 | AC88: 149431.3494 | AD88: -1.155737314 | AE88: -4.035478217 | AF88: 220007.0547 | AG88: -1.274411369 | AH88: -1.406296917
A89: 2011-06-01 | B89: 146149.2187 | C89: -1.058684718 | D89: -3.583913741 | E89: 158881.7593 | F89: 0.1477690566 | G89: -3.986340985 | H89: 157044.0799 | I89: -0.9531636442 | J89: -3.79711983 | K89: 163297.19 | L89: 0.5128005528 | M89: -3.399365686 | N89: 174516.0889 | O89: -0.9873649281 | P89: -3.4049936 | Q89: 230766.8145 | R89: -0.6976257668 | S89: -2.234554241 | T89: 365127.4743 | U89: -1.402969789 | V89: -0.4976482254 | W89: 276057.1309 | X89: -0.8733641301 | Y89: -1.965350655 | Z89: 223909.301 | AA89: -0.8772456707 | AB89: -2.33440585 | AC89: 149569.5482 | AD89: 0.09248310003 | AE89: -4.229455683 | AF89: 218400.8144 | AG89: -0.7300858017 | AH89: -2.462855236
A90: 2011-07-01 | B90: 142439.7577 | C90: -2.538132665 | D90: -5.604942309 | E90: 160464.9213 | F90: 0.996440402 | G90: -2.600297521 | H90: 157017.7943 | I90: -0.01673772199 | J90: -3.913014425 | K90: 163789.1619 | L90: 0.3012739432 | M90: -2.610046118 | N90: 173670.6409 | O90: -0.484452753 | P90: -3.719937219 | Q90: 231922.4899 | R90: 0.5007979371 | S90: -2.428067143 | T90: 371345.101 | U90: 1.702864666 | V90: 0.1047013207 | W90: 278149.6593 | X90: 0.758005541 | Y90: -1.814971521 | Z90: 223939.3353 | AA90: 0.01341360832 | AB90: -2.513028453 | AC90: 150436.6403 | AD90: 0.579725028 | AE90: -3.549555964 | AF90: 219579.3582 | AG90: 0.5396242563 | AH90: -2.24368859
A91: 2011-08-01 | B91: 140546.003 | C91: -1.329512663 | D91: -6.40504581 | E91: 161070.7993 | F91: 0.3775765495 | G91: -2.659259043 | H91: 158622.9754 | I91: 1.022292483 | J91: -3.666519685 | K91: 164316.078 | L91: 0.3217038808 | M91: -2.221662131 | N91: 174879.1496 | O91: 0.6958624069 | P91: -4.096287905 | Q91: 232937.7538 | R91: 0.4377599844 | S91: -2.355377368 | T91: 378396.801 | U91: 1.898961372 | V91: 1.258662391 | W91: 280208.4505 | X91: 0.7401739206 | Y91: -1.255198984 | Z91: 223805.5621 | AA91: -0.05973632599 | AB91: -2.312349646 | AC91: 152244.0942 | AD91: 1.201471888 | AE91: -2.660066684 | AF91: 221158.1813 | AG91: 0.7190216314 | AH91: -1.874177027
A92: 2011-09-01 | B92: 140232.2737 | C92: -0.2232218542 | D92: -7.28334375 | E92: 160589.4691 | F92: -0.2988313977 | G92: -3.67667183 | H92: 158372.8572 | I92: -0.1576809754 | J92: -3.945570082 | K92: 164150.3235 | L92: -0.1008753721 | M92: -2.239228116 | N92: 174780.7355 | O92: -0.05627553374 | P92: -4.107990641 | Q92: 232310.7746 | R92: -0.2691617 | S92: -2.512610338 | T92: 380380.3292 | U92: 0.5241926357 | V92: 2.401616474 | W92: 278714.3104 | X92: -0.533224514 | Y92: -1.470781434 | Z92: 225447.426 | AA92: 0.7336117455 | AB92: -1.89666565 | AC92: 152525.3008 | AD92: 0.184707714 | AE92: -2.486374409 | AF92: 221112.6987 | AG92: -0.02056563354 | AH92: -1.840771252
A93: 2011-10-01 | B93: 142082.1194 | C93: 1.319129847 | D93: -6.390989071 | E93: 159814.3236 | F93: -0.4826876618 | G93: -3.698315374 | H93: 157785.3291 | I93: -0.370977761 | J93: -3.484372122 | K93: 163832.9538 | L93: -0.1933409379 | M93: -2.298136351 | N93: 175922.468 | O93: 0.6532370779 | P93: -3.402215548 | Q93: 232517.4538 | R93: 0.08896667429 | S93: -1.642373717 | T93: 382656.8722 | U93: 0.598491262 | V93: 3.177593946 | W93: 277626.5754 | X93: -0.390268773 | Y93: -1.291764902 | Z93: 225497.8918 | AA93: 0.02238472641 | AB93: -1.621431292 | AC93: 155479.2324 | AD93: 1.936683022 | AE93: -0.03655979117 | AF93: 221344.6327 | AG93: 0.1048940091 | AH93: -1.3403693
A94: 2011-11-01 | B94: 141094.8284 | C94: -0.6948735467 | D94: -5.864776736 | E94: 158956.984 | F94: -0.5364597869 | G94: -3.350036196 | H94: 157218.0372 | I94: -0.3595340241 | J94: -3.258783049 | K94: 164232.77 | L94: 0.2440389775 | M94: -1.402169646 | N94: 174253.3024 | O94: -0.9488075207 | P94: -3.243166719 | Q94: 230338.4974 | R94: -0.9371151861 | S94: -1.359293215 | T94: 381056.6258 | U94: -0.418193562 | V94: 2.746718359 | W94: 275030.1619 | X94: -0.9352179297 | Y94: -1.286826612 | Z94: 223789.5934 | AA94: -0.7575673454 | AB94: -1.822510172 | AC94: 154966.1215 | AD94: -0.3300189419 | AE94: 0.832471244 | AF94: 219950.2147 | AG94: -0.6299759514 | AH94: -1.219101143
A95: 2011-12-01 | B95: 141003.981 | C95: -0.06438746508 | D95: -4.811366304 | E95: 157578.7387 | F95: -0.8670555394 | G95: -3.9743896 | H95: 158557.705 | I95: 0.85210822 | J95: -1.612463511 | K95: 163719.6322 | L95: -0.3124454722 | M95: -1.12000942 | N95: 175662.6146 | O95: 0.8087721479 | P95: -1.978872729 | Q95: 230405.1642 | R95: 0.02894296605 | S95: -1.4376293 | T95: 382741.382 | U95: 0.4421275022 | V95: 2.412084747 | W95: 273677.8154 | X95: -0.4917084473 | Y95: -1.737423847 | Z95: 224931.722 | AA95: 0.5103582336 | AB95: -2.447940187 | AC95: 154138.3688 | AD95: -0.5341507438 | AE95: 1.213662808 | AF95: 220015.6035 | AG95: 0.02972889834 | AH95: -1.230896119
A96: 2012-01-01 | B96: 142416.4685 | C96: 1.00173591 | D96: -3.681475385 | E96: 157869.3462 | F96: 0.1844205304 | G96: -3.561415222 | H96: 158742.2978 | I96: 0.1164199837 | J96: -1.810743545 | K96: 164356.5988 | L96: 0.3890594363 | M96: -0.7456996762 | N96: 176116.708 | O96: 0.2585031646 | P96: -1.571344014 | Q96: 231661.1961 | R96: 0.5451405276 | S96: -0.9559890399 | T96: 384020.1055 | U96: 0.3340959768 | V96: 2.196318624 | W96: 275371.6287 | X96: 0.6189077802 | Y96: -2.093368377 | Z96: 224737.4099 | AA96: -0.08638716144 | AB96: -1.739219248 | AC96: 152529.1926 | AD96: -1.043981578 | AE96: -0.06827331627 | AF96: 220695.5786 | AG96: 0.3090576605 | AH96: -1.127581236
A97: 2012-02-01 | B97: 145123.2113 | C97: 1.90058271 | D97: =B97/B85*100-100 -> -4.238163793 | E97: 159624.157 | F97: 1.111558926 | G97: =E97/E85*100-100 -> -2.35552645 | H97: 159299.8485 | I97: 0.3512300441 | J97: -0.7920085159 | K97: 165193.6702 | L97: 0.5093019271 | M97: =K97/K85*100-100 -> -0.1912198387 | N97: 176324.3323 | O97: 0.1178901567 | P97: =N97/N85*100-100 -> -0.830844406 | Q97: 232640.0287 | R97: 0.4225276422 | S97: =Q97/Q85*100-100 -> -1.427791553 | T97: 384341.4465 | U97: 0.08367817447 | V97: =T97/T85*100-100 -> 0.6741902045 | W97: 276708.62 | X97: 0.4855225312 | Y97: =W97/W85*100-100 -> -3.113590609 | Z97: 223975.3494 | AA97: -0.3390893052 | AB97: =Z97/Z85*100-100 -> -2.487878012 | AC97: 152607.6744 | AD97: 0.05145359899 | AE97: =AC97/AC85*100-100 -> -0.5608079318 | AF97: 221485.588 | AG97: 0.3579634297 | AH97: =AF97/AF85*100-100 -> -1.505031713
A98: 2012-03-01 | B98: 147077.2677 | C98: 1.346480967 | D98: -2.340044215 | E98: 160230.73 | F98: 0.3800007473 | G98: -1.166007421 | H98: 157842.0151 | I98: -0.9151505354 | J98: -2.105000586 | K98: 165519.0245 | L98: 0.1969532926 | M98: 0.5361655949 | N98: 175547.6126 | O98: -0.440506234 | P98: -0.9011291312 | Q98: 235226.0515 | R98: 1.111598387 | S98: -0.401269092 | T98: 389823.8773 | U98: 1.426447981 | V98: 1.286511164 | W98: 282353.4658 | X98: 2.039996369 | Y98: -2.073506363 | Z98: 224305.2222 | AA98: 0.1472808538 | AB98: -1.212774932 | AC98: 153648.9221 | AD98: 0.6823036379 | AE98: 0.2377497197 | AF98: 223372.215 | AG98: 0.8518057254 | AH98: -0.7486353001
A99: 2012-04-01 | B99: 145993.3554 | C99: -0.7369679505 | D99: -2.320554007 | E99: 159098.649 | F99: -0.7065317837 | G99: -0.8867612504 | H99: 158917.4841 | I99: 0.6813579201 | J99: -0.9455442542 | K99: 165382.2278 | L99: -0.08264711743 | M99: 1.141707775 | N99: 174050.713 | O99: -0.8527029193 | P99: -1.349458169 | Q99: 234482.9713 | R99: -0.3159004549 | S99: -0.1292388551 | T99: 396624.2904 | U99: 1.744483452 | V99: 4.343264509 | W99: 284231.3393 | X99: 0.6650789819 | Y99: 0.5255184675 | Z99: 225283.5692 | AA99: 0.4361677242 | AB99: -0.7869297587 | AC99: 153969.7801 | AD99: 0.2088254006 | AE99: 1.846295614 | AF99: 224184.3972 | AG99: 0.3636003715 | AH99: 0.6001221272
A100: 2012-05-01 | B100: 144881.0988 | C100: -0.7618542422 | D100: -1.917187107 | E100: 158069.646 | F100: -0.6467704222 | G100: -0.3641294682 | H100: 159081.1204 | I100: 0.1029693295 | J100: 0.3315865605 | K100: 164839.6214 | L100: -0.3280923274 | M100: 1.462199023 | N100: 174692.3435 | O100: 0.3686457466 | P100: -0.8873659357 | Q100: 237421.6622 | R100: 1.253264096 | S100: 2.166053661 | T100: 406750.2511 | U100: 2.553035948 | V100: 9.83661768 | W100: 287339.2084 | X100: 1.093429396 | Y100: 3.177805923 | Z100: 229046.2839 | AA100: 1.670212649 | AB100: 1.396853223 | AC100: 153677.0826 | AD100: -0.1901005757 | AE100: 2.841260035 | AF100: 226333.3862 | AG100: 0.9585810005 | AH100: 2.875513018
A101: 2012-06-01 | B101: 144260.7579 | C101: -0.428172446 | D101: -1.292145717 | E101: 158653.2056 | F101: 0.3691788282 | G101: -0.1438514177 | H101: 160002.336 | I101: 0.5790854246 | J101: 1.883710644 | K101: 165118.4268 | L101: 0.1691373514 | M101: 1.115289735 | N101: 174946.7294 | O101: 0.1456193744 | P101: 0.2467626378 | Q101: 236991.3425 | R101: -0.1812470189 | S101: 2.697323727 | T101: 408177.8306 | U101: 0.3509720188 | V101: 11.79050042 | W101: 286417.6501 | X101: -0.3207213798 | Y101: 3.753034427 | Z101: 227837.7446 | AA101: -0.5276397789 | AB101: 1.75447986 | AC101: 153067.2094 | AD101: -0.3968537417 | AE101: 2.338484843 | AF101: 226293.5286 | AG101: -0.01761013319 | AH101: 3.613866632
A102: 2012-07-01 | B102: 143598.0888 | C102: -0.4593550632 | D102: 0.8132077116 | E102: 158000.7796 | F102: -0.4112277813 | G102: -1.535626442 | H102: 158311.0817 | I102: -1.0570185 | J102: 0.8236565568 | K102: 164479.1252 | L102: -0.3871776014 | M102: 0.4212509189 | N102: 174964.7451 | O102: 0.01029781914 | P102: 0.7451485136 | Q102: 237767.7349 | R102: 0.3276036834 | S102: 2.520344173 | T102: 408557.0238 | U102: 0.09289899953 | V102: 10.02084656 | W102: 287283.2905 | X102: 0.3022301228 | Y102: 3.283711097 | Z102: 226929.9671 | AA102: -0.398431549 | AB102: 1.335465167 | AC102: 152432.4173 | AD102: -0.4147145901 | AE102: 1.326656229 | AF102: 226093.4075 | AG102: -0.08843429172 | AH102: 2.966603674
A103: 2012-08-01 | B103: 143277.6955 | C103: -0.2231180485 | D103: 1.943628703 | E103: 159467.2708 | F103: 0.9281544289 | G103: -0.9955426116 | H103: 158361.605 | I103: 0.03191392666 | J103: -0.1647746598 | K103: 163567.3388 | L103: -0.5543478092 | M103: -0.4556700581 | N103: 174705.7183 | O103: -0.1480451506 | P103: -0.09917209881 | Q103: 237292.07 | R103: -0.2000544386 | S103: 1.869304622 | T103: 406708.1654 | U103: -0.4525337357 | V103: 7.481924876 | W103: 286126.756 | X103: -0.4025763175 | Y103: 2.112108142 | Z103: 226257.117 | AA103: -0.296501203 | AB103: 1.095394969 | AC103: 151734.8511 | AD103: -0.4576232713 | AE103: -0.3344911996 | AF103: 225602.1313 | AG103: -0.2172890403 | AH103: 2.009398885
A104: 2012-09-01 | B104: 142797.7023 | C104: -0.3350089969 | D104: 1.829413881 | E104: 158636.5555 | F104: -0.5209315693 | G104: -1.216090748 | H104: 158554.3285 | I104: 0.1216983735 | J104: 0.1145848395 | K104: 164051.8346 | L104: 0.2962056785 | M104: -0.0599992526 | N104: 174532.1278 | O104: -0.09936168429 | P104: -0.1422397565 | Q104: 238096.6457 | R104: 0.3390655751 | S104: 2.490573736 | T104: 411552.3681 | U104: 1.191075847 | V104: 8.194966078 | W104: 285167.47 | X104: -0.3352660972 | Y104: 2.31533129 | Z104: 224216.9083 | AA104: -0.9017213469 | AB104: -0.5458113973 | AC104: 152405.6773 | AD104: 0.4421042051 | AE104: -0.07842864435 | AF104: 225755.3688 | AG104: 0.06792375736 | AH104: 2.099684948
A105: 2012-10-01 | B105: 144308.7507 | C105: 1.058174169 | D105: 1.567143924 | E105: 159640.1362 | F105: 0.6326289431 | G105: -0.1089935842 | H105: 158432.0946 | I105: -0.0770927551 | J105: 0.4099021546 | K105: 164738.7516 | L105: 0.4187195318 | M105: 0.5528789297 | N105: 175066.7658 | O105: 0.3063264058 | P105: -0.4864087443 | Q105: 238540.7544 | R105: 0.1865245272 | S105: 2.590472463 | T105: 412147.8795 | U105: 0.1446988096 | V105: 7.706906482 | W105: 284219.0212 | X105: -0.3325936124 | Y105: 2.374573024 | Z105: 224934.6866 | AA105: 0.3201267508 | AB105: -0.2497607529 | AC105: 153029.1445 | AD105: 0.4090839569 | AE105: -1.575829722 | AF105: 226124.2486 | AG105: 0.163398057 | AH105: 2.159354807
A106: 2012-11-01 | B106: 143891.7006 | C106: -0.2889985053 | D106: 1.982264173 | E106: 157751.4831 | F106: -1.183069097 | G106: -0.7583818384 | H106: 158407.3169 | I106: -0.01563928051 | J106: 0.7564524965 | K106: 165309.7397 | L106: 0.3466021476 | M106: 0.6557580848 | N106: 174805.4511 | O106: -0.1492657401 | P106: 0.3168655218 | Q106: 236882.3164 | R106: -0.6952430372 | S106: 2.840957577 | T106: 416794.7674 | U106: 1.127480731 | V106: 9.378695763 | W106: 284808.0022 | X106: 0.2072278508 | Y106: 3.55518834 | Z106: 223350.5893 | AA106: -0.7042476623 | AB106: -0.1961682422 | AC106: 152956.1132 | AD106: -0.04772376331 | AE106: -1.297063052 | AF106: 226098.315 | AG106: -0.0114687652 | AH106: 2.795223578
A107: 2012-12-01 | B107: 143183.0631 | C107: =B107/B106*100-100 -> -0.492479756 | D107: =B107/B95*100-100 -> 1.545404679 | E107: 157842.1877 | F107: =E107/E106*100-100 -> 0.05749844286 | G107: =E107/E95*100-100 -> 0.1671856788 | H107: 157640.125 | I107: -0.4843160043 | J107: -0.5787041625 | K107: 164750.2536 | L107: =K107/K106*100-100 -> -0.3384471595 | M107: =K107/K95*100-100 -> 0.6295038592 | N107: 175715.3541 | O107: =N107/N106*100-100 -> 0.5205232792 | P107: =N107/N95*100-100 -> 0.0300231927 | Q107: 237649.6813 | R107: =Q107/Q106*100-100 -> 0.3239435089 | S107: =Q107/Q95*100-100 -> 3.144251178 | T107: 416349.1478 | U107: =T107/T106*100-100 -> -0.1069158425 | V107: =T107/T95*100-100 -> 8.780802762 | W107: 287301.0257 | X107: =W107/W106*100-100 -> 0.8753347827 | Y107: =W107/W95*100-100 -> 4.97782777 | Z107: 226351.6399 | AA107: =Z107/Z106*100-100 -> 1.343650165 | AB107: =Z107/Z95*100-100 -> 0.6312661555 | AC107: 152586.8553 | AD107: =AC107/AC106*100-100 -> -0.2414142508 | AE107: =AC107/AC95*100-100 -> -1.006571875 | AF107: 226818.3849 | AG107: =AF107/AF106*100-100 -> 0.3184764583 | AH107: =AF107/AF95*100-100 -> 3.091954063
A108: 2013-01-01 | B108: 142778.0373 | C108: -0.2828727282 | D108: 0.2538812921 | E108: 158383.9953 | F108: 0.3432590196 | G108: 0.3259968429 | H108: 158035.7084 | I108: 0.2509408462 | J108: -0.4451172996 | K108: 164919.3932 | L108: 0.1026642648 | M108: 0.3424227352 | N108: 176694.9625 | O108: 0.557497325 | P108: 0.3283359727 | Q108: 237173.2953 | R108: -0.200457238 | S108: 2.379379571 | T108: 421717.9648 | U108: 1.289498727 | V108: 9.816636864 | W108: 287703.1274 | X108: 0.139958324 | Y108: 4.478129705 | Z108: 225927.5638 | AA108: -0.1873527848 | AB108: 0.5295753225 | AC108: 151769.2118 | AD108: -0.5358545214 | AE108: -0.4982527243 | AF108: 227489.2901 | AG108: 0.2957895934 | AH108: 3.078317897
A109: 2013-02-01 | B109: 145088.7733 | C109: 1.618411398 | D109: -0.02373016481 | E109: 160642.765 | F109: 1.426135048 | G109: 0.6381289411 | H109: 157870.3066 | I109: -0.1046610302 | J109: -0.8973906042 | K109: 166933.4386 | L109: 1.221230193 | M109: 1.053168961 | N109: 178504.2906 | O109: 1.023983971 | P109: 1.236334378 | Q109: 241346.616 | R109: 1.759608175 | S109: 3.742514702 | T109: 424235.5514 | U109: 0.5969834929 | V109: 10.37986021 | W109: 289304.4461 | X109: 0.5565871786 | Y109: 4.552017975 | Z109: 226963.863 | AA109: 0.458686504 | AB109: 1.334304707 | AC109: 153705.089 | AD109: 1.275540163 | AE109: 0.7191084194 | AF109: 229463.1032 | AG109: 0.8676510261 | AH109: 3.601821347
A110: 2013-03-01 | B110: 145456.542 | C110: 0.2534783725 | D110: -1.101955292 | E110: 160659.2925 | F110: 0.01028839438 | G110: 0.2674658691 | H110: 158407.1447 | I110: 0.3400500457 | J110: 0.3580349586 | K110: 166168.5411 | L110: -0.4582050708 | M110: 0.3924120556 | N110: 177688.6732 | O110: -0.4569175286 | P110: 1.219646674 | Q110: 241245.3989 | R110: -0.04193845456 | S110: 2.558962917 | T110: 431043.654 | U110: 1.604793046 | V110: 10.57394867 | W110: 291414.7316 | X110: 0.7294341629 | Y110: 3.209192336 | Z110: 226118.8032 | AA110: -0.3723323158 | AB110: 0.8085326758 | AC110: 153358.5564 | AD110: -0.2254529137 | AE110: -0.1889799659 | AF110: 230305.483 | AG110: 0.3671090444 | AH110: 3.103908012
A111: 2013-04-01 | B111: 145279.4792 | C111: -0.1217290009 | D111: -0.4889785585 | E111: 160441.1121 | F111: -0.1358031526 | G111: 0.8437929385 | H111: 159171.52 | I111: 0.4825384358 | J111: 0.1598539529 | K111: 166109.9312 | L111: -0.03527140537 | M111: 0.4400130165 | N111: 177132.092 | O111: -0.3132339222 | P111: 1.770391504 | Q111: 243217.0563 | R111: 0.817282872 | S111: 3.724826955 | T111: 433510.3213 | U111: 0.5722546364 | V111: 9.299992927 | W111: 292036.7631 | X111: 0.213452334 | Y111: 2.746151706 | Z111: 226728.8984 | AA111: 0.2698117852 | AB111: 0.6415599756 | AC111: 153123.4821 | AD111: -0.1532841387 | AE111: -0.5496520158 | AF111: 230924.4862 | AG111: 0.2687748209 | AH111: 3.006493363
A112: 2013-05-01 | B112: 143486.0853 | C112: -1.234444013 | D112: -0.9628678121 | E112: 159345.2325 | F112: -0.6830416811 | G112: 0.806977514 | H112: 159374.2258 | I112: 0.1273505346 | J112: 0.1842490129 | K112: 164990.5966 | L112: -0.6738516855 | M112: 0.0915891202 | N112: 175828.6858 | O112: -0.7358385376 | P112: 0.6504820229 | Q112: 241959.4783 | R112: -0.5170599257 | S112: 1.911289837 | T112: 435320.1691 | U112: 0.4174866687 | V112: 7.023946011 | W112: 293270.4245 | X112: 0.4224335787 | Y112: 2.064186138 | Z112: 227330.0836 | AA112: 0.2651559551 | AB112: -0.7492809979 | AC112: 152098.5758 | AD112: -0.6693332036 | AE112: -1.027158274 | AF112: 230753.0985 | AG112: -0.07421806015 | AH112: 1.952744306
A113: 2013-06-01 | B113: 144732.8088 | C113: 0.8688811056 | D113: 0.3272206315 | E113: 160727.6934 | F113: 0.867588508 | G113: 1.307561199 | H113: 159691.6382 | I113: 0.199161711 | J113: -0.1941832603 | K113: 166473.5753 | L113: 0.8988262076 | M113: 0.8207130711 | N113: 177533.0911 | O113: 0.9693556309 | P113: 1.478370969 | Q113: 243046.4227 | R113: 0.4492257767 | S113: 2.554979463 | T113: 435658.0314 | U113: 0.07761237446 | V113: 6.732408947 | W113: 291548.302 | X113: -0.5872131471 | Y113: 1.79131834 | Z113: 226695.0783 | AA113: -0.2793318382 | AB113: -0.5015263293 | AC113: 151162.7727 | AD113: -0.6152609246 | AE113: -1.244183342 | AF113: 231074.1043 | AG113: 0.139112244 | AH113: 2.112555213
A114: 2013-07-01 | B114: 144811.9288 | C114: 0.05466625949 | D114: 0.8453037792 | E114: 161499.6099 | F114: 0.4802635196 | G114: 2.214438626 | H114: 159247.2989 | I114: -0.2782483177 | J114: 0.5913782112 | K114: 166735.9085 | L114: 0.1575824628 | M114: 1.372078817 | N114: 178278.1727 | O114: 0.4196860737 | P114: 1.893768724 | Q114: 243749.6618 | R114: 0.2893435296 | S114: 2.515869894 | T114: 438041.0554 | U114: 0.5469941444 | V114: 7.216625801 | W114: 293074.4078 | X114: 0.5234487243 | Y114: 2.015821155 | Z114: 228358.7672 | AA114: 0.7338884411 | AB114: 0.6296216282 | AC114: 151791.6898 | AD114: 0.416052895 | AE114: -0.42033551 | AF114: 232034.2432 | AG114: 0.4155112486 | AH114: 2.627602359
A115: 2013-08-01 | B115: 144950.5715 | C115: 0.0957398402 | D115: 1.167576033 | E115: 162480.1982 | F115: 0.6071768806 | G115: 1.889370362 | H115: 160961.912 | I115: 1.076698392 | J115: 1.642006008 | K115: 167091.7734 | L115: 0.2134303056 | M115: 2.154730063 | N115: 179739.1189 | O115: 0.8194756324 | P115: 2.88107377 | Q115: 245009.8582 | R115: 0.5170043736 | S115: 3.25244252 | T115: 444032.7602 | U115: 1.36784094 | V115: 9.177242558 | W115: 292881.8091 | X115: -0.0657166623 | Y115: 2.360860345 | Z115: 230641.6162 | AA115: 0.9996765086 | AB115: 1.937839236 | AC115: 152710.6261 | AD115: 0.6053930168 | AE115: 0.6430789753 | AF115: 233534.2653 | AG115: 0.6464658381 | AH115: 3.515983636
A116: 2013-09-01 | B116: 144893.2808 | C116: -0.03952433059 | D116: 1.467515532 | E116: 163136.2409 | F116: 0.4037678133 | G116: 2.836474506 | H116: 161333.8111 | I116: 0.231047882 | J116: 1.753015945 | K116: 168986.7329 | L116: 1.134083044 | M116: 3.008133594 | N116: 180357.5311 | O116: 0.3440610006 | P116: 3.337725526 | Q116: 246185.0616 | R116: 0.479655549 | S116: 3.397114568 | T116: 450517.0458 | U116: 1.460316926 | V116: 9.467732588 | W116: 293111.1247 | X116: 0.07829627177 | Y116: 2.785610387 | Z116: 231949.6812 | AA116: 0.5671417739 | AB116: 3.448791138 | AC116: 154799.2434 | AD116: 1.367696129 | AE116: 1.570522918 | AF116: 234997.1067 | AG116: 0.6263926279 | AH116: 4.093695777
A117: 2013-10-01 | B117: 145846.8011 | C117: 0.6580845294 | D117: 1.065805308 | E117: 163085.6589 | F117: -0.03100596545 | G117: 2.158306052 | H117: 162807.1797 | I117: 0.9132422424 | J117: 2.761489132 | K117: 169322.1171 | L117: 0.198467746 | M117: 2.782202358 | N117: 181369.2527 | O117: 0.56095333 | P117: 3.600047636 | Q117: 246242.2044 | R117: 0.02321132 | S117: 3.228567805 | T117: 456595.1029 | U117: 1.349129221 | V117: 10.78429021 | W117: 295235.0011 | X117: 0.7245976875 | Y117: 3.875877075 | Z117: 232364.0728 | AA117: 0.1786558259 | AB117: 3.302908187 | AC117: 156317.4182 | AD117: 0.980737891 | AE117: 2.148789213 | AF117: 236415.5595 | AG117: 0.6036043278 | AH117: 4.551175241
A118: 2013-11-01 | B118: 145976.0824 | C118: 0.08864187837 | D118: 1.448576807 | E118: 162594.9608 | F118: -0.3008836947 | G118: 3.070321488 | H118: 162076.9059 | I118: -0.4485513417 | J118: 2.316552667 | K118: 170422.7024 | L118: 0.6499950162 | M118: 3.092959141 | N118: 181919.8495 | O118: 0.3035777895 | P118: 4.06989507 | Q118: 247283.9207 | R118: 0.4230453907 | S118: 4.391042961 | T118: 462903.3079 | U118: 1.381575261 | V118: 11.06264859 | W118: 296680.8726 | X118: 0.4897358161 | Y118: 4.168727833 | Z118: 231370.8013 | AA118: -0.4274634542 | AB118: 3.590862233 | AC118: 156066.0142 | AD118: -0.1608291498 | AE118: 2.033198266 | AF118: 237336.6019 | AG118: 0.3895862007 | AH118: 4.970531016
A119: 2013-12-01 | B119: 146336.3541 | C119: =B119/B118*100-100 -> 0.2468018615 | D119: =B119/B107*100-100 -> 2.202279319 | E119: 163049.6379 | F119: =E119/E118*100-100 -> 0.2796378776 | G119: =E119/E107*100-100 -> 3.299149745 | H119: 163196.672 | I119: 0.6908856975 | J119: 3.524830417 | K119: 170101.3954 | L119: =K119/K118*100-100 -> -0.1885352992 | M119: =K119/K107*100-100 -> 3.248032555 | N119: 183300.4852 | O119: =N119/N118*100-100 -> 0.7589252754 | P119: =N119/N107*100-100 -> 4.316715022 | Q119: 248238.4227 | R119: =Q119/Q118*100-100 -> 0.3859943696 | S119: =Q119/Q107*100-100 -> 4.455609343 | T119: 469600.3568 | U119: =T119/T118*100-100 -> 1.446748972 | V119: =T119/T107*100-100 -> 12.79003674 | W119: 301473.4085 | X119: =W119/W118*100-100 -> 1.615384182 | Y119: =W119/W107*100-100 -> 4.932938476 | Z119: 233861.7676 | AA119: =Z119/Z118*100-100 -> 1.07661223 | AB119: =Z119/Z107*100-100 -> 3.317902952 | AC119: 156999.3325 | AD119: =AC119/AC118*100-100 -> 0.5980278586 | AE119: =AC119/AC107*100-100 -> 2.891780638 | AF119: 239549.3018 | AG119: 0.9323045602 | AH119: 5.612824082
A120: 2014-01-01 | B120: 148608.2797 | C120: 1.552536737 | D120: 4.083430892 | E120: 164916.575 | F120: 1.14501151 | G120: 4.124520092 | H120: 164098.7021 | I120: 0.5527258036 | J120: 3.83647075 | K120: 173738.5727 | L120: 2.138240693 | M120: 5.347569694 | N120: 184413.3659 | O120: 0.6071346216 | P120: 4.368207948 | Q120: 251316.7668 | R120: 1.240075602 | S120: 5.963349073 | T120: 482426.9747 | U120: 2.731390165 | V120: 14.39564235 | W120: 304806.7921 | X120: 1.105697385 | Y120: 5.944900526 | Z120: 234456.3767 | AA120: 0.2542566247 | AB120: 3.775020956 | AC120: 157798.8769 | AD120: 0.5092661245 | AE120: 3.9729172 | AF120: 242788.4282 | AG120: =AF120/AF119*100-100 -> 1.352175239 | AH120: =AF120/AF108*100-100 -> 6.725212467
A121: 2014-02-01 | B121: 150191.5893 | C121: 1.065424856 | D121: 3.51703022 | E121: 165957.2179 | F121: 0.6310116974 | G121: 3.308242934 | H121: 164456.4401 | I121: 0.2180017076 | J121: 4.171863374 | K121: 175107.2489 | L121: 0.787779133 | M121: 4.896448762 | N121: 186017.3965 | O121: 0.8698017151 | P121: 4.208921756 | Q121: 254439.3312 | R121: 1.24248153 | S121: 5.424859665 | T121: 487007.5657 | U121: 0.9494889789 | V121: 14.79650021 | W121: 308830.2611 | X121: 1.320006338 | Y121: 6.749227415 | Z121: 236344.7757 | AA121: 0.8054372753 | AB121: 4.133218637 | AC121: 159428.8974 | AD121: 1.032973483 | AE121: 3.723889988 | AF121: 245120.3163 | AG121: 0.9604609801 | AH121: 6.823412058
A122: 2014-03-01 | B122: 153076.7586 | C122: 1.920992559 | D122: 5.238827002 | E122: 166725.1263 | F122: 0.462714667 | G122: 3.775588484 | H122: 165497.4193 | I122: 0.6329816882 | J122: 4.475981571 | K122: 176563.1861 | L122: 0.8314545566 | M122: 6.255483076 | N122: 186584.6251 | O122: 0.3049330899 | P122: 5.006482264 | Q122: 257322.4293 | R122: 1.133118087 | S122: 6.664181127 | T122: 494031.6465 | U122: 1.442293982 | V122: 14.61290333 | W122: 312187.9957 | X122: 1.087242731 | Y122: 7.128419341 | Z122: 238685.5826 | AA122: 0.9904204007 | AB122: 5.557600337 | AC122: 159251.2818 | AD122: -0.1114074206 | AE122: 3.842449706 | AF122: 247519.5636 | AG122: 0.9788039358 | AH122: 7.474455373
A123: 2014-04-01 | B123: 152256.4783 | C123: -0.5358620341 | D123: 4.802467079 | E123: 166018.7098 | F123: -0.4237012765 | G123: 3.476414224 | H123: 165662.5106 | I123: 0.09975460212 | J123: 4.07798489 | K123: 175922.0483 | L123: -0.3631209173 | M123: 5.907002079 | N123: 186702.648 | O123: 0.06325433839 | P123: 5.403061564 | Q123: 259667.4255 | R123: 0.9113065608 | S123: 6.76365772 | T123: 499497.4634 | U123: 1.106369788 | V123: 15.221585 | W123: 314182.4138 | X123: 0.6388516585 | Y123: 7.583172233 | Z123: 241039.6435 | AA123: 0.9862601932 | AB123: 6.31183108 | AC123: 158892.1445 | AD123: -0.2255161174 | AE123: 3.767327099 | AF123: 248767.2187 | AG123: 0.5040632471 | AH123: 7.726652486
A124: 2014-05-01 | B124: 153431.4021 | C124: 0.7716740971 | D124: 6.931206446 | E124: 167312.2176 | F124: 0.779133792 | G124: 4.999826514 | H124: 166093.0107 | I124: 0.2598657839 | J124: 4.215728674 | K124: 176251.147 | L124: 0.1870707711 | M124: 6.824964951 | N124: 186993.2135 | O124: 0.1556300895 | P124: 6.349662242 | Q124: 261601.9429 | R124: 0.7449981251 | S124: 8.118080234 | T124: 512537.8479 | U124: 2.61070085 | V124: 17.73813488 | W124: 317294.447 | X124: 0.9905179192 | Y124: 8.191764489 | Z124: 242517.1554 | AA124: 0.6129746579 | AB124: 6.680625631 | AC124: 157844.159 | AD124: -0.6595578082 | AE124: 3.777539118 | AF124: 251281.3278 | AG124: 1.01062714 | AH124: 8.89618791
A125: 2014-06-01 | B125: 151811.0935 | C125: -1.056047587 | D125: 4.890587525 | E125: 167080.2091 | F125: -0.1386680477 | G125: 3.952346691 | H125: 165985.5912 | I125: -0.06467435367 | J125: 3.941316521 | K125: 176750.0716 | L125: 0.2830759712 | M125: 6.173049564 | N125: 187698.8009 | O125: 0.37733314 | P125: 5.726092927 | Q125: 264351.5939 | R125: 1.051082006 | S125: 8.765885526 | T125: 524169.2582 | U125: 2.269375876 | V125: 20.31667508 | W125: 320389.2932 | X125: 0.9753861839 | Y125: 9.892354365 | Z125: 241544.8408 | AA125: -0.400926115 | AB125: 6.550544739 | AC125: 159150.6958 | AD125: 0.8277384769 | AE125: 5.284319014 | AF125: 253272.3276 | AG125: 0.7923389447 | AH125: 9.606538701
A126: 2014-07-01 | B126: 150944.0325 | C126: =B126/B125*100-100 -> -0.5711446863 | D126: =B126/B114*100-100 -> 4.234529389 | E126: 168078.9775 | F126: =E126/E125*100-100 -> 0.5977777946 | G126: =E126/E114*100-100 -> 4.073921657 | H126: 166281.055 | I126: 0.1780057114 | J126: 4.416876202 | K126: 178386.4764 | L126: =K126/K125*100-100 -> 0.9258297638 | M126: =K126/K114*100-100 -> 6.987437818 | N126: 189862.7989 | O126: =N126/N125*100-100 -> 1.152909875 | P126: =N126/N114*100-100 -> 6.498061958 | Q126: 265788.8684 | R126: =Q126/Q125*100-100 -> 0.5436980954 | S126: =Q126/Q114*100-100 -> 9.04173836 | T126: 527819.6335 | U126: =T126/T125*100-100 -> 0.6964115625 | V126: =T126/T114*100-100 -> 20.49547115 | W126: 324126.6009 | X126: =W126/W125*100-100 -> 1.16648959 | Y126: =W126/W114*100-100 -> 10.59532741 | Z126: 243214.3174 | AA126: =Z126/Z125*100-100 -> 0.6911663089 | AB126: =Z126/Z114*100-100 -> 6.505355711 | AC126: 159154.3294 | AD126: =AC126/AC125*100-100 -> 0.002283136709 | AE126: =AC126/AC114*100-100 -> 4.850489303 | AF126: 255120.1434 | AG126: =AF126/AF125*100-100 -> 0.7295766709 | AH126: =AF126/AF114*100-100 -> 9.949350518
A127: 2014-08-01 | B127: 150613.0877 | C127: -0.2192499919 | D127: 3.90651526 | E127: 169202.1218 | F127: 0.6682241384 | G127: 4.137072495 | H127: 167384.2594 | I127: 0.6634576406 | J127: 3.989979508 | K127: 179498.5721 | L127: 0.6234192636 | M127: 7.42514031 | N127: 191411.4449 | O127: 0.8156658594 | P127: 6.494037602 | Q127: 268741.044 | R127: 1.110722029 | S127: 9.685808542 | T127: 531090.3365 | U127: 0.6196630029 | V127: 19.60611559 | W127: 326122.8439 | X127: 0.6158837203 | Y127: 11.34964129 | Z127: 246106.3119 | AA127: 1.18907251 | AB127: 6.705076039 | AC127: 161313.5904 | AD127: 1.356708939 | AE127: 5.633507386 | AF127: 257063.3943 | AG127: 0.7617003077 | AH127: 10.07523626
A128: 2014-09-01 | B128: 149975.113 | C128: -0.4235852186 | D128: 3.507293185 | E128: 170392.9571 | F128: 0.7037945532 | G128: 4.448255103 | H128: 168558.2722 | I128: 0.7013878508 | J128: 4.47795848 | K128: 181035.0806 | L128: 0.8560004372 | M128: 7.129759543 | N128: 191684.993 | O128: 0.1429110502 | P128: 6.280559394 | Q128: 270540.8124 | R128: 0.6697036184 | S128: 9.893269207 | T128: 534839.2424 | U128: 0.7058885526 | V128: 18.71676052 | W128: 326868.6364 | X128: 0.2286845292 | Y128: 11.51696707 | Z128: 247715.5581 | AA128: 0.6538825327 | AB128: 6.797110864 | AC128: 161834.9341 | AD128: 0.3231864385 | AE128: 4.545042063 | AF128: 258408.2138 | AG128: 0.5231470319 | AH128: 9.962295877
A129: 2014-10-01 | B129: 151472.2735 | C129: 0.9982726651 | D129: 3.857110622 | E129: 171125.8352 | F129: 0.430110589 | G129: 4.930032678 | H129: 170197.0302 | I129: 0.9722204714 | J129: 4.539020089 | K129: 180590.3891 | L129: -0.2456382949 | M129: 6.654932188 | N129: 193099.5379 | O129: 0.7379528772 | P129: 6.467626146 | Q129: 272283.4769 | R129: 0.6441410602 | S129: 10.57547085 | T129: 535307.8826 | U129: 0.08762263585 | V129: 17.23907663 | W129: 326823.3305 | X129: -0.01386057069 | Y129: 10.699385 | Z129: 248519.3836 | AA129: 0.3244953621 | AB129: 6.95258551 | AC129: 163649.9261 | AD129: 1.12150816 | AE129: 4.690781083 | AF129: 259235.5339 | AG129: 0.3201601409 | AH129: 9.652484178
A130: 2014-11-01 | B130: 150501.9976 | C130: -0.64056336 | D130: 3.100449849 | E130: 170244.1773 | F130: -0.5152103144 | G130: 4.704460978 | H130: 170973.4506 | I130: 0.4561891608 | J130: 5.489088489 | K130: 180828.4699 | L130: 0.1318346605 | M130: 6.10585757 | N130: 193402.5381 | O130: 0.1569139923 | P130: 6.311949283 | Q130: 271673.4294 | R130: -0.2240486798 | S130: 9.862957788 | T130: 535357.7105 | U130: 0.009308272595 | V130: 15.65216782 | W130: 327995.7643 | X130: 0.3587362541 | Y130: 10.55507602 | Z130: 247031.8621 | AA130: -0.598553514 | AB130: 6.768814715 | AC130: 163134.4613 | AD130: -0.3149801499 | AE130: 4.529139229 | AF130: 259145.0693 | AG130: -0.03489667572 | AH130: 9.188834475
A131: 2014-12-01 | B131: 152121.9055 | C131: 1.076336482 | D131: 3.953598189 | E131: 170754.9262 | F131: 0.3000096106 | G131: 4.72573161 | H131: 170974.0857 | I131: 0.0003714146867 | J131: 4.765669266 | K131: 180797.647 | L131: -0.01704536389 | M131: 6.288162145 | N131: 193948.9975 | O131: 0.2825502738 | P131: 5.809320311 | Q131: 273886.9857 | R131: 0.8147857128 | S131: 10.33222928 | T131: 532395.2169 | U131: -0.5533671247 | V131: 13.37197881 | W131: 328843.3727 | X131: 0.2584205259 | Y131: 9.078732439 | Z131: 249054.8198 | AA131: 0.8189055702 | AB131: 6.496595118 | AC131: 163534.7322 | AD131: 0.2453625427 | AE131: 4.162692663 | AF131: 259672.9569 | AG131: 0.2037034746 | AH131: 8.40063189
A132: 2015-01-01 | B132: 153191.1047 | C132: =B132/B131*100-100 -> 0.7028568171 | D132: =B132/B120*100-100 -> 3.083828828 | E132: 172095.2427 | F132: =E132/E131*100-100 -> 0.7849358057 | G132: =E132/E120*100-100 -> 4.352908562 | H132: 171162.4951 | I132: 0.1101976771 | J132: 4.304600161 | K132: 182449.1388 | L132: =K132/K131*100-100 -> 0.913447635 | M132: =K132/K120*100-100 -> 5.013605209 | N132: 195064.0116 | O132: =N132/N131*100-100 -> 0.5749006756 | P132: =N132/N120*100-100 -> 5.775419614 | Q132: 277173.5103 | R132: =Q132/Q131*100-100 -> 1.199956474 | S132: =Q132/Q120*100-100 -> 10.28850714 | T132: 534783.4049 | U132: =T132/T131*100-100 -> 0.4485742666 | V132: =T132/T120*100-100 -> 10.85271615 | W132: 331378.8703 | X132: =W132/W131*100-100 -> 0.7710350444 | Y132: =W132/W120*100-100 -> 8.717679156 | Z132: 247284.7896 | AA132: =Z132/Z131*100-100 -> -0.7106990215 | AB132: =Z132/Z120*100-100 -> 5.471556439 | AC132: 163966.7467 | AD132: =AC132/AC131*100-100 -> 0.2641729231 | AE132: =AC132/AC120*100-100 -> 3.908690531 | AF132: 261053.0096 | AG132: =AF132/AF131*100-100 -> 0.5314579977 | AH132: =AF132/AF120*100-100 -> 7.522838519
A133: 2015-02-01 | B133: 156490.3684 | C133: 2.153691434 | D133: 4.193829461 | E133: 172844.143 | F133: 0.4351662027 | G133: 4.149819607 | H133: 170817.8691 | I133: -0.2013443434 | J133: 3.868154398 | K133: 184516.6195 | L133: 1.133181948 | M133: 5.373490059 | N133: 195422.6849 | O133: 0.183874641 | P133: 5.056133735 | Q133: 281148.9924 | R133: 1.43429368 | S133: 10.49745772 | T133: 533129.6979 | U133: -0.3092292925 | V133: 9.470516586 | W133: 332429.159 | X133: 0.3169449916 | Y133: 7.641381339 | Z133: 249214.9261 | AA133: 0.7805318182 | AB133: 5.445498149 | AC133: 165242.8827 | AD133: 0.7782895309 | AE133: 3.646757471 | AF133: 262254.4215 | AG133: 0.4602176203 | AH133: 6.9900796
A134: 2015-03-01 | B134: 157210.5159 | C134: 0.4601864866 | D134: 2.700447431 | E134: 173356.7975 | F134: 0.2965992762 | G134: 3.977607577 | H134: 170929.7761 | I134: 0.06551243828 | J134: 3.282442014 | K134: 185516.3377 | L134: 0.5418038542 | M134: 5.070791804 | N134: 195616.7691 | O134: 0.09931507955 | P134: 4.840776099 | Q134: 282047.528 | R134: 0.3195941154 | S134: 9.608606153 | T134: 531521.9243 | U134: -0.3015727061 | V134: 7.588638922 | W134: 334537.5743 | X134: 0.6342449787 | Y134: 7.159012818 | Z134: 250485.1819 | AA134: 0.5097029259 | AB134: 4.943574369 | AC134: 165233.8661 | AD134: -0.00545653927 | AE134: 3.756694602 | AF134: 262921.347 | AG134: 0.2543047576 | AH134: 6.222450932
A135: 2015-04-01 | B135: 156632.5113 | C135: -0.3676628279 | D135: 2.87411941 | E135: 173004.6623 | F135: -0.2031274665 | G135: 4.207930831 | H135: 170559.418 | I135: -0.2166726579 | J135: 2.955953899 | K135: 185852.3357 | L135: 0.1811150342 | M135: 5.64470884 | N135: 194990.7127 | O135: -0.3200422762 | P135: 4.439178981 | Q135: 283143.9946 | R135: 0.3887524 | S135: 9.041014322 | T135: 533837.4412 | U135: 0.435639016 | V135: 6.874905346 | W135: 335291.2277 | X135: 0.2252821362 | Y135: 6.718649072 | Z135: 252677.1932 | AA135: 0.8751061995 | AB135: 4.828064621 | AC135: 163588.9452 | AD135: -0.9955107726 | AE135: 2.955967831 | AF135: 263444.8357 | AG135: 0.199104674 | AH135: 5.900141107
A136: 2015-05-01 | B136: 153995.5192 | C136: -1.683553492 | D136: 0.3676672904 | E136: 172655.7626 | F136: -0.2016706692 | G136: 3.19375657 | H136: 171972.3399 | I136: 0.8284044956 | J136: 3.539781186 | K136: 186804.3794 | L136: 0.512258131 | M136: 5.987610611 | N136: 196260.1032 | O136: 0.6510004807 | P136: 4.955735833 | Q136: 283236.8563 | R136: 0.03279663061 | S136: 8.270165399 | T136: 537979.6484 | U136: 0.7759304444 | V136: 4.963887179 | W136: 337699.9949 | X136: 0.7184104419 | Y136: 6.431107796 | Z136: 254733.5102 | AA136: 0.8138118551 | AB136: 5.037315712 | AC136: 163071.9845 | AD136: -0.316011992 | AE136: 3.312017102 | AF136: 264684.3996 | AG136: 0.4705212687 | AH136: 5.333890906
A137: 2015-06-01 | B137: 153367.7286 | C137: -0.407668105 | D137: 1.025376372 | E137: 173139.4367 | F137: 0.2801378349 | G137: 3.626538223 | H137: 173138.8088 | I137: 0.6782886531 | J137: 4.309541295 | K137: 188212.6075 | L137: 0.7538517616 | M137: 6.485166162 | N137: 197800.0176 | O137: 0.7846293515 | P137: 5.381609606 | Q137: 284782.3173 | R137: 0.5456426319 | S137: 7.728617465 | T137: 544269.986 | U137: 1.169251962 | V137: 3.834778085 | W137: 339022.7787 | X137: 0.3917038285 | Y137: 5.815888958 | Z137: 253956.2106 | AA137: -0.3051422708 | AB137: 5.138329481 | AC137: 162640.0203 | AD137: -0.2648917423 | AE137: 2.192465741 | AF137: 266052.1675 | AG137: 0.5167542323 | AH137: 5.045888759
A138: 2015-07-01 | B138: 152731.8266 | C138: =B138/B137*100-100 -> -0.414625665 | D138: =B138/B126*100-100 -> 1.184408607 | E138: 173848.8072 | F138: =E138/E137*100-100 -> 0.4097104998 | G138: =E138/E126*100-100 -> 3.432808668 | H138: 174092.4563 | I138: 0.5507994091 | J138: 4.697709729 | K138: 188134.3399 | L138: =K138/K137*100-100 -> -0.04158464198 | M138: =K138/K126*100-100 -> 5.464463296 | N138: 198312.1411 | O138: =N138/N137*100-100 -> 0.2589097616 | P138: =N138/N126*100-100 -> 4.450235797 | Q138: 286165.4642 | R138: =Q138/Q137*100-100 -> 0.4856856794 | S138: =Q138/Q126*100-100 -> 7.666459443 | T138: 547880.8135 | U138: =T138/T137*100-100 -> 0.6634257942 | V138: =T138/T126*100-100 -> 3.800764261 | W138: 340968.7455 | X138: =W138/W137*100-100 -> 0.5739929361 | Y138: =W138/W126*100-100 -> 5.196162402 | Z138: 256178.274 | AA138: =Z138/Z137*100-100 -> 0.8749789563 | AB138: =Z138/Z126*100-100 -> 5.330260466 | AC138: 163759.8958 | AD138: =AC138/AC137*100-100 -> 0.6885608323 | AE138: =AC138/AC126*100-100 -> 2.893773828 | AF138: 267412.6105 | AG138: =AF138/AF137*100-100 -> 0.5113444414 | AH138: =AF138/AF126*100-100 -> 4.818305171
A139: 2015-08-01 | B139: 154084.1101 | C139: 0.8853973355 | D139: 2.304595482 | E139: 176206.8417 | F139: 1.356370822 | G139: 4.139853467 | H139: 175577.7763 | I139: 0.8531788377 | J139: 4.895034312 | K139: 188679.2285 | L139: 0.2896273683 | M139: 5.114612502 | N139: 199247.0498 | O139: 0.4714328925 | P139: 4.093592668 | Q139: 290790.0146 | R139: 1.616040699 | S139: 8.204541567 | T139: 557366.7991 | U139: 1.731395835 | V139: 4.947644644 | W139: 342956.1199 | X139: 0.5828611684 | Y139: 5.161636584 | Z139: 256331.4599 | AA139: 0.05979662375 | AB139: 4.154768684 | AC139: 164187.6319 | AD139: 0.261197095 | AE139: 1.781648651 | AF139: 269933.2375 | AG139: 0.9425984051 | AH139: 5.006486116
A140: 2015-09-01 | B140: 153862.598 | C140: -0.1437605259 | D140: 2.592086773 | E140: 176472.195 | F140: 0.1505919516 | G140: 3.567775343 | H140: 176467.8526 | I140: 0.5069413579 | J140: 4.692490216 | K140: 190492.3624 | L140: 0.9609610684 | M140: 5.224005062 | N140: 199335.4658 | O140: 0.04437509253 | P140: 3.991169423 | Q140: 293017.1461 | R140: 0.7658899612 | S140: 8.307927181 | T140: 563704.4222 | U140: 1.137065069 | V140: 5.396982419 | W140: 346599.3957 | X140: 1.062315442 | Y140: 6.036296283 | Z140: 257203.0909 | AA140: 0.3400405732 | AB140: 3.830010851 | AC140: 165644.4716 | AD140: 0.8873017396 | AE140: 2.353964856 | AF140: 271930.066 | AG140: 0.7397490293 | AH140: 5.232748577
A141: 2015-10-01 | B141: 154671.9109 | C141: 0.5259971399 | D141: 2.112358453 | E141: 177295.1855 | F141: 0.4663570597 | G141: 3.605154235 | H141: 177947.1439 | I141: 0.8382780643 | J141: 4.55361277 | K141: 192884.2835 | L141: 1.255651952 | M141: 6.807612735 | N141: 200953.1368 | O141: 0.8115319589 | P141: 4.067124657 | Q141: 295764.242 | R141: 0.9375205208 | S141: 8.623646714 | T141: 571081.2299 | U141: 1.308630441 | V141: 6.682761167 | W141: 350728.8848 | X141: 1.191429975 | Y141: 7.314518906 | Z141: 259138.0724 | AA141: 0.7523165939 | AB141: 4.272780914 | AC141: 166701.1699 | AD141: 0.6379315301 | AE141: 1.864494452 | AF141: 274650.4129 | AG141: 1.00038475 | AH141: 5.946283176
A142: 2015-11-01 | B142: 155037.4186 | C142: 0.2363116108 | D142: 3.013528733 | E142: 175722.0647 | F142: -0.8872890726 | G142: 3.21766508 | H142: 177784.6358 | I142: -0.09132384669 | J142: 3.983767711 | K142: 192999.7249 | L142: 0.05985008379 | M142: 6.730828954 | N142: 200747.2599 | O142: -0.1024502446 | P142: 3.797634621 | Q142: 294580.9962 | R142: -0.4000638502 | S142: 8.432023288 | T142: 573498.9096 | U142: 0.423351273 | V142: 7.12443256 | W142: 352201.4816 | X142: 0.419867548 | Y142: 7.37988716 | Z142: 260584.121 | AA142: 0.5580224322 | AB142: 5.486036803 | AC142: 167206.064 | AD142: 0.3028737485 | AE142: 2.495856869 | AF142: 274993.9456 | AG142: 0.1250800089 | AH142: 6.115831694
A143: 2015-12-01 | B143: 156623.0147 | C143: 1.022718344 | D143: 2.958882969 | E143: 176239.2304 | F143: 0.2943089377 | G143: 3.211798579 | H143: 178254.1269 | I143: 0.2640785777 | J143: 4.257979337 | K143: 192106.6701 | L143: -0.4627233563 | M143: 6.255072044 | N143: 202961.5286 | O143: 1.103013198 | P143: 4.646856252 | Q143: 297641.8075 | R143: 1.039038942 | S143: 8.673220362 | T143: 579284.9739 | U143: 1.008905905 | V143: 8.807321231 | W143: 354948.677 | X143: 0.780006784 | Y143: 7.938522268 | Z143: 263796.5952 | AA143: 1.232797388 | AB143: 5.919088593 | AC143: 167941.6041 | AD143: 0.4399003672 | AE143: 2.69476204 | AF143: 277099.1843 | AG143: 0.7655581757 | AH143: 6.710836437
A144: 2016-01-01 | B144: 158472.0583 | C144: =B144/B143*100-100 -> 1.180569539 | D144: =B144/B132*100-100 -> 3.447297795 | E144: 176661.6913 | F144: =E144/E143*100-100 -> 0.2397087682 | G144: =E144/E132*100-100 -> 2.653442682 | H144: 179447.8659 | I144: =H144/H143*100-100 -> 0.6696837811 | J144: =H144/H132*100-100 -> 4.840646158 | K144: 192887.2888 | L144: =K144/K143*100-100 -> 0.4063465001 | M144: =K144/K132*100-100 -> 5.721128661 | N144: 202907.0571 | O144: =N144/N143*100-100 -> -0.02683833373 | P144: =N144/N132*100-100 -> 4.020754757 | Q144: 301828.7157 | R144: =Q144/Q143*100-100 -> 1.406693603 | S144: =Q144/Q132*100-100 -> 8.895224307 | T144: 586836.0456 | U144: =T144/T143*100-100 -> 1.303515891 | V144: =T144/T132*100-100 -> 9.733406132 | W144: 357899.8849 | X144: =W144/W143*100-100 -> 0.8314463764 | Y144: =W144/W132*100-100 -> 8.003230444 | Z144: 264014.5549 | AA144: =Z144/Z143*100-100 -> 0.08262413673 | AB144: =Z144/Z132*100-100 -> 6.765383864 | AC144: 169268.1884 | AD144: =AC144/AC143*100-100 -> 0.7899081242 | AE144: =AC144/AC132*100-100 -> 3.233242035 | AF144: 279266.6403 | AG144: =AF144/AF143*100-100 -> 0.7821950427 | AH144: =AF144/AF132*100-100 -> 6.976985565
A145: 2016-02-01 | B145: 160696.1987 | C145: 1.403490598 | D145: 2.687596915 | E145: 179923.6435 | F145: 1.84644002 | G145: 4.095886812 | H145: 180419.1819 | I145: 0.5412803521 | J145: 5.620789462 | K145: 195607.1726 | L145: 1.410089719 | M145: 6.010598463 | N145: 205450.1245 | O145: 1.253316361 | P145: 5.131154363 | Q145: 310089.0479 | R145: 2.736761542 | S145: 10.29349431 | T145: 600579.636 | U145: 2.341981296 | V145: 12.65169402 | W145: 367799.5367 | X145: 2.766039386 | Y145: 10.63997448 | Z145: 269112.9301 | AA145: 1.931096271 | AB145: 7.984274588 | AC145: 171917.5257 | AD145: 1.565171415 | AE145: 4.039292311 | AF145: 285130.9885 | AG145: 2.099910017 | AH145: 8.723043398
A146: 2016-03-01 | B146: 160224.1436 | C146: -0.2937562444 | D146: 1.916937712 | E146: 181293.329 | F146: 0.7612593295 | G146: 4.578148431 | H146: 180590.7821 | I146: 0.09511194161 | J146: 5.652032223 | K146: 195983.5637 | L146: 0.1924219092 | M146: 5.642212501 | N146: 204359.9275 | O146: -0.5306382786 | P146: 4.469534214 | Q146: 311388.2846 | R146: 0.4189882561 | S146: 10.40277034 | T146: 601776.7774 | U146: 0.199330989 | V146: 13.21767737 | W146: 368027.3248 | X146: 0.06193268507 | Y146: 10.01075907 | Z146: 267969.2536 | AA146: -0.4249801355 | AB146: 6.980082263 | AC146: 170827.0628 | AD146: -0.6342941924 | AE146: 3.385018366 | AF146: 285361.3038 | AG146: 0.08077526741 | AH146: 8.534855426
A147: 2016-04-01 | B147: 159055.3874 | C147: -0.7294507229 | D147: 1.546853908 | E147: 181803.8106 | F147: 0.2815776955 | G147: 5.086075855 | H147: 179179.9539 | I147: -0.7812293833 | J147: 5.054271385 | K147: 195434.1716 | L147: -0.2803256112 | M147: 5.155617691 | N147: 204857.6943 | O147: 0.243573587 | P147: 5.060231562 | Q147: 312719.0672 | R147: 0.4273707754 | S147: 10.44524099 | T147: 600125.3895 | U147: -0.2744186775 | V147: 12.4172535 | W147: 367617.7092 | X147: -0.111300329 | Y147: 9.641314438 | Z147: 269189.7837 | AA147: 0.4554739396 | AB147: 6.535053797 | AC147: 169904.5697 | AD147: -0.5400157901 | AE147: 3.860667071 | AF147: 285235.4025 | AG147: -0.04411995856 | AH147: 8.271396481
A148: 2016-05-01 | B148: 156820.6291 | C148: -1.40501898 | D148: 1.834540296 | E148: 180348.3885 | F148: -0.8005454388 | G148: 4.455470113 | H148: 179441.9965 | I148: 0.1462454997 | J148: 4.343522101 | K148: 195116.6617 | L148: -0.1624638184 | M148: 4.449725646 | N148: 205423.7023 | O148: 0.2762932663 | P148: 4.669109502 | Q148: 311029.362 | R148: -0.5403268857 | S148: 9.812460873 | T148: 593536.0514 | U148: -1.097993561 | V148: 10.3268596 | W148: 364230.9601 | X148: -0.9212693019 | Y148: 7.856371233 | Z148: 267166.1616 | AA148: -0.7517455376 | AB148: 4.88065012 | AC148: 168452.392 | AD148: -0.8547019662 | AE148: 3.29940642 | AF148: 283251.8958 | AG148: -0.6953929132 | AH148: 7.014956731
A149: 2016-06-01 | B149: 157514.6785 | C149: 0.4425753538 | D149: 2.703926022 | E149: 180876.5799 | F149: 0.2928728135 | G149: 4.468735334 | H149: 180179.8073 | I149: 0.4111695154 | J149: 4.066678384 | K149: 196196.0102 | L149: 0.5531810952 | M149: 4.241693937 | N149: 207298.0381 | O149: 0.9124243189 | P149: 4.801829992 | Q149: 313066.3218 | R149: 0.6549091778 | S149: 9.931798001 | T149: 590647.4783 | U149: -0.4866718727 | V149: 8.521045352 | W149: 367119.2516 | X149: 0.7929835075 | Y149: 8.287488231 | Z149: 268648.0211 | AA149: 0.5546583896 | AB149: 5.785174729 | AC149: 169261.3503 | AD149: 0.4802296222 | AE149: 4.071156669 | AF149: 284342.1368 | AG149: 0.3849016002 | AH149: 6.874580096
A150: 2016-07-01 | B150: 156784.4732 | C150: =B150/B149*100-100 -> -0.463579203 | D150: =B150/B138*100-100 -> 2.653439486 | E150: 180172.7499 | F150: =E150/E149*100-100 -> -0.3891216953 | G150: =E150/E138*100-100 -> 3.637610648 | H150: 180090.2603 | I150: =H150/H149*100-100 -> -0.04969867492 | J150: =H150/H138*100-100 -> 3.445183167 | K150: 198085.1007 | L150: =K150/K149*100-100 -> 0.962858783 | M150: =K150/K138*100-100 -> 5.28917837 | N150: 208391.6467 | O150: =N150/N149*100-100 -> 0.527553739 | P150: =N150/N138*100-100 -> 5.082646735 | Q150: 313476.1154 | R150: =Q150/Q149*100-100 -> 0.1308967268 | S150: =Q150/Q138*100-100 -> 9.543657271 | T150: 588474.6899 | U150: =T150/T149*100-100 -> -0.3678655222 | V150: =T150/T138*100-100 -> 7.409253152 | W150: 369556.7159 | X150: =W150/W149*100-100 -> 0.6639434874 | Y150: =W150/W138*100-100 -> 8.384337516 | Z150: 269695.4157 | AA150: =Z150/Z149*100-100 -> 0.38987618 | AB150: =Z150/Z138*100-100 -> 5.276459065 | AC150: 168844.2634 | AD150: =AC150/AC149*100-100 -> -0.246415919 | AE150: =AC150/AC138*100-100 -> 3.104769712 | AF150: 284841.8137 | AG150: =AF150/AF149*100-100 -> 0.1757308373 | AH150: =AF150/AF138*100-100 -> 6.517719254
A151: 2016-08-01 | B151: 156170.4296 | C151: =B151/B150*100-100 -> -0.3916482474 | D151: 1.354013356 | E151: 181062.9571 | F151: =E151/E150*100-100 -> 0.4940853949 | G151: 2.755917661 | H151: 179857.9594 | I151: =H151/H150*100-100 -> -0.1289913884 | J151: 2.43777041 | K151: 198999.1291 | L151: =K151/K150*100-100 -> 0.46143215 | M151: 5.469547814 | N151: 208795.0422 | O151: =N151/N150*100-100 -> 0.1935756491 | P151: 4.792037019 | Q151: 315272.1203 | R151: =Q151/Q150*100-100 -> 0.57293198 | S151: 8.419170003 | T151: 589372.7733 | U151: =T151/T150*100-100 -> 0.1526120617 | V151: 5.742353915 | W151: 371408.2962 | X151: =W151/W150*100-100 -> 0.501027373 | Y151: 8.296156472 | Z151: 270623.035 | AA151: =Z151/Z150*100-100 -> 0.3439507113 | AB151: 5.575427653 | AC151: 168324.6046 | AD151: =AC151/AC150*100-100 -> -0.3077740336 | AE151: 2.519661625 | AF151: 285726.581 | AG151: =AF151/AF150*100-100 -> 0.3106170862 | AH151: =AF151/AF139*100-100 -> 5.850833224
A152: 2016-09-01 | B152: 156235.1068 | C152: =B152/B151*100-100 -> 0.04141453113 | D152: 1.54196591 | E152: 181005.9732 | F152: =E152/E151*100-100 -> -0.031471885 | G152: 2.569117601 | H152: 180448.7612 | I152: =H152/H151*100-100 -> 0.3284824319 | J152: 2.255883127 | K152: 200444.5473 | L152: =K152/K151*100-100 -> 0.7263439935 | M152: 5.224453507 | N152: 209110.9453 | O152: =N152/N151*100-100 -> 0.1512982195 | P152: 4.904034243 | Q152: 317767.1066 | R152: =Q152/Q151*100-100 -> 0.7913754904 | S152: 8.446591186 | T152: 597233.7555 | U152: =T152/T151*100-100 -> 1.333787813 | V152: 5.948034455 | W152: 372608.3733 | X152: =W152/W151*100-100 -> 0.3231153204 | Y152: 7.504045865 | Z152: 271193.2575 | AA152: =Z152/Z151*100-100 -> 0.2107073131 | AB152: 5.439346243 | AC152: 169846.8147 | AD152: =AC152/AC151*100-100 -> 0.9043301129 | AE152: 2.536965518 | AF152: 287392.545 | AG152: 0.583062326 | AH152: 5.686196939
A153: 2016-10-01 | B153: 158192.8518 | C153: =B153/B152*100-100 -> 1.253076196 | D153: 2.27639321 | E153: 184069.7832 | F153: =E153/E152*100-100 -> 1.692656865 | G153: 3.821083857 | H153: 182821.4316 | I153: =H153/H152*100-100 -> 1.314872138 | J153: 2.739177257 | K153: 201653.3673 | L153: =K153/K152*100-100 -> 0.6030695422 | M153: 4.546292573 | N153: 211507.6829 | O153: =N153/N152*100-100 -> 1.146155935 | P153: 5.252242472 | Q153: 320461.6463 | R153: =Q153/Q152*100-100 -> 0.8479605421 | S153: 8.350368549 | T153: 604988.3272 | U153: =T153/T152*100-100 -> 1.298414834 | V153: 5.937351026 | W153: 374123.344 | X153: =W153/W152*100-100 -> 0.4065852438 | Y153: 6.670240236 | Z153: 273290.472 | AA153: =Z153/Z152*100-100 -> 0.7733283924 | AB153: 5.461335517 | AC153: 172023.3241 | AD153: =AC153/AC152*100-100 -> 1.281454373 | AE153: 3.192631613 | AF153: 290153.7315 | AG153: 0.9607717768 | AH153: 5.644746161
A154: 2016-11-01 | B154: 159283.0451 | C154: =B154/B153*100-100 -> 0.6891546262 | D154: 2.738452813 | E154: 184527.2883 | F154: =E154/E153*100-100 -> 0.248549815 | G154: 5.010881041 | H154: 184259.0686 | I154: =H154/H153*100-100 -> 0.7863613036 | J154: 3.641728003 | K154: 202717.853 | L154: =K154/K153*100-100 -> 0.5278789383 | M154: 5.035306713 | N154: 212304.6972 | O154: =N154/N153*100-100 -> 0.3768252531 | P154: 5.75720802 | Q154: 321973.5394 | R154: =Q154/Q153*100-100 -> 0.4717859977 | S154: 9.298815466 | T154: 612642.9073 | U154: =T154/T153*100-100 -> 1.265244265 | V154: 6.825470296 | W154: 375368.3072 | X154: =W154/W153*100-100 -> 0.3327681256 | Y154: 6.577719537 | Z154: 273480.0503 | AA154: =Z154/Z153*100-100 -> 0.06936880546 | AB154: 4.948854634 | AC154: 173288.7881 | AD154: =AC154/AC153*100-100 -> 0.7356351049 | AE154: 3.637860962 | AF154: 291834.9043 | AG154: 0.5794076048 | AH154: 6.124119796
A155: 2016-12-01 | B155: 160309.7341 | C155: =B155/B154*100-100 -> 0.6445689102 | D155: 2.353881021 | E155: 185830.5971 | F155: =E155/E154*100-100 -> 0.7062959251 | G155: 5.44224267 | H155: 184860.3719 | I155: =H155/H154*100-100 -> 0.3263357555 | J155: 3.706082472 | K155: 203243.6945 | L155: =K155/K154*100-100 -> 0.2593957477 | M155: 5.797312709 | N155: 214312.6736 | O155: =N155/N154*100-100 -> 0.9457993095 | P155: 5.592756918 | Q155: 322627.3922 | R155: =Q155/Q154*100-100 -> 0.2030765558 | S155: 8.394514519 | T155: 616386.129 | U155: =T155/T154*100-100 -> 0.6109956799 | V155: 6.404646543 | W155: 379145.7986 | X155: =W155/W154*100-100 -> 1.006342653 | Y155: 6.817076147 | Z155: 278879.0873 | AA155: =Z155/Z154*100-100 -> 1.974197718 | AB155: 5.717470314 | AC155: 174394.7619 | AD155: =AC155/AC154*100-100 -> 0.6382258258 | AE155: 3.842501013 | AF155: 294112.7581 | AG155: 0.7805282272 | AH155: 6.139885932
A156: 2017-01-01 | B156: 161181.0893 | C156: 0.5435448079 | D156: 1.709469215 | E156: 185586.5178 | F156: -0.1313450194 | G156: 5.051930847 | H156: 185127.5321 | I156: 0.1445200409 | J156: 3.165078744 | K156: 205861.4854 | L156: 1.28800599 | M156: 6.726309809 | N156: 216324.4826 | O156: 0.938726132 | P156: 6.612596765 | Q156: 325628.0625 | R156: 0.9300730193 | S156: 7.885050548 | T156: 621394.6945 | U156: 0.8125694697 | V156: 5.888978552 | W156: 383607.396 | X156: 1.176749798 | Y156: 7.182877722 | Z156: 280565.8097 | AA156: 0.6048221499 | AB156: 6.26906909 | AC156: 175108.6989 | AD156: 0.4093798395 | AE156: 3.450447786 | AF156: 296503.7609 | AG156: =AF156/AF155*100-100 -> 0.8129544563 | AH156: 6.17228055
A157: 2017-02-01 | B157: 161880.5504 | C157: 0.4339597379 | D157: 0.7370128564 | E157: 187564.531 | F157: 1.06581727 | G157: 4.246738961 | H157: 184831.6693 | I157: -0.1598156831 | J157: 2.445686397 | K157: 206790.9792 | L157: 0.4515141599 | M157: 5.717482853 | N157: 217787.6138 | O157: 0.6763594776 | P157: 6.005101882 | Q157: 328108.0102 | R157: 0.7615890637 | S157: 5.810899295 | T157: 622864.227 | U157: 0.2364893836 | V157: 3.710513907 | W157: 386734.5789 | X157: 0.8152040048 | Y157: 5.148196311 | Z157: 282495.4383 | AA157: 0.6877632543 | AB157: 4.972822439 | AC157: 176907.1131 | AD157: 1.027027334 | AE157: 2.902314548 | AF157: 298266.4614 | AG157: =AF157/AF156*100-100 -> 0.5944951616 | AH157: 4.606820518
A158: 2017-03-01 | B158: 161191.2186 | C158: -0.4258274198 | D158: 0.6035763213 | E158: 188335.5938 | F158: 0.4110920444 | G158: 3.884458876 | H158: 186118.3142 | I158: 0.6961171415 | J158: 3.060805248 | K158: 208104.6939 | L158: 0.6352862898 | M158: 6.184768768 | N158: 219183.8385 | O158: 0.6410946465 | P158: 7.253824765 | Q158: 331326.5567 | R158: 0.9809411339 | S158: 6.403025748 | T158: 628086.2729 | U158: 0.838392331 | V158: 4.371969224 | W158: 387811.1489 | X158: 0.2783743962 | Y158: 5.375640004 | Z158: 282371.9344 | AA158: -0.0437189097 | AB158: 5.374751226 | AC158: 176645.4616 | AD158: -0.1479033395 | AE158: 3.406016949 | AF158: 299780.1163 | AG158: =AF158/AF157*100-100 -> 0.5074841204 | AH158: 5.052826819
A159: 2017-04-01 | B159: 160040.4622 | C159: -0.7139076583 | D159: 0.6193281016 | E159: 188038.7263 | F159: -0.1576268873 | G159: 3.429474706 | H159: 186827.1165 | I159: 0.3808342494 | J159: 4.267867309 | K159: 208324.1743 | L159: 0.1054663176 | M159: 6.595572624 | N159: 217828.6609 | O159: -0.6182835352 | P159: 6.331696099 | Q159: 331719.8599 | R159: 0.1187056157 | S159: 6.075994316 | T159: 629668.2812 | U159: 0.2518775496 | V159: 4.922786505 | W159: 386945.1535 | X159: -0.2233033923 | Y159: 5.257484552 | Z159: 282209.8819 | AA159: -0.05738970518 | AB159: 4.836772787 | AC159: 174365.5957 | AD159: -1.290645043 | AE159: 2.625606798 | AF159: 299578.8474 | AG159: =AF159/AF158*100-100 -> -0.06713885003 | AH159: 5.028634149
A160: 2017-05-01 | B160: 159927.8212 | C160: -0.07038277864 | D160: 1.981366985 | E160: 187676.1463 | F160: -0.1928220067 | G160: 4.063112417 | H160: 187051.978 | I160: 0.120358064 | J160: 4.240914449 | K160: 208232.1391 | L160: -0.04417881606 | M160: 6.721864378 | N160: 217796.3484 | O160: -0.014833907 | P160: 6.022988576 | Q160: 333361.2094 | R160: 0.4947998754 | S160: 7.179980454 | T160: 627845.239 | U160: -0.2895242175 | V160: 5.780472405 | W160: 386180.4781 | X160: -0.1976185478 | Y160: 6.026263658 | Z160: 283610.8625 | AA160: 0.4964321279 | AB160: 6.15523344 | AC160: 172799.8705 | AD160: -0.8979553208 | AE160: 2.580835116 | AF160: 299486.236 | AG160: =AF160/AF159*100-100 -> -0.03091385671 | AH160: 5.731414511
A161: 2017-06-01 | B161: 159658.8123 | C161: -0.1682064915 | D161: 1.361227893 | E161: 187346.5307 | F161: -0.1756299877 | G161: 3.576997519 | H161: 185200.3525 | I161: -0.9898989122 | J161: 2.786408393 | K161: 209535.8846 | L161: 0.6261019646 | M161: 6.799258758 | N161: 217936.8399 | O161: 0.06450590918 | P161: 5.132128561 | Q161: 334018.079 | R161: 0.1970444134 | S161: 6.692434075 | T161: 620019.3635 | U161: -1.246465701 | V161: 4.972828327 | W161: 384756.91 | X161: -0.3686276775 | Y161: 4.804340371 | Z161: 282511.854 | AA161: -0.3875057567 | AB161: 5.160593743 | AC161: 172886.6717 | AD161: 0.05023217406 | AE161: 2.141848288 | AF161: 298315.6466 | AG161: =AF161/AF160*100-100 -> -0.39086584 | AH161: 4.914329596
A162: 2017-07-01 | B162: 159557.0708 | C162: -0.06372431185 | D162: 1.768413347 | E162: 188987.129 | F162: 0.8757025365 | G162: 4.892182151 | H162: 185148.33 | I162: -0.02808988766 | J162: 2.808630334 | K162: 209383.5487 | L162: -0.07270158161 | M162: 5.703835345 | N162: 218069.1737 | O162: 0.06072115232 | P162: 4.643913124 | Q162: 333148.4614 | R162: -0.2603504569 | S162: 6.275548621 | T162: 615219.3628 | U162: -0.7741694825 | V162: 4.544744797 | W162: 384833.2451 | X162: 0.01983982672 | Y162: 4.133744158 | Z162: 284743.9367 | AA162: 0.7900845986 | AB162: 5.579820826 | AC162: 174746.8656 | AD162: 1.075961446 | AE162: 3.495885533 | AF162: 298284.8116 | AG162: =AF162/AF161*100-100 -> -0.01033637686 | AH162: 4.71946087
A163: 2017-08-01 | B163: 158760.1397 | C163: -0.4994646175 | D163: =B163/B151*100-100 -> 1.65825892 | E163: 190380.0958 | F163: 0.7370696617 | G163: =E163/E151*100-100 -> 5.145800559 | H163: 187312.1639 | I163: 1.168702927 | J163: =H163/H151*100-100 -> 4.144495236 | K163: 210322.4172 | L163: 0.4483964833 | M163: =K163/K151*100-100 -> 5.690119435 | N163: 219354.0104 | O163: 0.5891876724 | P163: =N163/N151*100-100 -> 5.057097203 | Q163: 333467.4567 | R163: 0.09575170285 | S163: =Q163/Q151*100-100 -> 5.771311599 | T163: 612592.6949 | U163: -0.426948179 | V163: =T163/T151*100-100 -> 3.939768289 | W163: 385289.7871 | X163: 0.1186337293 | Y163: =W163/W151*100-100 -> 3.737528488 | Z163: 284414.2255 | AA163: -0.1157921874 | AB163: =Z163/Z151*100-100 -> 5.096088897 | AC163: 176319.6705 | AD163: 0.9000475948 | AE163: =AC163/AC151*100-100 -> 4.749790417 | AF163: 298740.0868 | AG163: =AF163/AF162*100-100 -> 0.1526310453 | AH163: =AF163/AF151*100-100 -> 4.55453104
A164: 2017-09-01 | B164: 159771.024 | C164: 0.6367368926 | D164: 2.263202733 | E164: 191134.404 | F164: 0.3962117129 | G164: 5.595633473 | H164: 189826.4819 | I164: 1.342314332 | J164: 5.196888424 | K164: 210731.4582 | L164: 0.1944828462 | M164: 5.13204827 | N164: 220740.9177 | O164: 0.6322689514 | P164: 5.561627746 | Q164: 333106.2628 | R164: -0.1083146048 | S164: 4.827169295 | T164: 621584.4123 | U164: 1.467813356 | V164: 4.07724054 | W164: 385079.5006 | X164: -0.05457879279 | Y164: 3.346979872 | Z164: 286916.1529 | AA164: 0.8796773184 | AB164: 5.797671922 | AC164: 178666.3744 | AD164: =AC164/AC163*100-100 -> 1.330937094 | AE164: =AC164/AC152*100-100 -> 5.192655374 | AF164: 300542.3878 | AG164: =AF164/AF163*100-100 -> 0.6033006964 | AH164: =AF164/AF152*100-100 -> 4.575568512
A165: 2017-10-01 | B165: 160342.2702 | C165: 0.3575405261 | D165: 1.358732971 | E165: 192046.287 | F165: 0.4770899143 | G165: 4.333412914 | H165: 190056.3842 | I165: 0.1211117896 | J165: 3.957387534 | K165: 211578.8904 | L165: 0.4021384225 | M165: 4.922071573 | N165: 221687.9104 | O165: 0.4290064157 | P165: 4.813171516 | Q165: 335623.9188 | R165: 0.7558116831 | S165: 4.731384473 | T165: 627389.6527 | U165: 0.9339424103 | V165: 3.702769882 | W165: 384073.731 | X165: -0.2611849345 | Y165: 2.659654126 | Z165: 288251.8204 | AA165: 0.4655253933 | AB165: 5.474522521 | AC165: 180146.1353 | AD165: 0.8282257249 | AE165: 4.721924328 | AF165: 301822.1519 | AG165: =AF165/AF164*100-100 -> 0.4258181744 | AH165: =AF165/AF153*100-100 -> 4.021461445
A166: 2017-11-01 | B166: 161137.3751 | C166: 0.495879792 | D166: 1.164172868 | E166: 192611.7082 | F166: 0.2944192589 | G166: 4.381151416 | H166: 190000.516 | I166: -0.02939560298 | J166: 3.11596459 | K166: 212418.8849 | L166: 0.3970124433 | M166: 4.785484749 | N166: 222245.8161 | O166: 0.2516626461 | P166: 4.682477107 | Q166: 335094.0262 | R166: -0.1578828497 | S166: 4.075020206 | T166: 634650.6701 | U166: 1.15733777 | V166: 3.592266002 | W166: 383245.2889 | X166: -0.2156987123 | Y166: 2.098467417 | Z166: 290201.3122 | AA166: 0.6763155193 | AB166: 6.114252896 | AC166: 180623.8826 | AD166: 0.2651998214 | AE166: 4.232873079 | AF166: 302851.6068 | AG166: =AF166/AF165*100-100 -> 0.3410799541 | AH166: =AF166/AF154*100-100 -> 3.774977685
A167: 2017-12-01 | B167: 160871.5123 | C167: -0.1649913874 | D167: 0.3504330028 | E167: 194833.9351 | F167: 1.15373403 | G167: 4.844916906 | H167: 190516.8338 | I167: 0.2717455127 | J167: 3.059856435 | K167: 212958.08 | L167: 0.2538357485 | M167: 4.77967375 | N167: 222841.6586 | O167: 0.2681006692 | P167: 3.979692317 | Q167: 335790.3579 | R167: 0.2078018808 | S167: 4.079928122 | T167: 629658.5504 | U167: -0.7865933138 | V167: 2.153264133 | W167: 386370.5868 | X167: 0.8154824103 | Y167: 1.90554351 | Z167: 293982.8122 | AA167: 1.30306093 | AB167: 5.415868594 | AC167: 180384.8139 | AD167: -0.1323571451 | AE167: 3.434766034 | AF167: 303798.5552 | AG167: =AF167/AF166*100-100 -> 0.3126773586 | AH167: =AF167/AF155*100-100 -> 3.293225761
A168: 2018-01-01 | B168: 164215.5336 | C168: 2.078690779 | D168: 1.882630452 | E168: 195044.361 | F168: 0.1080027221 | G168: 5.096190882 | H168: 192096.3893 | I168: 0.8290897235 | J168: 3.764354826 | K168: 217170.0475 | L168: 1.977838771 | M168: 5.493286907 | N168: 225670.1306 | O168: 1.269274365 | P168: 4.320198928 | Q168: 337607.5412 | R168: 0.5411660021 | S168: 3.678883981 | T168: 626155.2349 | U168: -0.55638338 | V168: 0.7661057383 | W168: 390833.8179 | X168: 1.155168444 | Y168: 1.883806702 | Z168: 293404.9393 | AA168: -0.1965668802 | AB168: 4.576156154 | AC168: 181835.2996 | AD168: 0.8041062963 | AE168: 3.841385802 | AF168: 305433.9341 | AG168: =AF168/AF167*100-100 -> 0.5383103026 | AH168: =AF168/AF156*100-100 -> 3.011824618
A169: 2018-02-01 | B169: 166637.1595 | C169: 1.474663077 | D169: 2.938345013 | E169: 195828.9421 | F169: 0.4022577458 | G169: 4.406169465 | H169: 192488.6871 | I169: 0.2042192357 | J169: 4.142697963 | K169: 219271.5131 | L169: 0.9676590835 | M169: 6.035337716 | N169: 227727.6685 | O169: 0.9117457646 | P169: 4.564104691 | Q169: 341099.5967 | R169: 1.034353533 | S169: 3.959545651 | T169: 619789.5355 | U169: -1.016632774 | V169: -0.4936375014 | W169: 394321.3492 | X169: 0.8923310068 | Y169: 1.96175122 | Z169: 293926.3722 | AA169: 0.177717818 | AB169: 4.046413617 | AC169: 185554.8201 | AD169: 2.045543706 | AE169: 4.888275474 | AF169: 306675.5235 | AG169: =AF169/AF168*100-100 -> 0.4065001357 | AH169: =AF169/AF157*100-100 -> 2.81931199
A170: 2018-03-01 | B170: 168290.5908 | C170: 0.9922344785 | D170: 4.404316973 | E170: 195249.6882 | F170: -0.2957958491 | G170: 3.671156473 | H170: 192055.6008 | I170: -0.2249931401 | J170: 3.190060338 | K170: 219836.2647 | L170: 0.2575580881 | M170: 5.637340762 | N170: 227377.6267 | O170: -0.1537107003 | P170: 3.738317672 | Q170: 342721.1628 | R170: 0.475393732 | S170: 3.439086269 | T170: 615047.5717 | U170: -0.7650925942 | V170: -2.075941112 | W170: 394227.471 | X170: -0.02380753237 | Y170: 1.654496553 | Z170: 291470.4898 | AA170: -0.8355433793 | AB170: 3.222188312 | AC170: 183396.6111 | AD170: -1.163111248 | AE170: 3.821864149 | AF170: 305951.1914 | AG170: =AF170/AF169*100-100 -> -0.2361884139 | AH170: =AF170/AF158*100-100 -> 2.058533835
A171: 2018-04-01 | B171: 165700.5106 | C171: -1.539052277 | D171: 3.536635929 | E171: 194454.9212 | F171: -0.4070515888 | G171: 3.412166763 | H171: 191691.0011 | I171: -0.1898406883 | J171: 2.603414673 | K171: 218637.5833 | L171: -0.5452609655 | M171: 4.950653988 | N171: 227895.7162 | O171: 0.2278541999 | P171: 4.621547589 | Q171: 342123.8004 | R171: -0.1742998211 | S171: 3.136363471 | T171: 613542.0417 | U171: -0.2447826942 | V171: -2.561069053 | W171: 393748.1592 | X171: -0.1215825648 | Y171: 1.758131768 | Z171: 291361.1165 | AA171: -0.0375246697 | AB171: 3.242705211 | AC171: 180811.6617 | AD171: -1.409485951 | AE171: 3.696868046 | AF171: 305176.6715 | AG171: =AF171/AF170*100-100 -> -0.2531514742 | AH171: =AF171/AF159*100-100 -> 1.868564535
A172: 2018-05-01 | B172: 163875.0699 | C172: -1.101650617 | D172: 2.468143867 | E172: 192629.0456 | F172: -0.9389711711 | G172: 2.639067038 | H172: 191016.9812 | I172: -0.3516179336 | J172: 2.119733333 | K172: 218134.9681 | L172: -0.2298850804 | M172: 4.755667906 | N172: 227142.2278 | O172: -0.3306285802 | P172: 4.291109298 | Q172: 340967.9853 | R172: -0.3378353382 | S172: 2.281841962 | T172: 616773.7304 | U172: 0.5267265277 | V172: -1.763413647 | W172: 391107.964 | X172: -0.6705288938 | Y172: 1.275954163 | Z172: 291908.262 | AA172: 0.1877894846 | AB172: 2.925628268 | AC172: 176570.6921 | AD172: -2.345517731 | AE172: 2.182190032 | AF172: 304271.4669 | AG172: =AF172/AF171*100-100 -> -0.2966165653 | AH172: =AF172/AF160*100-100 -> 1.5978133
A173: 2018-06-01 | B173: 163548.2521 | C173: -0.1994310743 | D173: 2.436094708 | E173: 192729.7368 | F173: 0.05227210993 | G173: 2.873395176 | H173: 192019.6667 | I173: 0.5249195832 | J173: 3.682128069 | K173: 219147.7404 | L173: 0.4642869712 | M173: 4.587212233 | N173: 228442.1864 | O173: 0.5723103902 | P173: 4.820362824 | Q173: 341959.2568 | R173: 0.2907227274 | S173: 2.377469439 | T173: 617034.375 | U173: 0.04225935369 | V173: -0.4814347184 | W173: 390829.3805 | X173: -0.07122930493 | Y173: 1.578261591 | Z173: 290837.3155 | AA173: -0.3668777559 | AB173: 2.946942361 | AC173: 179009.3704 | AD173: 1.381134273 | AE173: 3.541452156 | AF173: 304689.1015 | AG173: =AF173/AF172*100-100 -> 0.1372572159 | AH173: =AF173/AF161*100-100 -> 2.136480241
A174: 2018-07-01 | B174: 162015.8708 | C174: -0.9369597841 | D174: 1.54101601 | E174: 193257.0093 | F174: 0.2735812498 | G174: 2.259349776 | H174: 192981.6737 | I174: 0.5009940023 | J174: 4.23084764 | K174: 217990.2773 | L174: -0.528165665 | M174: 4.110508474 | N174: 227091.7734 | O174: -0.5911399011 | P174: 4.137494348 | Q174: 340044.8776 | R174: -0.5598266877 | S174: 2.070072944 | T174: 611546.2905 | U174: -0.8894292904 | V174: -0.5970345643 | W174: 388537.3935 | X174: -0.5864418409 | Y174: 0.9625333725 | Z174: 291988.397 | AA174: 0.3957819162 | AB174: 2.544201797 | AC174: 181355.5111 | AD174: 1.310624533 | AE174: 3.781839251 | AF174: 303619.8779 | AG174: =AF174/AF173*100-100 -> -0.3509228016 | AH174: =AF174/AF162*100-100 -> 1.788581295
A175: 2018-08-01 | B175: 162104.1831 | C175: 0.05450843926 | D175: 2.106349521 | E175: 195047.2869 | F175: 0.9263713845 | G175: 2.451512117 | H175: 193836.9691 | I175: 0.4432003181 | J175: 3.483385731 | K175: 219491.7275 | L175: 0.6887693804 | M175: 4.359644801 | N175: 228978.4913 | O175: 0.8308173481 | P175: 4.387647566 | Q175: 340037.6838 | R175: -0.002115527458 | S175: 1.970275348 | T175: 609273.9031 | U175: -0.371580607 | V175: -0.5417615688 | W175: 389569.3329 | X175: 0.2655959141 | Y175: 1.110734301 | Z175: 293418.7631 | AA175: 0.4898708588 | AB175: 3.16599412 | AC175: 183646.4453 | AD175: 1.263228296 | AE175: 4.155392704 | AF175: 304487.553 | AG175: =AF175/AF174*100-100 -> 0.2857767799 | AH175: =AF175/AF163*100-100 -> 1.923901908
A176: 2018-09-01 | B176: 161933.3522 | C176: -0.1053833872 | D176: 1.353391953 | E176: 194985.5626 | F176: -0.03164582106 | G176: 2.014895529 | H176: 193314.211 | I176: -0.2696895904 | J176: 1.837324806 | K176: 220959.1737 | L176: 0.6685655737 | M176: 4.853435514 | N176: 230531.7135 | O176: 0.6783267009 | P176: 4.435424091 | Q176: 339020.5504 | R176: -0.2991237402 | S176: 1.775495773 | T176: 614603.6011 | U176: 0.8747622278 | V176: -1.123067291 | W176: 389371.312 | X176: -0.05083072951 | Y176: 1.114526065 | Z176: 294755.7026 | AA176: 0.4556421096 | AB176: 2.732348662 | AC176: 184591.3842 | AD176: 0.5145424698 | AE176: 3.316242242 | AF176: 305315.3786 | AG176: =AF176/AF175*100-100 -> 0.2718750038 | AH176: =AF176/AF164*100-100 -> 1.588125651
A177: 2018-10-01 | B177: 163663.816 | C177: 1.06862718 | D177: 2.071534745 | E177: 196817.4119 | F177: 0.9394794712 | G177: 2.484361976 | H177: 192961.9078 | I177: -0.1822438165 | J177: 1.528769269 | K177: 223205.2191 | L177: 1.016497935 | M177: 5.495032461 | N177: 231627.6662 | O177: 0.4754021057 | P177: 4.483670646 | Q177: 341111.0949 | R177: 0.6166424134 | S177: 1.634918062 | T177: 623121.493 | U177: 1.385916366 | V177: -0.6803044572 | W177: 390017.571 | X177: 0.1659749969 | Y177: 1.547577871 | Z177: 295851.8294 | AA177: 0.3718763921 | AB177: 2.63658664 | AC177: 186254.5266 | AD177: 0.9009859407 | AE177: 3.390797874 | AF177: 307356.2224 | AG177: =AF177/AF176*100-100 -> 0.6684379269 | AH177: =AF177/AF165*100-100 -> 1.833553434
A178: 2018-11-01 | B178: 162993.9496 | C178: -0.4092941872 | D178: 1.152168722 | E178: 196759.3151 | F178: -0.02951811632 | G178: 2.153351383 | H178: 192965.6081 | I178: 0.001917627211 | J178: 1.560570554 | K178: 222602.9405 | L178: -0.2698317899 | M178: 4.794326809 | N178: 231128.7251 | O178: -0.2154064899 | P178: 3.996884727 | Q178: 338624.6765 | R178: -0.728917477 | S178: 1.053629731 | T178: 622663.3845 | U178: -0.07351831651 | V178: -1.888800593 | W178: 388086.8798 | X178: -0.4950267164 | Y178: 1.263313895 | Z178: 294487.0849 | AA178: -0.4612932386 | AB178: 1.476827473 | AC178: 186425.7912 | AD178: 0.09195190149 | AE178: 3.212149243 | AF178: 306407.6113 | AG178: =AF178/AF177*100-100 -> -0.3086357277 | AH178: =AF178/AF166*100-100 -> 1.174173879
A179: 2018-12-01 | B179: 162640.6839 | C179: -0.2167354334 | D179: 1.099741998 | E179: 198219.8328 | F179: 0.7422864158 | G179: 1.737837777 | H179: 195272.1755 | I179: 1.195325672 | J179: 2.496021787 | K179: 222251.4852 | L179: -0.157884395 | M179: 4.363959882 | N179: 231538.6892 | O179: 0.1773747629 | P179: 3.902784893 | Q179: 338892.7239 | R179: 0.07915765564 | S179: 0.9238996539 | T179: 621481.6509 | U179: -0.1897869116 | V179: -1.298624387 | W179: 388175.5569 | X179: 0.02284980292 | Y179: 0.4671603418 | Z179: 296791.2151 | AA179: 0.7824214469 | AB179: 0.9552949299 | AC179: 186786.7729 | AD179: 0.193632897 | AE179: 3.549056493 | AF179: 307006.3984 | AG179: =AF179/AF178*100-100 -> 0.1954217671 | AH179: =AF179/AF167*100-100 -> 1.055911283
A180: 2019-01-01 | B180: 163597.3899 | C180: 0.5882328773 | D180: =B180/B168*100-100 -> -0.376422206 | E180: 197563.4259 | F180: -0.3311509741 | G180: 1.291534322 | H180: 196387.3453 | I180: 0.5710848203 | J180: 2.233751481 | K180: 222323.9125 | L180: 0.03258800032 | M180: 2.373193301 | N180: 233553.7263 | O180: 0.8702809807 | P180: 3.493415674 | Q180: 339831.6868 | R180: 0.2770678843 | S180: 0.6587961843 | T180: 619962.2021 | U180: -0.2444881239 | V180: -0.9890570974 | W180: 390319.6987 | X180: 0.5523639363 | Y180: -0.131544184 | Z180: 295519.382 | AA180: -0.4285278511 | AB180: 0.7206568267 | AC180: 186845.0177 | AD180: 0.03118252506 | AE180: 2.75508559 | AF180: 307439.9046 | AG180: =AF180/AF179*100-100 -> 0.1412042842 | AH180: =AF180/AF168*100-100 -> 0.6567608458
A181: 2019-02-01 | B181: 165649.5351 | C181: =B181/B180*100-100 -> 1.254387516 | D181: -0.5926795341 | E181: 198982.6062 | F181: =E181/E180*100-100 -> 0.7183416122 | G181: =E181/E169*100-100 -> 1.610417787 | H181: 197034.3301 | I181: =H181/H180*100-100 -> 0.3294432115 | J181: =H181/H169*100-100 -> 2.361511738 | K181: 224755.1492 | L181: =K181/K180*100-100 -> 1.093556096 | M181: =K181/K169*100-100 -> 2.500842881 | N181: 234203.8856 | O181: =N181/N180*100-100 -> 0.2783767559 | P181: =N181/N169*100-100 -> 2.843842905 | Q181: 342615.8857 | R181: =Q181/Q180*100-100 -> 0.819287605 | S181: =Q181/Q169*100-100 -> 0.4445296831 | T181: 619929.2876 | U181: =T181/T180*100-100 -> -0.0053091134 | V181: =T181/T169*100-100 -> 0.02254830712 | W181: 392514.5733 | X181: =W181/W180*100-100 -> 0.5623273853 | Y181: =W181/W169*100-100 -> -0.4581988639 | Z181: 295606.5994 | AA181: =Z181/Z180*100-100 -> 0.02951323459 | AB181: =Z181/Z169*100-100 -> 0.5716490103 | AC181: 188027.874 | AD181: =AC181/AC180*100-100 -> 0.6330681453 | AE181: =AC181/AC169*100-100 -> 1.332788821 | AF181: 308840.9311 | AG181: =AF181/AF180*100-100 -> 0.4557074412 | AH181: =AF181/AF169*100-100 -> 0.7060907993
A182: 2019-03-01 | B182: 167281.4151 | C182: 0.985140073 | D182: -0.5996626041 | E182: 198921.3743 | F182: -0.03077247992 | G182: 1.880508055 | H182: 196173.1777 | I182: -0.4370570354 | J182: 2.143950431 | K182: 225778.7584 | L182: 0.4554330533 | M182: 2.703145342 | N182: 232834.6106 | O182: -0.5846508367 | P182: 2.399965221 | Q182: 340953.2495 | R182: -0.48527703 | S182: -0.5158459799 | T182: 617461.5746 | U182: -0.3980636273 | V182: 0.3924904327 | W182: 391413.6232 | X182: -0.2804864194 | Y182: -0.7137624946 | Z182: 294216.2991 | AA182: -0.4703211359 | AB182: 0.9420539369 | AC182: 187571.7785 | AD182: -0.2425680069 | AE182: 2.276578281 | AF182: 307989.2552 | AG182: =AF182/AF181*100-100 -> -0.275765256 | AH182: 0.6661401499
A183: 2019-04-01 | B183: 165578.8938 | C183: -1.017758795 | D183: -0.07339560038 | E183: 199452.5391 | F183: 0.2670224817 | G183: 2.570064995 | H183: 195738.5986 | I183: -0.2215282542 | J183: 2.111521937 | K183: 225969.8227 | L183: 0.08462454532 | M183: 3.353604272 | N183: 231690.6811 | O183: -0.4913056233 | P183: 1.66521996 | Q183: 339995.1653 | R183: -0.2810016077 | S183: -0.6221826943 | T183: 618380.4396 | U183: 0.1488133133 | V183: 0.7886008768 | W183: 388321.0525 | X183: -0.7901029742 | Y183: -1.378319241 | Z183: 293758.7677 | AA183: -0.1555084926 | AB183: 0.8229139358 | AC183: 186563.0759 | AD183: -0.5377688823 | AE183: 3.180886772 | AF183: 307211.0118 | AG183: =AF183/AF182*100-100 -> -0.2526852429 | AH183: 0.666610678
A184: 2019-05-01 | B184: 165779.302 | C184: 0.1210348717 | D184: 1.162002259 | E184: 198165.8657 | F184: -0.6451025412 | G184: 2.874343326 | H184: 195184.0339 | I184: -0.2833190414 | J184: 2.181509063 | K184: 224464.2929 | L184: -0.6662525696 | M184: 2.90156357 | N184: 231250.1549 | O184: -0.1901354802 | P184: 1.808526391 | Q184: 340331.8281 | R184: 0.0990198632 | S184: -0.1865738899 | T184: 623673.2624 | U184: 0.8559169195 | V184: 1.118648817 | W184: 386917.7029 | X184: -0.361389011 | Y184: -1.071382191 | Z184: 294812.4332 | AA184: 0.3586839417 | AB184: 0.994891751 | AC184: 185044.198 | AD184: -0.8141363735 | AE184: 4.798931155 | AF184: 307190.4721 | AG184: =AF184/AF183*100-100 -> -0.006685858428 | AH184: 0.9593423847
A185: 2019-06-01 | B185: 163966.5698 | C185: -1.093461073 | D185: 0.2557763152 | E185: 197240.2942 | F185: -0.467069097 | G185: 2.340353597 | H185: 195268.4402 | I185: 0.04324448185 | J185: 1.691896249 | K185: 222915.8499 | L185: -0.6898393381 | M185: 1.719438007 | N185: 230944.8886 | O185: -0.1320069757 | P185: 1.095551688 | Q185: 341673.9064 | R185: 0.394344058 | S185: -0.08344570673 | T185: 623043.5896 | U185: -0.1009619676 | V185: 0.9738865274 | W185: 387936.8418 | X185: 0.2633993994 | Y185: -0.7401026712 | Z185: 293476.5046 | AA185: -0.4531452767 | AB185: 0.9074451395 | AC185: 185596.9189 | AD185: 0.2986966694 | AE185: 3.68000203 | AF185: 306950.7832 | AG185: =AF185/AF184*100-100 -> -0.07802614726 | AH185: 0.7422916349
A186: 2019-07-01 | B186: 164683.6572 | C186: 0.437337531 | D186: 1.646620407 | E186: 197534.4294 | F186: 0.1491253251 | G186: 2.21333247 | H186: 195328.8976 | I186: 0.03096113324 | J186: 1.216293652 | K186: 222451.9051 | L186: -0.208125552 | M186: 2.046709547 | N186: 230588.3613 | O186: -0.1543776397 | P186: 1.539724589 | Q186: 340258.7056 | R186: -0.4141963452 | S186: 0.06288229674 | T186: 616396.4231 | U186: -1.066886272 | V186: 0.7930932882 | W186: 387774.5419 | X186: -0.04183668132 | Y186: -0.1963392931 | Z186: 295135.173 | AA186: 0.5651792784 | AB186: 1.077705829 | AC186: 187801.5469 | AD186: 1.187858085 | AE186: 3.554364411 | AF186: 306377.5991 | AG186: =AF186/AF185*100-100 -> -0.1867348417 | AH186: 0.9082808423
A187: 2019-08-01 | B187: 164988.1011 | C187: 0.1848659019 | D187: 1.779052176 | E187: 199267.0103 | F187: 0.8771032409 | G187: 2.163436084 | H187: 196991.4283 | I187: 0.8511442801 | J187: 1.627377485 | K187: 222763.8511 | L187: 0.1402307757 | M187: 1.490773071 | N187: 231342.1806 | O187: 0.3269112653 | P187: 1.032275714 | Q187: 337597.3045 | R187: -0.7821698641 | S187: -0.717679069 | T187: 611573.5187 | U187: -0.7824355005 | V187: 0.3774354282 | W187: 387378.3848 | X187: -0.102161722 | Y187: -0.5624026271 | Z187: 296509.8365 | AA187: 0.4657742067 | AB187: 1.053468219 | AC187: 188402.1276 | AD187: 0.3197954042 | AE187: 2.589585833 | AF187: 306196.4504 | AG187: =AF187/AF186*100-100 -> -0.05912595238 | AH187: 0.5612371948
A188: 2019-09-01 | B188: 166360.8447 | C188: 0.8320258316 | D188: 2.734144903 | E188: 201031.3997 | F188: 0.8854397968 | G188: 3.100658855 | H188: 198985.5761 | I188: 1.012301795 | J188: 2.933754874 | K188: 225118.4561 | L188: 1.056995993 | M188: 1.882375984 | N188: 233904.406 | O188: 1.10754786 | P188: 1.463005862 | Q188: 337675.2526 | R188: 0.02308904799 | S188: -0.3968189658 | T188: 617689.9415 | U188: 1.000112445 | V188: 0.5021676515 | W188: 386779.2528 | X188: -0.1546632386 | Y188: -0.6657036881 | Z188: 297610.8298 | AA188: 0.3713176275 | AB188: 0.9686419093 | AC188: 190072.4924 | AD188: 0.8865955088 | AE188: 2.969319613 | AF188: 307900.1848 | AG188: =AF188/AF187*100-100 -> 0.5564187041 | AH188: 0.8466020245
A189: 2019-10-01 | B189: 167788.5169 | C189: 0.8581780063 | D189: 2.520227721 | E189: 201750.235 | F189: 0.3575736345 | G189: 2.506294039 | H189: 200744.715 | I189: 0.8840535112 | J189: 4.033338675 | K189: 226114.5488 | L189: 0.4424749168 | M189: 1.303432642 | N189: 235483.8725 | O189: 0.675261532 | P189: 1.664829768 | Q189: 338634.5783 | R189: 0.2840971554 | S189: -0.7260146609 | T189: 625996.6299 | U189: 1.344799027 | V189: 0.4614087196 | W189: 388453.8216 | X189: 0.4329520778 | Y189: -0.4009433194 | Z189: 299295.3788 | AA189: 0.566024095 | AB189: 1.163943926 | AC189: 191552.618 | AD189: 0.7787163478 | AE189: 2.844543659 | AF189: 309984.1317 | AG189: =AF189/AF188*100-100 -> 0.6768254947 | AH189: 0.8550044367
A190: 2019-11-01 | B190: 167251.0963 | C190: -0.3202964306 | D190: 2.611843402 | E190: 201903.165 | F190: 0.07580164987 | G190: 2.614285305 | H190: 201619.5071 | I190: 0.4357734084 | J190: 4.484684674 | K190: 226547.8325 | L190: 0.1916213459 | M190: 1.772165298 | N190: 234393.8412 | O190: -0.462890018 | P190: 1.41268292 | Q190: 339390.9457 | R190: 0.2233579935 | S190: 0.2262886554 | T190: 632377.5201 | U190: 1.019317027 | V190: 1.560094236 | W190: 390256.9501 | X190: 0.4641809055 | Y190: 0.5591712472 | Z190: 297842.2943 | AA190: -0.4855018284 | AB190: 1.139340066 | AC190: 193448.8847 | AD190: 0.9899455975 | AE190: 3.767232747 | AF190: 310983.4625 | AG190: 0.3223812823 | AH190: 1.493386947
A191: 2019-12-01 | B191: 167189.4625 | C191: =B191/B190*100-100 -> -0.03685106193 | D191: =B191/B179*100-100 -> 2.796826996 | E191: 202952.9053 | F191: 0.5199226828 | G191: 2.387789597 | H191: 202091.5256 | I191: 0.2341134842 | J191: 3.492228237 | K191: 226545.8263 | L191: -0.0008855532925 | M191: 1.932199087 | N191: 235137.682 | O191: 0.3173465649 | P191: 1.554380743 | Q191: 338237.3069 | R191: -0.3399144513 | S191: -0.1933995488 | T191: 634490.163 | U191: 0.3340793753 | V191: 2.093144991 | W191: 392282.278 | X191: 0.5189729164 | Y191: 1.057954567 | Z191: 299638.045 | AA191: 0.6029199725 | AB191: 0.9592028914 | AC191: 193994.857 | AD191: 0.2822307904 | AE191: 3.858990656 | AF191: 311888.5975 | AG191: 0.2910556738 | AH191: 1.590259727
A192: 2020-01-01 | B192: 167397.3046 | C192: 0.1243153619 | D192: 2.322723344 | E192: 203674.4361 | F192: 0.3555163524 | G192: 3.093189031 | H192: 202211.5027 | I192: 0.05936770182 | J192: 2.965648009 | K192: 227695.6427 | L192: 0.5075425012 | M192: 2.416172937 | N192: 236874.4516 | O192: 0.7386181801 | P192: 1.421825009 | Q192: 340797.5612 | R192: 0.7569402475 | S192: 0.2842214091 | T192: 639804.4263 | U192: 0.8375643325 | V192: 3.200553857 | W192: 394702.6028 | X192: 0.6169855172 | Y192: 1.122901074 | Z192: 297427.0434 | AA192: -0.7378908082 | AB192: 0.6455283331 | AC192: 194216.4636 | AD192: 0.1142332491 | AE192: 3.945219412 | AF192: 313288.2711 | AG192: =AF192/AF191*100-100 -> 0.4487735646 | AH192: =AF192/AF180*100-100 -> 1.902279572
A193: 2020-02-01 | B193: 169814.6961 | C193: 1.444104154 | D193: 2.514441684 | E193: 205849.8975 | F193: 1.068107216 | G193: 3.451201791 | H193: 203700.1364 | I193: 0.7361765898 | J193: 3.383068504 | K193: 230214.3287 | L193: 1.106163486 | M193: 2.42894527 | N193: 239724.9643 | O193: 1.203385447 | P193: 2.357381333 | Q193: 343326.5025 | R193: 0.7420655459 | S193: 0.2074091814 | T193: 641069.6857 | U193: 0.1977572173 | V193: 3.410130562 | W193: 398365.5648 | X193: 0.9280308751 | Y193: 1.490643138 | Z193: 300356.144 | AA193: 0.9848131466 | AB193: 1.606711301 | AC193: 196577.6457 | AD193: 1.215747639 | AE193: 4.547076723 | AF193: 315833.3158 | AG193: =AF193/AF192*100-100 -> 0.8123651225 | AH193: =AF193/AF181*100-100 -> 2.26407316
A194: 2020-03-01 | B194: 168460.8417 | C194: -0.7972539258 | D194: 0.7050554169 | E194: 203893.3162 | F194: -0.9504893051 | G194: 2.499450805 | H194: 201622.5496 | I194: -1.019924137 | J194: 2.777837404 | K194: 230151.0583 | L194: -0.02748325505 | M194: 1.936541758 | N194: 236290.3763 | O194: -1.432720227 | P194: 1.484214737 | Q194: 344525.6602 | R194: 0.3492762053 | S194: 1.047771442 | T194: 642063.6699 | U194: 0.1550508841 | V194: 3.98439293 | W194: 402348.0133 | X194: 0.999696959 | Y194: 2.793563998 | Z194: 301085.7992 | AA194: 0.2429299975 | AB194: 2.334846896 | AC194: 194238.447 | AD194: -1.189961691 | AE194: 3.554195911 | AF194: 315870.5618 | AG194: =AF194/AF193*100-100 -> 0.01179295115 | AH194: =AF194/AF182*100-100 -> 2.558955077
A195: 2020-04-01 | B195: 166877.9758 | C195: -0.9396046939 | D195: 0.7845698125 | E195: 201501.7754 | F195: -1.172937336 | G195: 1.027430526 | H195: 199078.0784 | I195: -1.261997302 | J195: 1.706091597 | K195: 228080.9049 | L195: -0.8994759429 | M195: 0.9342319526 | N195: 233605.4557 | O195: -1.136280126 | P195: 0.826435723 | Q195: 340534.3369 | R195: -1.158498125 | S195: 0.1585821303 | T195: 635313.8368 | U195: -1.051271612 | V195: 2.738346189 | W195: 399979.0034 | X195: -0.5887962088 | Y195: 3.002142381 | Z195: 299575.8502 | AA195: -0.501501219 | AB195: 1.980224301 | AC195: 192077.0412 | AD195: -1.112759026 | AE195: 2.95555016 | AF195: 312957.1275 | AG195: -0.9223507122 | AH195: 1.870413326
A196: 2020-05-01 | B196: 163600.0897 | C196: =B196/B195*100-100 -> -1.964241269 | D196: =B196/B184*100-100 -> -1.314526137 | E196: 199362.0781 | F196: =E196/E195*100-100 -> -1.061875123 | G196: =E196/E184*100-100 -> 0.6036420243 | H196: 196863.7099 | I196: =H196/H195*100-100 -> -1.112311563 | J196: =H196/H184*100-100 -> 0.8605601528 | K196: 225880.3901 | L196: =K196/K195*100-100 -> -0.9647957451 | M196: =K196/K184*100-100 -> 0.6308785918 | N196: 232459.9342 | O196: =N196/N195*100-100 -> -0.4903658757 | P196: =N196/N184*100-100 -> 0.5231474576 | Q196: 339733.6643 | R196: =Q196/Q195*100-100 -> -0.2351224373 | S196: =Q196/Q184*100-100 -> -0.1757589961 | T196: 631660.8726 | U196: =T196/T195*100-100 -> -0.574985772 | V196: =T196/T184*100-100 -> 1.280736357 | W196: 394866.887 | X196: =W196/W195*100-100 -> -1.278096187 | Y196: =W196/W184*100-100 -> 2.054489637 | Z196: 297782.3101 | AA196: =Z196/Z195*100-100 -> -0.5986931616 | AB196: =Z196/Z184*100-100 -> 1.007378426 | AC196: 189492.1333 | AD196: =AC196/AC195*100-100 -> -1.345766172 | AE196: =AC196/AC184*100-100 -> 2.403715086 | AF196: 310327.5754 | AG196: =AF196/AF195*100-100 -> -0.8402275531 | AH196: =AF196/AF184*100-100 -> 1.02122418
A197: 2020-06-01 | B197: 164622.0338 | C197: 0.6246598416 | D197: 0.3997546224 | E197: 201303.6558 | F197: 0.9738951582 | G197: 2.060107244 | H197: 197927.92 | I197: 0.5405821451 | J197: 1.361960878 | K197: 227259.0293 | L197: 0.6103403786 | M197: 1.948349295 | N197: 236446.5218 | O197: 1.714956868 | P197: 2.382227761 | Q197: 342073.3898 | R197: 0.6886940301 | S197: 0.1169194693 | T197: 630693.9954 | U197: -0.1530690418 | V197: 1.227908593 | W197: 391210.6878 | X197: -0.9259320823 | Y197: 0.8439121177 | Z197: 298297.2583 | AA197: 0.1729277362 | AB197: 1.642637007 | AC197: 191860.0083 | AD197: 1.249590113 | AE197: 3.374565401 | AF197: 310969.1141 | AG197: =AF197/AF196*100-100 -> 0.2067295148 | AH197: =AF197/AF185*100-100 -> 1.309112464
A198: 2020-07-01 | B198: 166338.2403 | C198: 1.042513251 | D198: 1.00470389 | E198: 205324.587 | F198: 1.997445719 | G198: 3.943696112 | H198: 201372.5318 | I198: 1.740336486 | J198: 3.09408097 | K198: 228789.4702 | L198: 0.6734345911 | M198: 2.848959709 | N198: 238589.4124 | O198: 0.9062897331 | P198: 3.469841679 | Q198: 346943.7014 | R198: 1.423762217 | S198: 1.96468032 | T198: 636128.3168 | U198: 0.8616415331 | V198: 3.201169405 | W198: 396701.7557 | X198: 1.403608844 | Y198: 2.302166018 | Z198: 304881.7625 | AA198: 2.207363307 | AB198: 3.302415435 | AC198: 194653.544 | AD198: 1.456028137 | AE198: 3.648530708 | AF198: 315179.046 | AG198: =AF198/AF197*100-100 -> 1.353810277 | AH198: =AF198/AF186*100-100 -> 2.872744898
A199: 2020-08-01 | B199: 170111.4114 | C199: 2.268372662 | D199: 3.10526051 | E199: 207664.5957 | F199: 1.13966316 | G199: 4.214237668 | H199: 204805.777 | I199: 1.704922277 | J199: 3.966847051 | K199: 231820.4693 | L199: 1.324798332 | M199: 4.065569057 | N199: 241991.622 | O199: 1.425968387 | P199: 4.603328845 | Q199: 351809.8201 | R199: 1.402567226 | S199: 4.209901957 | T199: 644369.1042 | U199: 1.295459925 | V199: 5.362492745 | W199: 405714.3578 | X199: 2.271883594 | Y199: 4.733349538 | Z199: 311650.5474 | AA199: 2.220134403 | AB199: 5.106309818 | AC199: 195440.9943 | AD199: 0.4045394281 | AE199: 3.736086644 | AF199: 320334.636 | AG199: =AF199/AF198*100-100 -> 1.635765478 | AH199: =AF199/AF187*100-100 -> 4.617357754
A200: 2020-09-01 | B200: 172516.2841 | C200: 1.413704489 | D200: 3.700052978 | E200: 212867.9845 | F200: 2.50566968 | G200: 5.887928366 | H200: 208802.7077 | I200: 1.951571278 | J200: 4.933589565 | K200: 235315.8489 | L200: 1.507795926 | M200: 4.529789778 | N200: 244971.7567 | O200: 1.231503258 | P200: 4.731569985 | Q200: 356025.3075 | R200: 1.198229051 | S200: 5.434231516 | T200: 645423.2871 | U200: 0.163599233 | V200: 4.489848991 | W200: 411957.1835 | X200: 1.53872439 | Y200: 6.509638388 | Z200: 317525.0021 | AA200: 1.884949252 | AB200: 6.691346642 | AC200: 199233.1983 | AD200: 1.940331904 | AE200: 4.819585293 | AF200: 324634.0669 | AG200: =AF200/AF199*100-100 -> 1.342168602 | AH200: =AF200/AF188*100-100 -> 5.434839912
A201: 2020-10-01 | B201: 176848.636 | C201: 2.511271277 | D201: 5.399725361 | E201: 218064.5851 | F201: 2.441231643 | G201: 8.086409477 | H201: 213673.3889 | I201: 2.332671491 | J201: 6.440355791 | K201: 241687.2775 | L201: 2.707607104 | M201: 6.887097197 | N201: 250065.5463 | O201: 2.079337491 | P201: 6.19221759 | Q201: 359421.8751 | R201: 0.9540241885 | S201: 6.13856295 | T201: 648757.4675 | U201: 0.5165881699 | V201: 3.635936128 | W201: 416722.6889 | X201: 1.15679627 | Y201: 7.277278705 | Z201: 325483.106 | AA201: 2.506292064 | AB201: 8.749793363 | AC201: 202788.1512 | AD201: 1.784317518 | AE201: 5.865507503 | AF201: 329708.9594 | AG201: =AF201/AF200*100-100 -> 1.563265538 | AH201: =AF201/AF189*100-100 -> 6.363173356
A202: 2020-11-01 | B202: 177742.6172 | C202: 0.5055064376 | D202: 6.272916114 | E202: 224006.901 | F202: 2.725025645 | G202: 10.94769167 | H202: 216931.4574 | I202: 1.524789064 | J202: 7.594478569 | K202: 245765.6987 | L202: 1.687478645 | M202: 8.482917709 | N202: 254066.1538 | O202: 1.599823578 | P202: 8.392845386 | Q202: 360099.9342 | R202: 0.1886526979 | S202: 6.10180934 | T202: 642758.5927 | U202: -0.9246713981 | V202: 1.641594193 | W202: 418888.8496 | X202: 0.5198086906 | Y202: 7.336678954 | Z202: 330287.8097 | AA202: 1.476176049 | AB202: 10.89352184 | AC202: 208075.2497 | AD202: 2.607202915 | AE202: 7.560842277 | AF202: 332262.2463 | AG202: =AF202/AF201*100-100 -> 0.7744062885 | AH202: =AF202/AF190*100-100 -> 6.842416506
A203: 2020-12-01 | B203: 182086.6054 | C203: =B203/B202*100-100 -> 2.443976732 | D203: =B203/B191*100-100 -> 8.910336072 | E203: 228033.3971 | F203: =E203/E202*100-100 -> 1.797487562 | G203: =E203/E191*100-100 -> 12.357789 | H203: 223057.8256 | I203: =H203/H202*100-100 -> 2.82410318 | J203: =H203/H191*100-100 -> 10.37465571 | K203: 249774.2788 | L203: =K203/K202*100-100 -> 1.631057594 | M203: =K203/K191*100-100 -> 10.25331293 | N203: 259375.5574 | O203: =N203/N202*100-100 -> 2.089772094 | P203: =N203/N191*100-100 -> 10.30795033 | Q203: 363754.7755 | R203: =Q203/Q202*100-100 -> 1.014951947 | S203: =Q203/Q191*100-100 -> 7.544250167 | T203: 650105.4711 | U203: =T203/T202*100-100 -> 1.143022977 | V203: =T203/T191*100-100 -> 2.461079634 | W203: 424390.7746 | X203: =W203/W202*100-100 -> 1.31345701 | Y203: =W203/W191*100-100 -> 8.185048984 | Z203: 336302.7218 | AA203: =Z203/Z202*100-100 -> 1.82111236 | AB203: =Z203/Z191*100-100 -> 12.23632227 | AC203: 212179.0557 | AD203: =AC203/AC202*100-100 -> 1.972270117 | AE203: =AC203/AC191*100-100 -> 9.373546801 | AF203: 337457.6907 | AG203: =AF203/AF202*100-100 -> 1.563657765 | AH203: =AF203/AF191*100-100 -> 8.198149396
A204: 2021-01-01 | B204: 184749.2388 | C204: =B204/B203*100-100 -> 1.462289526 | D204: =B204/B192*100-100 -> 10.36571897 | E204: 231453.8548 | F204: =E204/E203*100-100 -> 1.499981009 | G204: =E204/E192*100-100 -> 13.63912881 | H204: 227062.7759 | I204: =H204/H203*100-100 -> 1.795476273 | J204: =H204/H192*100-100 -> 12.28974262 | K204: 255349.3863 | L204: =K204/K203*100-100 -> 2.232058274 | M204: =K204/K192*100-100 -> 12.14504734 | N204: 264890.2353 | O204: =N204/N203*100-100 -> 2.126136296 | P204: =N204/N192*100-100 -> 11.82727114 | Q204: 368232.2999 | R204: =Q204/Q203*100-100 -> 1.230918398 | S204: =Q204/Q192*100-100 -> 8.050157002 | T204: 651443.6152 | U204: =T204/T203*100-100 -> 0.2058349134 | V204: =T204/T192*100-100 -> 1.81917918 | W204: 425599.0429 | X204: =W204/W203*100-100 -> 0.2847065588 | Y204: =W204/W192*100-100 -> 7.827777146 | Z204: 336607.412 | AA204: =Z204/Z203*100-100 -> 0.09059998166 | AB204: =Z204/Z192*100-100 -> 13.17310228 | AC204: 214324.7627 | AD204: =AC204/AC203*100-100 -> 1.011271806 | AE204: =AC204/AC192*100-100 -> 10.3535502 | AF204: 340482.6044 | AG204: 0.8963830847 | AH204: 8.680290889
... 20 more rows

Sheet INTERACTIVE REGIONS CHARTS
C2: e.surv Acadata E&W HPI NATIONAL AND REGIONAL FORMATTED DATA FROM 2005
C3: A TRUE MEASURE OF HOUSE PRICE INFLATION
C4: For data prior to 2005 please see | F4: APAT LGA | O4: =SERIES!$K$3 -> JULY 2022
O5: © Acadata Limited
O6: e.surv Acadata E&W HPI clb/cms
Q8: Select Region(s)
Q11: North East
Q12: North West
Q13: East Midlands
Q14: West Midlands
Q15: Wales
Q16: Yorks & Humber
Q17: South West
Q18: East of England
Q19: South East
Q20: Greater London
D29: To change the date range, click on the start and end dates below and select from the drop down lists, then click Reset Dates.
D31: Start Date | E31: 2005-01-01 | G31: End Date | H31: 2022-06-01
E32: =MATCH(E31,dates)+ROW(dates)-1 -> 12 | H32: =MATCH(H31,dates)+ROW(dates)-1 -> 221
Q38: Select Region(s)
Q41: North East
Q42: North West
Q43: East Midlands
Q44: West Midlands
Q45: Wales
Q46: Yorks & Humber
Q47: South West
Q48: East of England
Q49: South East
Q50: Greater London
D58: To change the date range, click on the start and end dates below and select from the drop down lists, then click Reset Dates.
D60: Start Date | E60: 2005-01-01 | G60: End Date | H60: 2022-06-01
E61: =MATCH(E60,dates)+ROW(dates)-1 -> 12 | H61: =MATCH(H60,dates)+ROW(dates)-1 -> 221
Q65: Select Region(s)
Q68: North East
Q69: North West
Q70: East Midlands
Q71: West Midlands
Q72: Wales
Q73: Yorks & Humber
Q74: South West
Q75: East of England
Q76: South East
Q77: Greater London
D85: To change the date range, click on the start and end dates below and select from the drop down lists, then click Reset Dates.
D87: Start Date | E87: 2005-01-01 | G87: End Date | H87: 2022-06-01
E88: =MATCH(E87,dates)+ROW(dates)-1 -> 12 | H88: =MATCH(H87,dates)+ROW(dates)-1 -> 221
